Workbook

Sheet Active-Completed
A1: ACTIVE / COMPLETED
V2: Monthly Results / Estimates for Ramp Up | AH2: FY 2013
A3: Client | B3: NPAD | C3: Program Name | D3: Product Line | E3: Type | F3: Status | G3: Contract Value | H3: Monthly Value | I3: FY Value | J3: Start Date | K3: Term Date | L3: Expected Program End Date | M3: Renewal Prob% | N3: Target Activity (letters/Pts/$) | O3: Activity (to Date) | P3: Next Report Due Date | Q3: Latest Report Results | R3: PCC # | S3: Comments | T3: blank | U3: ID | V3: 2011-09 | W3: 2011-10 | X3: 2011-11 | Y3: 2011-12 | Z3: 2012-01 | AA3: 2012-02 | AB3: 2012-03 | AC3: 2012-04 | AD3: 2012-05 | AE3: 2012-06 | AF3: 2012-07 | AG3: 2012-08 | AH3: 2012-09 | AI3: 2012-10 | AJ3: 2012-11 | AK3: 2012-12 | AL3: 2013-01 | AM3: 2013-02 | AN3: 2013-03 | AO3: 2013-04 | AP3: 2013-05 | AQ3: 2013-06 | AR3: 2013-07 | AS3: 2013-08 | AT3: Unit Lift | AU3: WAC | AV3: Tot Rev | AW3: Total Purch | AX3: Total GP | AY3: Comment
A4: Abbott | B4: =IF(A4="","",VLOOKUP(A4,'Pharma Names'!$A$2:$B$124,2,FALSE)) -> MaryT | C4: Androgel IVR | D4: Adherence | E4: IVR | F4: Completed | G4: 244320 | H4: 20360 | I4: 183240 | J4: 2012-02-28 | K4: 2012-12-20 | L4: 2012-12-31 | N4: 48000 | P4: 2012-07-15 | Q4: 2012-06-30 | R4: 9493, 9494 | S4: FU on initial call volmue | U4: 51 | AB4: 11315.5 | AC4: 14592.17 | AD4: 15519.83 | AE4: 14357.57 | AF4: 16084.28 | AG4: 14009.14 | AH4: 12575.23 | AI4: 14994.61 | AJ4: 14283.67 | AK4: 14024 | AV4: =AT4*AU4*1.2*0.87 -> 0 | AW4: =AU4*0.975*AT4 -> 0 | AX4: =AV4-AW4 -> 0
A5: Abbott | B5: =IF(A5="","",VLOOKUP(A5,'Pharma Names'!$A$2:$B$124,2,FALSE)) -> MaryT | C5: Humira Inj Training | D5: RPh Service | E5: SAR | F5: Active | G5: 1600000 | H5: =G5/12 -> 133333.3333 | I5: =H5*8 -> 1066666.667 | J5: 2012-01-17 | K5: 2012-12-14 | L5: 2013-12-14 | R5: N/A | S5: Market Activity Report with Lantus, Victoza? Rx Advisor Data? Report broken down by all and then by program. 15th of every month | U5: 45 | V5: 0 | W5: 0 | X5: 0 | Y5: 9030 | Z5: 9150 | AA5: 59430 | AB5: 153420 | AC5: 94360 | AD5: 104770 | AE5: 102685 | AF5: 92970 | AG5: 86187.5 | AH5: 82715 | AI5: 83015 | AJ5: 90392.5 | AK5: 86402.5 | AL5: 96960 | AM5: 89557.5 | AN5: 98637.5 | AO5: 80970 | AP5: 92830 | AQ5: 75797.5 | AR5: 83497.5 | AS5: 86992.5 | AV5: 0 | AW5: 0 | AX5: 0
A6: Abbott | B6: =IF(A6="","",VLOOKUP(A6,'Pharma Names'!$A$2:$B$124,2,FALSE)) -> MaryT | C6: Humira Inj Training (Pre Bill) | D6: RPh Service | E6: SAR | F6: Completed | G6: 9000 | H6: 9000 | I6: 90000 | J6: 2011-11-01 | K6: 2011-12-31 | L6: 2011-12-31 | M6: NA | P6: 2012-01-30 | R6: N/A | S6: Need volume and $ from inception to Mfar | U6: 43 | V6: 0 | W6: 0 | X6: 0 | Y6: 0 | Z6: 0 | AA6: 0 | AV6: 0 | AW6: 0 | AX6: 0
A7: Abbott | B7: =IF(A7="","",VLOOKUP(A7,'Pharma Names'!$A$2:$B$124,2,FALSE)) -> MaryT | C7: Niaspan/Simcor IVR | D7: Adherence | E7: IVR | F7: Completed | G7: 593728 | H7: 25641.62 | I7: =IF(J7=K7,H7,(IF(DATE(2012,8,31)<K7,DATE(2012,8,31),K7)-IF(DATE(2011,9,1)>J7,DATE(2011,9,1),J7))/30*H7) -> 311973.0433 | J7: 2011-06-22 | K7: 2013-05-01 | L7: 2012-12-31 | N7: 67200 | O7: 69109 | P7: 2012-02-15 | Q7: 2012-06-30 | R7: 1924-11-22 | U7: 1 | V7: 12715.5 | W7: 26762.56 | X7: 25641.62 | Y7: 19620.98 | Z7: 27087.47 | AA7: 27087.47 | AB7: 23601.5 | AC7: 23661.84 | AD7: 23008.22 | AE7: 20478.21 | AF7: 19851.3 | AG7: 19718.72 | AH7: 18960.8 | AI7: 21546.67 | AJ7: 18846.38 | AK7: 19138 | AT7: =11*1.4*25000 -> 385000 | AU7: 4 | AV7: 1607760 | AW7: 1501500 | AX7: 106260 | AY7: (25,000 pts heard msg at 11 days)
A8: Abbott | B8: =IF(A8="","",VLOOKUP(A8,'Pharma Names'!$A$2:$B$124,2,FALSE)) -> MaryT | C8: Tricor/Trilipix IVR | D8: Adherence | E8: IVR | F8: Completed | G8: 586331 | H8: 15392.8 | I8: =IF(J8=K8,H8,(IF(DATE(2012,8,31)<K8,DATE(2012,8,31),K8)-IF(DATE(2011,9,1)>J8,DATE(2011,9,1),J8))/30*H8) -> 171373.1733 | J8: 2011-10-02 | K8: 2013-05-01 | L8: 2012-12-31 | N8: 50400 | O8: 3015 | P8: 2012-02-15 | Q8: 2012-06-30 | R8: 1925-06-10 | S8: Tricor expires 7/31/12 | U8: 2 | V8: 0 | W8: 10384.24 | X8: 15392.8 | Y8: 16097.07 | Z8: 10154.45 | AA8: 20354.45 | AB8: 18009.75 | AC8: 17556.29 | AD8: 17811.78 | AE8: 16917.27 | AF8: 17274.34 | AG8: 17690.42 | AH8: 17387.23 | AI8: 18701.53 | AJ8: 17827.76 | AK8: 17664.5 | AT8: =40000*5 -> 200000 | AU8: 4.89 | AV8: 1021032 | AW8: 953550 | AX8: 67482 | AY8: (40,000 pts at 5 days)
A9: Acurian | B9: =IF(A9="","",VLOOKUP(A9,'Pharma Names'!$A$2:$B$124,2,FALSE)) -> GregL | C9: Diabetes (DSS1) | D9: Clinical Trials | E9: DM | F9: Completed - 1T | G9: 44182 | H9: 44182 | I9: 44182 | J9: 2012-02-06 | K9: 2012-02-06 | L9: 2012-02-06 | M9: N/A | S9: W199 | U9: 47 | AA9: 44182 | AV9: 0 | AW9: 0 | AX9: 0
A10: Acurian | B10: =IF(A10="","",VLOOKUP(A10,'Pharma Names'!$A$2:$B$124,2,FALSE)) -> GregL | C10: Diabetes (DSS1) | D10: Clinical Trials | E10: DM | F10: Completed - 1T | G10: 36000 | H10: 36000 | I10: 36000 | J10: 2012-02-20 | K10: 2012-02-20 | L10: =K10 -> 2012-02-20 | M10: N/A | S10: W230 | U10: 48 | AA10: 33375 | AV10: 0 | AW10: 0 | AX10: 0
A11: Acurian | B11: =IF(A11="","",VLOOKUP(A11,'Pharma Names'!$A$2:$B$124,2,FALSE)) -> GregL | C11: Diabetes (DSS1) | D11: Clinical Trials | E11: DM | F11: Completed - 1T | G11: 90000 | H11: 90000 | I11: 90000 | J11: 2012-03-13 | K11: 2012-03-13 | L11: =K11 -> 2012-03-13 | M11: N/A | S11: W242 | U11: 52 | AB11: 87751 | AV11: 0 | AW11: 0 | AX11: 0
A12: Acurian | B12: =IF(A12="","",VLOOKUP(A12,'Pharma Names'!$A$2:$B$124,2,FALSE)) -> GregL | C12: Diabetes (DSS1) | D12: Clinical Trials | E12: DM | F12: Completed - 1T | G12: 44000 | H12: 44000 | I12: 44000 | J12: 2012-05-31 | K12: 2012-05-31 | L12: =K12 -> 2012-05-31 | M12: N/A | S12: W370 | U12: 52 | AD12: 41474 | AV12: 0 | AW12: 0 | AX12: 0
A13: Acurian | B13: =IF(A13="","",VLOOKUP(A13,'Pharma Names'!$A$2:$B$124,2,FALSE)) -> GregL | C13: Diabetic Peripheral Neuropathy (1675) | D13: Clinical Trials | E13: DM | F13: Completed - 1T | G13: 33322 | H13: 16697 | I13: 16697 | J13: 2011-10-06 | K13: 2011-10-06 | L13: =K13 -> 2011-10-06 | M13: N/A | P13: 2012-07-15 | R13: N/A | S13: 16663 + 16659 | U13: 3 | V13: 0 | W13: 16697 | X13: 0 | Y13: 0 | Z13: 0 | AV13: 0 | AW13: 0 | AX13: 0
A14: Acurian | B14: GregL | C14: Gout (2029) W4 | D14: Clinical Trials | E14: DM | F14: Completed - 1T | G14: 78000 | H14: 78000 | I14: 78000 | J14: 2012-08-24 | K14: 2013-02-20 | L14: 2012-08-27 | M14: N/A | S14: 2013-02-20 | U14: 88 | AG14: 77754 | AV14: 0 | AW14: 0 | AX14: 0 | AY14: 2013-02-20
A15: Acurian | B15: GregL | C15: IBS (1964) W11 | D15: Clinical Trials | E15: DM | F15: Completed - 1T | G15: 7300 | H15: 7300 | I15: 7300 | J15: 2012-08-23 | K15: =J15 -> 2012-08-23 | L15: 2012-08-23 | M15: N/A | S15: 2013-02-16 | U15: 89 | AG15: 7201 | AV15: =AT15*AU15*1.2*0.87 -> 0 | AW15: =AU15*0.975*AT15 -> 0 | AX15: =AV15-AW15 -> 0 | AY15: 2013-02-16
A16: Acurian | B16: GregL | C16: IBS (1964) W16 | D16: Clinical Trials | E16: DM | F16: Completed - 1T | G16: 13000 | H16: 13000 | I16: 13000 | J16: 2012-09-18 | K16: 2012-09-18 | L16: 2012-09-18 | M16: N/A | S16: 2013-02-16 | U16: 98 | AH16: 12075 | AV16: 0 | AW16: 0 | AX16: 0 | AY16: 2013-02-16
A17: Acurian | B17: GregL | C17: IBS (1964) W7 | D17: Clinical Trials | E17: DM | F17: Completed - 1T | G17: 13000 | H17: 13000 | I17: 13000 | J17: 2012-08-16 | K17: 2012-08-16 | L17: 2012-08-16 | M17: N/A | N17: 61261 | S17: 2013-02-16 | U17: 85 | AG17: 10548 | AV17: 0 | AW17: 0 | AX17: 0 | AY17: 2013-02-16
A18: Acurian | B18: =IF(A18="","",VLOOKUP(A18,'Pharma Names'!$A$2:$B$124,2,FALSE)) -> GregL | C18: MDDS2 (1848) W25 | D18: Clinical Trials | E18: DM | F18: Completed - 1T | G18: 480000 | H18: 480000 | I18: 480000 | J18: 2012-06-15 | K18: 2012-06-15 | L18: =K18 -> 2012-06-15 | M18: N/A | U18: 74 | AE18: 421234 | AV18: 0 | AW18: 0 | AX18: 0
A19: Acurian | B19: =IF(A19="","",VLOOKUP(A19,'Pharma Names'!$A$2:$B$124,2,FALSE)) -> GregL | C19: MDDS2 (1848) W40 | D19: Clinical Trials | E19: DM | F19: Completed - 1T | G19: 73000 | H19: 73000 | I19: 480000 | J19: 2012-07-27 | K19: 2012-07-27 | L19: 2012-07-27 | M19: N/A | U19: 80 | AF19: 63848 | AV19: 0 | AW19: 0 | AX19: 0
A20: Acurian | B20: GregL | C20: MDDS2 (1848) W48 | D20: Clinical Trials | E20: DM | F20: Completed - 1T | G20: 16000 | H20: 16000 | I20: 16000 | J20: 2012-08-03 | K20: 2012-08-03 | L20: 2012-08-03 | M20: N/A | U20: 84 | AG20: 15219 | AV20: 0 | AW20: 0 | AX20: 0
A21: Acurian | B21: GregL | C21: MDDS2 (1848) W80 | D21: Clinical Trials | E21: DM | F21: Completed - 1T | G21: 49000 | H21: 49000 | I21: 49000 | J21: 2012-08-13 | K21: 2012-08-13 | L21: 2012-08-13 | M21: N/A | U21: 86 | AG21: 42866 | AV21: 0 | AW21: 0 | AX21: 0
A22: Acurian | B22: GregL | C22: MDDS2 W98 | D22: Clinical Trials | E22: DM | F22: Completed - 1T | G22: 63000 | H22: 63000 | I22: 63000 | J22: 2012-08-22 | K22: 2012-08-22 | L22: 2012-08-22 | M22: N/A | U22: 88 | AG22: 62186 | AV22: 0 | AW22: 0 | AX22: 0
A23: Acurian | B23: GregL | C23: OA/RA + CV CTR (1952) | D23: Clinical Trials | E23: DM | F23: Completed - 1T | G23: 13000 | H23: 13000 | I23: 13000 | J23: 2012-07-20 | K23: =J23 -> 2012-07-20 | L23: 2012-07-20 | M23: N/A | S23: 2013-01-31 | U23: 81 | AF23: 12557 | AV23: 0 | AW23: 0 | AX23: 0
A24: Acurian | B24: =IF(A24="","",VLOOKUP(A24,'Pharma Names'!$A$2:$B$124,2,FALSE)) -> GregL | C24: OIC (1682) | D24: Clinical Trials | E24: DM | F24: Completed - 1T | G24: 75126 | H24: 75126 | I24: 75126 | J24: 2012-04-02 | K24: =J24 -> 2012-04-02 | L24: 2012-04-02 | M24: N/A | S24: 2012-10-02 | U24: 64 | AC24: 75126 | AV24: 0 | AW24: 0 | AX24: 0
A25: Acurian | B25: =IF(A25="","",VLOOKUP(A25,'Pharma Names'!$A$2:$B$124,2,FALSE)) -> GregL | C25: OIC reminder letter (1682) | D25: Clinical Trials | E25: DM | F25: Completed - 1T | G25: 36067 | H25: 36067 | I25: 36067 | J25: 2012-04-02 | K25: =J25 -> 2012-04-02 | L25: 2012-04-02 | M25: N/A | S25: 2012-10-02 | U25: 65 | AC25: 36067 | AV25: 0 | AW25: 0 | AX25: 0
A26: Acurian | B26: =IF(A26="","",VLOOKUP(A26,'Pharma Names'!$A$2:$B$124,2,FALSE)) -> GregL | C26: Rheumatoid Arthritis (1768/RAS1) | D26: Clinical Trials | E26: DM | F26: Completed - 1T | G26: 36678 | H26: 18337 | I26: 18337 | J26: 2011-10-07 | K26: 2011-10-07 | L26: 2011-10-07 | M26: N/A | P26: N/A | R26: N/A | S26: 18341 + 18337 | U26: 4 | V26: 0 | W26: 18337 | X26: 0 | Y26: 0 | Z26: 0 | AV26: 0 | AW26: 0 | AX26: 0
A27: Acurian | B27: =IF(A27="","",VLOOKUP(A27,'Pharma Names'!$A$2:$B$124,2,FALSE)) -> GregL | C27: Rheumatoid Arthritis (1768/RAS1) | D27: Clinical Trials | E27: DM | F27: Completed - 1T | G27: 11880 | H27: 11880 | I27: 11880 | J27: 2011-12-09 | K27: 2011-12-09 | L27: 2011-12-09 | M27: N/A | R27: N/A | S27: total pool = 28,538; expected mail count = 26,250 | U27: 199 | V27: 0 | W27: 0 | X27: 0 | Y27: 11880 | AV27: 0 | AW27: 0 | AX27: 0
A28: Acurian | B28: GregL | C28: OA/RA + CV/DB/SM CTR (1952) | D28: Clinical Trials | E28: DM | F28: Completed - 1T | G28: 340000 | H28: 340000 | I28: 340000 | J28: 2012-10-18 | K28: =J28 -> 2012-10-18 | L28: 2012-10-18 | M28: N/A | S28: 2013-01-31 | U28: 103 | AI28: 323067 | AJ28: 12170 | AV28: 0 | AW28: 0 | AX28: 0
A29: Acurian | B29: =IF(A29="","",VLOOKUP(A29,'Pharma Names'!$A$2:$B$124,2,FALSE)) -> GregL | C29: Crohn's (1931) W11 | D29: Clinical Trials | E29: DM | F29: Completed - 1T | G29: 15000 | H29: 15000 | I29: 15000 | J29: 2012-11-01 | K29: 2013-01-31 | L29: 2013-01-31 | M29: N/A | U29: 121 | AJ29: 15073 | AV29: 0 | AW29: 0 | AX29: 0
A30: Acurian | B30: GregL | C30: Gout (2029) W7 | D30: Clinical Trials | E30: DM | F30: Completed - 1T | G30: 78000 | H30: 78000 | I30: 78000 | J30: 2012-08-24 | K30: 2013-02-20 | U30: 154 | AK30: 60725 | AV30: 0 | AW30: 0 | AX30: 0
A31: Acurian | B31: =IF(A31="","",VLOOKUP(A31,'Pharma Names'!$A$2:$B$124,2,FALSE)) -> GregL | C31: RA (2012) W4 | D31: Clinical Trials | E31: DM | F31: Completed - 1T | G31: 20000 | H31: 20000 | I31: 20000 | J31: 2012-12-01 | K31: 2013-03-31 | L31: 2013-03-31 | U31: 155 | AK31: 19405 | AV31: 0 | AW31: 0 | AX31: 0
A32: Acurian | B32: GregL | C32: Crohn's (1931) W20 reminder | D32: Clinical Trials | E32: DM | F32: Completed - 1T | G32: 15000 | H32: 15000 | I32: 15000 | J32: 2012-11-01 | K32: 2013-01-31 | L32: 2013-01-31 | M32: N/A | U32: 156 | AK32: 14684 | AV32: 0 | AW32: 0 | AX32: 0
A33: Acurian | B33: GregL | D33: Clinical Trials | E33: DM | F33: Completed - 1T | U33: 157 | AV33: 0 | AW33: 0 | AX33: 0
A34: Acurian | B34: =IF(A34="","",VLOOKUP(A34,'Pharma Names'!$A$2:$B$124,2,FALSE)) -> GregL | C34: COPD (2013) W86 | D34: Clinical Trials | E34: DM | F34: Completed - 1T | J34: 2013-01-11 | K34: 2013-07-01 | L34: 2013-01-11 | U34: 170 | AL34: 169764 | AV34: =AT34*AU34*1.2*0.87 -> 0 | AW34: =AU34*0.975*AT34 -> 0 | AX34: =AV34-AW34 -> 0
A35: Acurian | B35: =IF(A35="","",VLOOKUP(A35,'Pharma Names'!$A$2:$B$124,2,FALSE)) -> GregL | C35: High TG (2038) W1 | D35: Clinical Trials | E35: DM | F35: Completed - 1T | J35: 2013-01-11 | K35: 2014-01-03 | L35: 2013-01-11 | U35: 171 | AL35: 28298 | AV35: =AT35*AU35*1.2*0.87 -> 0 | AW35: =AU35*0.975*AT35 -> 0 | AX35: =AV35-AW35 -> 0
A36: Acurian | B36: =IF(A36="","",VLOOKUP(A36,'Pharma Names'!$A$2:$B$124,2,FALSE)) -> GregL | C36: RA (2012) W21 | D36: Clinical Trials | E36: DM | F36: Completed - 1T | J36: 2013-01-24 | K36: 2013-03-31 | L36: 2013-01-24 | U36: 172 | AL36: 15665 | AV36: =AT36*AU36*1.2*0.87 -> 0 | AW36: =AU36*0.975*AT36 -> 0 | AX36: =AV36-AW36 -> 0
A37: Acurian | B37: =IF(A37="","",VLOOKUP(A37,'Pharma Names'!$A$2:$B$124,2,FALSE)) -> GregL | C37: Crohn's (1931) W32/33 & W41/42 | D37: Clinical Trials | E37: DM | F37: Completed - 1T | J37: 2013-01-24 | K37: 2013-01-31 | L37: 2013-01-30 | U37: 173 | AL37: 14433 | AV37: =AT37*AU37*1.2*0.87 -> 0 | AW37: =AU37*0.975*AT37 -> 0 | AX37: =AV37-AW37 -> 0
A38: Acurian | B38: =IF(A38="","",VLOOKUP(A38,'Pharma Names'!$A$2:$B$124,2,FALSE)) -> GregL | C38: COPD (2013) W201 | D38: Clinical Trials | E38: DM | F38: Completed - 1T | U38: 208 | AQ38: 151458
A39: Acurian | B39: GregL | C39: OA/RA + CV CTR (1952) W355 | D39: Clinical Trials | E39: DM | F39: Completed - 1T | U39: 209 | AR39: 59188
A40: Acurian | B40: GregL | C40: Back Pain CTR (2096) W44 | D40: Clinical Trials | E40: DM | F40: Completed - 1T | U40: 210 | AR40: 75005
A41: Alcon | B41: =IF(A41="","",VLOOKUP(A41,'Pharma Names'!$A$2:$B$124,2,FALSE)) -> JenL | C41: 90-Day - Azopt & Travatan Z | D41: 90-Day | E41: REB | F41: Active | U41: 205 | AP41: 38140 | AQ41: 18000 | AR41: 18000 | AS41: 18000
A42: Allergan | B42: =IF(A42="","",VLOOKUP(A42,'Pharma Names'!$A$2:$B$124,2,FALSE)) -> JenL | C42: Lumigan RPh Alert | D42: Education | E42: MPU | F42: Completed - 1T | G42: 25000 | H42: 25000 | I42: 25000 | U42: 160 | AK42: 25000 | AV42: 0 | AW42: 0 | AX42: 0
A43: Amylin | B43: MaryT | C43: Bydureon RPh Alert | D43: Education | E43: MPU | F43: Completed - 1T | G43: 25000 | H43: 25000 | I43: 25000 | J43: 2012-04-02 | K43: 2012-04-16 | L43: =K43 -> 2012-04-16 | S43: Published 4/25/12 | U43: 68 | AC43: 25000 | AV43: 0 | AW43: 0 | AX43: 0
A44: Amylin | B44: =IF(A44="","",VLOOKUP(A44,'Pharma Names'!$A$2:$B$124,2,FALSE)) -> MaryT | C44: Byetta | D44: Adherence | E44: DM | F44: Completed | G44: 111000 | H44: 11056.5 | I44: =IF(J44=K44,H44,(IF(DATE(2012,8,31)<K44,DATE(2012,8,31),K44)-IF(DATE(2011,9,1)>J44,DATE(2011,9,1),J44))/30*H44) -> 134520.75 | J44: 2011-07-09 | K44: 2013-02-28 | L44: 2013-03-31 | N44: 12000 | O44: 18142 | P44: 2012-01-15 | R44: 1925-01-01 | U44: 5 | V44: 11458.2 | W44: 13080.6 | X44: 11056.5 | Y44: 11823.75 | Z44: 11436.75 | AA44: 9600.75 | AB44: 0 | AC44: 6297.75 | AD44: 8012.25 | AE44: 7758 | AF44: 7731 | AG44: 7503.75 | AH44: 6842.25 | AI44: 7242.75 | AJ44: 6846.75 | AK44: 7085.25 | AL44: 6212.25 | AM44: 6423.75 | AN44: 7031.25 | AV44: 0 | AW44: 0 | AX44: 0
A45: Amylin | B45: =IF(A45="","",VLOOKUP(A45,'Pharma Names'!$A$2:$B$124,2,FALSE)) -> MaryT | C45: Adheris - Symlin | D45: Adherence | E45: DM | F45: Active | J45: 2012-12-05 | U45: 142 | AK45: 4203.84 | AL45: 4588.96 | AM45: 2794.83 | AN45: 2971.83 | AO45: 2242.59 | AP45: 1246.08 | AQ45: 0 | AV45: 0 | AW45: 0 | AX45: 0
A46: Amylin | B46: MaryT | C46: Bydureon RPh Alert (kits) | D46: Education | E46: MPU | F46: Completed - 1T | G46: 25000 | H46: 25000 | I46: 25000 | U46: 158 | AK46: 25000 | AV46: 0 | AW46: 0 | AX46: 0
A47: Aptalis | B47: TomR | C47: Rectiv MPU | D47: Education | E47: MPU | F47: Completed - 1T | G47: 25000 | H47: 25000 | I47: 25000 | J47: 2012-05-21 | K47: 2012-05-21 | L47: =K47 -> 2012-05-21 | M47: N/A | R47: N/A | U47: 70 | AD47: 25000 | AV47: 0 | AW47: 0 | AX47: 0
A48: Aptalis | B48: =IF(A48="","",VLOOKUP(A48,'Pharma Names'!$A$2:$B$124,2,FALSE)) -> ???? | C48: Viokace - RPh EDU | D48: Education | E48: MPU | F48: Completed - 1T | U48: 174 | AL48: 25000 | AV48: =AT48*AU48*1.2*0.87 -> 0 | AW48: =AU48*0.975*AT48 -> 0 | AX48: =AV48-AW48 -> 0
A49: Astellas | B49: =IF(A49="","",VLOOKUP(A49,'Pharma Names'!$A$2:$B$124,2,FALSE)) -> CathyP | C49: Vesicare | D49: Adherence | E49: DM | F49: Active | G49: 202000 | H49: =G49/12 -> 16833.33333 | I49: 202000 | J49: 2012-10-23 | K49: 2013-09-30 | U49: 108 | AI49: 21079 | AJ49: 0 | AK49: 20740.2 | AL49: 13603.2 | AM49: 13208 | AN49: 15971.8 | AO49: 7607.6 | AV49: 0 | AW49: 0 | AX49: 0 | AY49: (3,000 pts per year * 5 days
A50: Astellas | B50: =IF(A50="","",VLOOKUP(A50,'Pharma Names'!$A$2:$B$124,2,FALSE)) -> CathyP | C50: Myrbetriq MPU | D50: Education | E50: MPU | F50: Completed - 1T | U50: 221 | AR50: 25000
A51: Astellas | B51: =IF(A51="","",VLOOKUP(A51,'Pharma Names'!$A$2:$B$124,2,FALSE)) -> CathyP | C51: Astragraf XL MPU | D51: Education | E51: MPU | F51: Completed - 1T | U51: 226 | AS51: 25000
A52: AstraZeneca | B52: =IF(A52="","",VLOOKUP(A52,'Pharma Names'!$A$2:$B$124,2,FALSE)) -> VanA | C52: Crestor | D52: 90-Day | E52: PCC | F52: Completed | G52: 370000 | H52: =G52/12 -> 30833.33333 | I52: =H52*9 -> 277500 | J52: 2012-01-02 | K52: 2012-05-15 | P52: 2012-02-28 | R52: 1925-07-20 | S52: To be turned off week of 5/14/2012 due to max dollar volumne | U52: 42 | V52: 0 | W52: 0 | X52: 0 | Y52: 0 | Z52: =6689.67+53520 -> 60209.67 | AA52: 59093.62 | AB52: 51627.36 | AC52: 57589.87 | AD52: 35103.51 | AV52: 0 | AW52: 0 | AX52: 0 | AY52: (15,000 pts per year at 10 days per patient)
A53: AstraZeneca | B53: =IF(A53="","",VLOOKUP(A53,'Pharma Names'!$A$2:$B$124,2,FALSE)) -> VanA | C53: Adheris - Nexium DN | D53: Other | E53: DM | F53: Completed - 1T | J53: 2013-02-18 | U53: 182 | AN53: 47140.8 | AV53: =AT53*AU53*1.2*0.87 -> 0 | AW53: =AU53*0.975*AT53 -> 0 | AX53: =AV53-AW53 -> 0
A54: AstraZeneca | B54: VanA | C54: Adheris - Nexium DN | D54: Other | E54: DM | F54: Completed - 1T | U54: 214 | AQ54: 29005.76
A55: AstraZeneca | B55: =IF(A55="","",VLOOKUP(A55,'Pharma Names'!$A$2:$B$124,2,FALSE)) -> VanA | C55: Adheris - Crestor DN CAP mailing | D55: Other | E55: DM | F55: Completed - 1T | U55: 223 | AS55: 54600
A56: B&L | B56: =IF(A56="","",VLOOKUP(A56,'Pharma Names'!$A$2:$B$124,2,FALSE)) -> BrianS | C56: Advisory Board (6/26/13) | D56: Education | E56: Other | F56: Completed - 1T | U56: 213 | AQ56: 60000
A57: Bayer Diagnostics | B57: TomR | C57: Blood Glucose Monitoring and Catalina Messaging (Pilot) and Breeze & Contour TS | D57: Adherence | E57: DM | F57: Completed | G57: 38759 | H57: 0 | I57: =IF(J57=K57,H57,(IF(DATE(2012,8,31)<K57,DATE(2012,8,31),K57)-IF(DATE(2011,9,1)>J57,DATE(2011,9,1),J57))/30*H57) -> 0 | J57: 2011-09-01 | K57: 2012-07-31 | L57: 2012-04-30 | N57: 12500 | P57: 2012-04-15 | R57: 9200 9197 9198 9199 | S57: Terming early due to funding out | U57: 6 | V57: 0 | W57: 0 | X57: 0 | Y57: 0 | Z57: 0 | AA57: 0 | AV57: 0 | AW57: 0 | AX57: 0 | AY57: 45,000 pts per year at 10 days)
A58: Bayer Diagnostics | B58: TomR | C58: Blood Glucose Monitoring w/o Messaging (National) and Breeze and Contour TS | D58: Adherence | E58: DM | F58: Completed | G58: 246900 | H58: 65621.3 | I58: 631000 | J58: 2011-09-01 | K58: 2012-07-31 | L58: 2012-04-30 | N58: 103,000 ltrs | O58: 41628 | P58: 2012-04-15 | Q58: Too Soon | R58: 9196 | S58: Terming early due to funding out | U58: 7 | V58: 56690.4 | W58: 96742.6 | X58: 65621.3 | Y58: 54420.3 | Z58: 46349.8 | AA58: 44597 | AB58: 44385.4 | AC58: 24980.3 | AV58: 0 | AW58: 0 | AX58: 0
A59: Bayer Diagnostics | B59: TomR | C59: PSC Rebate Income | D59: PSC | E59: REB | F59: Active | G59: =5000*12 -> 60000 | H59: =G59/12 -> 5000 | J59: 2012-05-08 | K59: 2014-04-30 | L59: =K59 -> 2014-04-30 | U59: 82 | AF59: 15114.99 | AG59: 5000 | AH59: 5000 | AI59: 8000 | AJ59: 5000 | AK59: 5000 | AL59: 5000 | AM59: 8000 | AN59: 8000 | AO59: 8000 | AP59: 8000 | AQ59: 8000 | AR59: 8000 | AS59: 8000 | AV59: 0 | AW59: 0 | AX59: 0
A60: Bayer Diagnostics | B60: =IF(A60="","",VLOOKUP(A60,'Pharma Names'!$A$2:$B$124,2,FALSE)) -> ???? | C60: Adheris - Contour | D60: Adherence | E60: DM | F60: Active | J60: 2012-12-28 | U60: 128 | AK60: 614.8 | AL60: 4484.56 | AM60: 4867.5 | AN60: 8814.6 | AO60: 8588.04 | AP60: 8784.51 | AQ60: 12010 | AR60: 9487.2 | AS60: 9111.96 | AV60: 0 | AW60: 0 | AX60: 0
A61: Bayer Diagnostics | B61: =IF(A61="","",VLOOKUP(A61,'Pharma Names'!$A$2:$B$124,2,FALSE)) -> ???? | C61: Adheris - Contour CAP/nonCAP mailing | D61: Other | E61: DM | F61: Completed - 1T | J61: 2012-12-28 | U61: 152 | AK61: 136332.12 | AV61: 0 | AW61: 0 | AX61: 0
A62: BMS | B62: =IF(A62="","",VLOOKUP(A62,'Pharma Names'!$A$2:$B$124,2,FALSE)) -> CathyP | C62: Plavix 90-D | D62: 90-Day | E62: REB | F62: Completed | G62: 325000 | H62: =I62/2 -> 162500 | I62: =G62 -> 325000 | J62: 2012-01-27 | K62: 2012-03-19 | L62: =K62 -> 2012-03-19 | R62: N/A | S62: Started 2/1/12? | U62: 46 | Z62: 0 | AA62: 76000 | AB62: 46580.65 | AV62: =AT62*AU62*1.2*0.87 -> 0 | AW62: =AU62*0.975*AT62 -> 0 | AX62: =AV62-AW62 -> 0
A63: BMS | B63: =IF(A63="","",VLOOKUP(A63,'Pharma Names'!$A$2:$B$124,2,FALSE)) -> CathyP | C63: Plavix LOE Patient Communication | D63: Other | E63: DM | F63: Completed | G63: 325000 | H63: 325000 | I63: 325000 | J63: 2012-04-06 | K63: 2012-04-06 | L63: =K63 -> 2012-04-06 | M63: N/A | U63: 57 | AC63: 320857.5 | AV63: 0 | AW63: 0 | AX63: 0
A64: BMS | B64: =IF(A64="","",VLOOKUP(A64,'Pharma Names'!$A$2:$B$124,2,FALSE)) -> CathyP | C64: Plavix MPU | D64: Education | E64: MPU | F64: Completed - 1T | G64: 0 | H64: 0 | I64: 0 | J64: 2012-05-14 | K64: 2012-05-14 | L64: 2012-05-14 | M64: NA | U64: 61 | AD64: 25000 | AV64: 0 | AW64: 0 | AX64: 0
A65: Boehringer | B65: =IF(A65="","",VLOOKUP(A65,'Pharma Names'!$A$2:$B$124,2,FALSE)) -> VanA | C65: Aggrenox | D65: Adherence | E65: DM | F65: Completed | G65: 42000 | H65: 1528.8 | I65: =IF(J65=K65,H65,(IF(DATE(2012,8,31)<K65,DATE(2012,8,31),K65)-IF(DATE(2011,9,1)>J65,DATE(2011,9,1),J65))/30*H65) -> 18600.4 | J65: 2010-11-10 | K65: 2012-12-31 | L65: =K65 -> 2012-12-31 | N65: 7200 | O65: 3321 | P65: 2012-08-15 | Q65: 1.9 : 1 (6Mo) | R65: 1923-08-20 | S65: Contract with legal and BI | U65: 8 | V65: 1430.1 | W65: 1614.9 | X65: 1528.8 | Y65: 1577.1 | Z65: 1541.4 | AA65: 1323 | AB65: 1501.5 | AC65: 2364.6 | AD65: 2263.8 | AE65: 1908.9 | AF65: 1816.5 | AG65: 1822.8 | AH65: 1810.2 | AI65: 1064.7 | AJ65: 331.8 | AK65: 218.4 | AT65: =3000*5*2 -> 30000 | AU65: 2.7 | AV65: 84564 | AW65: 78975 | AX65: 5589
A66: Boehringer | B66: =IF(A66="","",VLOOKUP(A66,'Pharma Names'!$A$2:$B$124,2,FALSE)) -> VanA | C66: Pradaxa | D66: Adherence | E66: DM | F66: Completed | G66: 328750 | H66: 12749.1 | I66: =IF(J66=K66,H66,(IF(DATE(2012,8,31)<K66,DATE(2012,8,31),K66)-IF(DATE(2011,9,1)>J66,DATE(2011,9,1),J66))/30*H66) -> 148739.5 | J66: 2011-09-16 | K66: 2012-12-31 | L66: 2012-12-31 | O66: 2344 | P66: 2012-02-15 | Q66: Too Soon | R66: 9213 | S66: CAP Reporting | U66: 9 | V66: 8540.7 | W66: 8689.8 | X66: 12749.1 | Y66: 13150.2 | Z66: 12675.6 | AA66: 0 | AB66: 5363.4 | AC66: 9727.2 | AD66: 9198 | AE66: 8761.2 | AF66: 8754.9 | AG66: 8297.1 | AH66: 8202.6 | AI66: 8412.6 | AJ66: 8038.8 | AK66: 4718.7 | AT66: =15000*20 -> 300000 | AU66: 3.64 | AV66: 1140048 | AW66: 1064700 | AX66: 75348
A67: Boehringer | B67: =IF(A67="","",VLOOKUP(A67,'Pharma Names'!$A$2:$B$124,2,FALSE)) -> VanA | C67: Spiriva | D67: Adherence | E67: DM | F67: Completed | G67: 282500 | H67: 23442.3 | I67: =IF(J67=K67,H67,(IF(DATE(2012,8,31)<K67,DATE(2012,8,31),K67)-IF(DATE(2011,9,1)>J67,DATE(2011,9,1),J67))/30*H67) -> 285214.65 | J67: 2009-04-27 | K67: 2012-12-31 | L67: 2012-12-31 | N67: 40000 | O67: 110231 | P67: 2012-08-15 | Q67: 5.6 : 1 (7Mo) | R67: 1922-04-07 | U67: 10 | V67: 21260.4 | W67: 23906.4 | X67: 23442.3 | Y67: 24238.2 | Z67: 24483.9 | AA67: 7681.8 | AB67: 8828.4 | AC67: 38043.6 | AD67: 44240.7 | AE67: 40395.6 | AF67: 38360.7 | AG67: 37510.2 | AH67: 37655.1 | AI67: 40372.5 | AJ67: 40607.7 | AK67: 26077.8 | AT67: =45000*10 -> 450000 | AU67: 6.05 | AV67: 2842290 | AW67: 2654437.5 | AX67: 187852.5 | AY67: (25,000 pts * 8 days)
A68: Boehringer | B68: =IF(A68="","",VLOOKUP(A68,'Pharma Names'!$A$2:$B$124,2,FALSE)) -> VanA | C68: Adheris - Combivent | D68: Adherence | E68: DM | F68: Active | J68: 2013-01-10 | U68: 166 | AL68: 1976.64 | AM68: 2217.81 | AN68: 4088.7 | AO68: 3913.47 | AP68: 6809.19 | AQ68: 25086 | AR68: 24167.58 | AS68: 22565.73 | AV68: =AT68*AU68*1.2*0.87 -> 0 | AW68: =AU68*0.975*AT68 -> 0 | AX68: =AV68-AW68 -> 0
A69: Boehringer | B69: VanA | C69: Adheris - Combivent MDI | D69: Adherence | E69: DM | F69: Active | U69: 206 | AP69: 22693.17 | AQ69: 5469 | AR69: 483.21 | AS69: 42.48
A70: Boehringer | B70: =IF(A70="","",VLOOKUP(A70,'Pharma Names'!$A$2:$B$124,2,FALSE)) -> VanA | C70: Tradjenta/Jentaduetto MD mailing | D70: Other | E70: DM | F70: Completed - 1T | J70: 2013-02-06 | K70: 2013-04-01 | L70: 2013-02-06 | M70: NA | U70: 197 | AO70: 14038.5 | AV70: =AT70*AU70*1.2*0.87 -> 0 | AW70: =AU70*0.975*AT70 -> 0 | AX70: =AV70-AW70 -> 0
A71: Boehringer | B71: =IF(A71="","",VLOOKUP(A71,'Pharma Names'!$A$2:$B$124,2,FALSE)) -> VanA | C71: Tradjenta/Jentaduetto Patient mailing | D71: Other | E71: DM | F71: Completed - 1T | J71: 2013-02-06 | K71: 2013-04-01 | L71: 2013-02-06 | M71: NA | Q71: 0 | R71: 0 | S71: 0 | U71: 200 | AO71: 9240
A72: Boehringer | B72: =IF(A72="","",VLOOKUP(A72,'Pharma Names'!$A$2:$B$124,2,FALSE)) -> VanA | C72: Pleio - Micardis | D72: Adherence | E72: GS | F72: Active | G72: 5167 | U72: 176 | AL72: 20000 | AP72: 1143 | AQ72: 1200 | AR72: 1350 | AS72: 63 | AV72: =AT72*AU72*1.2*0.87 -> 0 | AW72: =AU72*0.975*AT72 -> 0 | AX72: =AV72-AW72 -> 0
A73: Boehringer | B73: =IF(A73="","",VLOOKUP(A73,'Pharma Names'!$A$2:$B$124,2,FALSE)) -> VanA | C73: Adheris - Pradaxa | D73: Adherence | E73: DM | F73: Active | U73: 185 | AN73: 2449.4 | AO73: 4123.65 | AP73: 3934.95 | AQ73: 4744 | AR73: 5024.6 | AS73: 5111.55 | AV73: =AT73*AU73*1.2*0.87 -> 0 | AW73: =AU73*0.975*AT73 -> 0 | AX73: =AV73-AW73 -> 0
A74: Boehringer | B74: =IF(A74="","",VLOOKUP(A74,'Pharma Names'!$A$2:$B$124,2,FALSE)) -> VanA | C74: Adheris - Spiriva | D74: Adherence | E74: DM | F74: Active | U74: 186 | AN74: 19723.11 | AO74: 29622.72 | AP74: 28727.1 | AQ74: 37647 | AR74: 37839.06 | AS74: 38516.97 | AV74: =AT74*AU74*1.2*0.87 -> 0 | AW74: =AU74*0.975*AT74 -> 0 | AX74: =AV74-AW74 -> 0
A75: Boehringer | B75: VanA | C75: Pleio - Aggrenox | D75: Adherence | E75: GS | F75: Active | U75: 217 | AR75: 540 | AS75: 108
A76: Covidien | B76: =IF(A76="","",VLOOKUP(A76,'Pharma Names'!$A$2:$B$124,2,FALSE)) -> MaryT | C76: Pennsaid RPh Alert | D76: Education | E76: MPU | F76: Completed - 1T | G76: 25000 | H76: 25000 | I76: =G76 -> 25000 | J76: =K76 -> 2012-04-16 | K76: 2012-04-16 | L76: =K76 -> 2012-04-16 | M76: NA | S76: Published on 4/2/12 | U76: 62 | AC76: 25000 | AV76: 0 | AW76: 0 | AX76: 0
A77: Daiichi Sankyo | B77: =IF(A77="","",VLOOKUP(A77,'Pharma Names'!$A$2:$B$124,2,FALSE)) -> VanA | C77: 90-Day - Benicar Family | D77: 90-Day | E77: REB | F77: Active | G77: 400000 | H77: =G77/12 -> 33333.33333 | J77: 2012-08-06 | K77: 2014-07-31 | L77: =K77 -> 2014-07-31 | S77: requires new baseline rates for year-2 | U77: 96 | AI77: 6000 | AJ77: 9000 | AK77: 9000 | AL77: 10000 | AM77: 10000 | AN77: 10000 | AO77: 20000 | AP77: 20000 | AQ77: 20000 | AR77: 20000 | AS77: 20000 | AV77: 0 | AW77: 0 | AX77: 0
A78: Daiichi Sankyo | B78: =IF(A78="","",VLOOKUP(A78,'Pharma Names'!$A$2:$B$124,2,FALSE)) -> VanA | C78: 90-Day - Welchol Family | D78: 90-Day | E78: REB | F78: Active | G78: 200000 | H78: =G78/12 -> 16666.66667 | J78: 2012-08-06 | K78: 2014-07-31 | L78: =K78 -> 2014-07-31 | S78: requires new baseline rates for year-2 | U78: 97 | AI78: 6000 | AJ78: 9000 | AK78: 9000 | AL78: 10000 | AM78: 10000 | AN78: 10000 | AO78: (see above) | AP78: (see above) | AQ78: (see above) | AV78: 0 | AW78: 0 | AX78: 0 | AY78: (25,000 pts per 6 months * 7 days
A79: Daiichi Sankyo | B79: =IF(A79="","",VLOOKUP(A79,'Pharma Names'!$A$2:$B$124,2,FALSE)) -> VanA | C79: Adheris - Azor | D79: Adherence | E79: DM | F79: Active | J79: 2012-12-21 | U79: 124 | AK79: 45684 | AL79: 7522.35 | AM79: 2478.6 | AN79: 8098.2 | AO79: 4910.4 | AP79: 4251.6 | AQ79: 5575 | AR79: 4564.8 | AS79: 4494.6 | AV79: 0 | AW79: 0 | AX79: 0
A80: Daiichi Sankyo | B80: VanA | C80: Adheris - Benicar | D80: Adherence | E80: DM | F80: Active | J80: 2013-02-01 | U80: 177 | AM80: 38067.65 | AN80: 51916.96 | AO80: 26651.53 | AP80: 19724.37 | AQ80: 25371 | AR80: 20811.54 | AS80: 20676.27 | AV80: =AT80*AU80*1.2*0.87 -> 0 | AW80: =AU80*0.975*AT80 -> 0 | AX80: =AV80-AW80 -> 0
A81: Daiichi Sankyo | B81: =IF(A81="","",VLOOKUP(A81,'Pharma Names'!$A$2:$B$124,2,FALSE)) -> VanA | C81: Adheris - Benicar HCT | D81: Adherence | E81: DM | F81: Active | J81: 2012-11-22 | U81: 125 | AJ81: 74599.32 | AK81: 82604.4 | AL81: 6906.12 | AM81: 16891.72 | AN81: 41717.22 | AO81: 29871.91 | AP81: 21932.94 | AQ81: 32484 | AR81: 24469.12 | AS81: 24457.01 | AV81: 0 | AW81: 0 | AX81: 0
A82: Daiichi Sankyo | B82: =IF(A82="","",VLOOKUP(A82,'Pharma Names'!$A$2:$B$124,2,FALSE)) -> VanA | C82: Adheris - Brovana | D82: Adherence | E82: DM | F82: Active | J82: 2012-12-19 | U82: 126 | AK82: 1289.92 | AL82: 2199.36 | AM82: 1380.6 | AN82: 1460.25 | AO82: 1180.59 | AP82: 971.73 | AQ82: 1250 | AR82: 962.88 | AS82: 150.45 | AV82: 0 | AW82: 0 | AX82: 0
A83: Daiichi Sankyo | B83: =IF(A83="","",VLOOKUP(A83,'Pharma Names'!$A$2:$B$124,2,FALSE)) -> VanA | C83: Adheris - Tribenzor | D83: Adherence | E83: DM | F83: Active | J83: 2012-12-12 | U83: 144 | AK83: 29104.2 | AL83: 20424.24 | AM83: 10779.63 | AN83: 11239.81 | AO83: 6797.17 | AP83: 6736.62 | AQ83: 9180 | AR83: 7248.7 | AS83: 7426.89 | AV83: 0 | AW83: 0 | AX83: 0
A84: Daiichi Sankyo | B84: =IF(A84="","",VLOOKUP(A84,'Pharma Names'!$A$2:$B$124,2,FALSE)) -> VanA | C84: Adheris - Welchol | D84: Adherence | E84: DM | F84: Active | J84: 2012-11-21 | U84: 146 | AJ84: 86971.15 | AK84: 44405.6 | AL84: 21044.25 | AM84: 20980.8 | AN84: 25765.2 | AO84: 15822 | AP84: 13314.6 | AQ84: 19070 | AR84: 15940.8 | AS84: 18010.8 | AV84: 0 | AW84: 0 | AX84: 0
A85: Daiichi Sankyo | B85: VanA | C85: Adheris - Azor DN | D85: Other | E85: DM | F85: Completed - 1T | U85: 222 | AR85: 29005.76
A86: Daiichi Sankyo | B86: =IF(A86="","",VLOOKUP(A86,'Pharma Names'!$A$2:$B$124,2,FALSE)) -> VanA | C86: Adheris - Edarbi/Edarbyclor CAP mailing | D86: Other | E86: DM | F86: Completed - 1T | U86: 187 | AN86: 6626.88 | AV86: =AT86*AU86*1.2*0.87 -> 0 | AW86: =AU86*0.975*AT86 -> 0 | AX86: =AV86-AW86 -> 0
A87: Daiichi Sankyo | B87: JenL | C87: Benicar - RPh EDU | D87: Education | E87: MPU | F87: Completed - 1T | G87: 25000 | H87: 25000 | I87: 25000 | J87: 2013-02-25 | K87: 2013-02-25 | L87: 2013-02-25 | M87: NA | U87: 180 | AM87: 25000 | AV87: 0 | AW87: 0 | AX87: 0
A88: Daiichi Sankyo | B88: =IF(A88="","",VLOOKUP(A88,'Pharma Names'!$A$2:$B$124,2,FALSE)) -> VanA | C88: Pleio - Welchol | D88: Adherence | E88: GS | F88: Active | U88: 189 | AN88: 559 | AO88: 6968 | AP88: 7891 | AQ88: 8000 | AR88: 10751 | AS88: 6708 | AV88: =AT88*AU88*1.2*0.87 -> 0 | AW88: =AU88*0.975*AT88 -> 0 | AX88: =AV88-AW88 -> 0
A89: Daiichi Sankyo | B89: =IF(A89="","",VLOOKUP(A89,'Pharma Names'!$A$2:$B$124,2,FALSE)) -> VanA | C89: Hypertension Franchise GoodStart | D89: Adherence | E89: GS | F89: Active | U89: 195 | AO89: 72930 | AP89: 99099 | AQ89: 99000 | AR89: 147498 | AS89: 64272 | AV89: =AT89*AU89*1.2*0.87 -> 0 | AW89: =AU89*0.975*AT89 -> 0 | AX89: =AV89-AW89 -> 0
A90: Daiichi Sankyo | B90: =IF(A90="","",VLOOKUP(A90,'Pharma Names'!$A$2:$B$124,2,FALSE)) -> VanA | C90: Azor Webkey Program | D90: Adherence | E90: DM | F90: Active | U90: 203 | AP90: 765 | AQ90: 1857.5 | AR90: 2102.5 | AS90: 1300
A91: DEY | B91: =IF(A91="","",VLOOKUP(A91,'Pharma Names'!$A$2:$B$124,2,FALSE)) -> CathyP | C91: EpiPen &Jr EDU (MPU) | D91: Education | E91: MPU | F91: Completed - 1T | G91: 25000 | H91: 20000 | I91: =H91 -> 20000 | J91: 2011-09-30 | K91: 2011-09-30 | L91: =K91 -> 2011-09-30 | M91: NA | R91: N/A | S91: Published on 9/30/11 | U91: 36 | V91: 0 | W91: 0 | X91: 20000 | Y91: 0 | Z91: 0 | AV91: 0 | AW91: 0 | AX91: 0
A92: DEY | B92: =IF(A92="","",VLOOKUP(A92,'Pharma Names'!$A$2:$B$124,2,FALSE)) -> CathyP | C92: Adheris - EpiPen &Jr reminder mailing | D92: Other | E92: DM | F92: Completed - 1T | J92: 2012-11-28 | U92: 150 | AJ92: 434807.44 | AK92: 98546.64 | AV92: 0 | AW92: 0 | AX92: 0
A93: Edgemont | B93: TomR | C93: fluoxetine 60mg MPU | D93: Education | E93: MPU | F93: Completed - 1T | G93: 25000 | H93: 25000 | I93: 25000 | J93: 2012-03-12 | K93: 2012-04-16 | L93: =K93 -> 2012-04-16 | M93: N/A | S93: Published 4/9/12 | U93: 67 | AC93: 25000 | AV93: 0 | AW93: 0 | AX93: 0
A94: Endo | B94: =IF(A94="","",VLOOKUP(A94,'Pharma Names'!$A$2:$B$124,2,FALSE)) -> CathyP | C94: Adheris - Fortesta Gel | D94: Adherence | E94: DM | F94: Active | U94: 201 | AO94: 2277.44 | AP94: 5746.4 | AQ94: 9421 | AR94: 7434.24 | AS94: 2986.72
A95: Eisai | B95: =IF(A95="","",VLOOKUP(A95,'Pharma Names'!$A$2:$B$124,2,FALSE)) -> VanA | C95: Belviq - RPh EDU | D95: Education | E95: MPU | F95: Completed - 1T | U95: 212 | AQ95: 25000
A96: Forest | B96: =IF(A96="","",VLOOKUP(A96,'Pharma Names'!$A$2:$B$124,2,FALSE)) -> CathyP | C96: Namenda XR - RPh EDU | D96: Education | E96: MPU | F96: Completed - 1T | U96: 211 | AQ96: 25000
A97: Galderma | B97: =IF(A97="","",VLOOKUP(A97,'Pharma Names'!$A$2:$B$124,2,FALSE)) -> VanA | C97: Adheris - Oracea | D97: Adherence | E97: DM | F97: Active | U97: 184 | AN97: 5286.6 | AO97: 19916.42 | AP97: 17474.26 | AQ97: 19179 | AR97: 12217.92 | AS97: 11162.38 | AV97: =AT97*AU97*1.2*0.87 -> 0 | AW97: =AU97*0.975*AT97 -> 0 | AX97: =AV97-AW97 -> 0
A98: Gilead | B98: =IF(A98="","",VLOOKUP(A98,'Pharma Names'!$A$2:$B$124,2,FALSE)) -> MaryT | C98: Truvada - Condoms | D98: Other | E98: Other | F98: Active | G98: 0 | J98: 2012-10-25 | K98: 2013-04-30 | L98: 2013-04-30 | S98: 500,000 indirect revenue | U98: 109 | AI98: 44000 | AL98: 15532.56 | AM98: 6569.18 | AN98: 5007.0092 | AO98: 6509.1 | AP98: 5024.42 | AQ98: 5005.96 | AR98: 0 | AV98: 0 | AW98: 0 | AX98: 0
A99: GSK | B99: =IF(A99="","",VLOOKUP(A99,'Pharma Names'!$A$2:$B$124,2,FALSE)) -> CathyP | C99: Advair Asthma | D99: Adherence | E99: DM | F99: Completed | G99: 667920 | H99: 40000 | I99: =IF(J99=K99,H99,(IF(DATE(2012,8,31)<K99,DATE(2012,8,31),K99)-IF(DATE(2011,9,1)>J99,DATE(2011,9,1),J99))/30*H99) -> 161333.3333 | J99: 2011-02-15 | K99: 2011-12-31 | L99: 2012-12-31 | M99: 1 | N99: 290400 | O99: 34517 | R99: 1923-06-01 | S99: GSK review 5-29 | U99: 11 | V99: 38442.45 | W99: 46194.55 | X99: 0 | Y99: 0 | Z99: 0 | AA99: 0 | AV99: 0 | AW99: 0 | AX99: 0
A100: GSK | B100: =IF(A100="","",VLOOKUP(A100,'Pharma Names'!$A$2:$B$124,2,FALSE)) -> CathyP | C100: Advair COPD | D100: Adherence | E100: DM | F100: Completed | G100: 0 | H100: 0 | I100: =IF(J100=K100,H100,(IF(DATE(2012,8,31)<K100,DATE(2012,8,31),K100)-IF(DATE(2011,9,1)>J100,DATE(2011,9,1),J100))/30*H100) -> 0 | J100: 2011-05-03 | K100: 2011-12-31 | L100: 2012-12-31 | M100: 1 | N100: 237600 | O100: 23893 | R100: 1923-06-02 | S100: GSK review 5-29 | U100: 12 | V100: 0 | W100: 0 | X100: 15168.4 | Y100: 0 | Z100: 0 | AA100: 0 | AJ100: 7918.9 | AK100: 23207 | AV100: 0 | AW100: 0 | AX100: 0
A101: GSK | B101: =IF(A101="","",VLOOKUP(A101,'Pharma Names'!$A$2:$B$124,2,FALSE)) -> CathyP | C101: Flovent HFA | D101: Adherence | E101: DM | F101: Completed | G101: 575378 | H101: 46729.8 | I101: =IF(J101=K101,H101,(IF(DATE(2012,8,31)<K101,DATE(2012,8,31),K101)-IF(DATE(2011,9,1)>J101,DATE(2011,9,1),J101))/30*H101) -> 188476.86 | J101: 2011-04-13 | K101: 2011-12-31 | L101: 2012-12-31 | M101: 1 | N101: 244841 | O101: 33482 | R101: 1923-07-11 | S101: GSK review TBD | U101: 13 | V101: 35198.8 | W101: 43609.8 | X101: 46729.8 | Y101: 42918.2 | Z101: 5077.8 | AA101: 0 | AV101: 0 | AW101: 0 | AX101: 0
A102: GSK | B102: =IF(A102="","",VLOOKUP(A102,'Pharma Names'!$A$2:$B$124,2,FALSE)) -> CathyP | C102: Lovaza | D102: Adherence | E102: DM | F102: Completed | G102: 201240 | H102: 15124.2 | I102: =IF(J102=K102,H102,(IF(DATE(2012,8,31)<K102,DATE(2012,8,31),K102)-IF(DATE(2011,9,1)>J102,DATE(2011,9,1),J102))/30*H102) -> 61000.94 | J102: 2011-05-03 | K102: 2011-12-31 | L102: 2012-12-31 | M102: 1 | N102: 77400 | O102: 18092 | R102: 1924-07-07 | S102: GSK review June | U102: 14 | V102: 15113.8 | W102: 16192.8 | X102: 15124.2 | Y102: 17368 | Z102: 18207.8 | AA102: 8689.2 | AB102: 0 | AV102: 0 | AW102: 0 | AX102: 0
A103: GSK | B103: =IF(A103="","",VLOOKUP(A103,'Pharma Names'!$A$2:$B$124,2,FALSE)) -> CathyP | C103: Vesicare | D103: Adherence | E103: DM | F103: Completed | G103: 223080 | H103: 17843.8 | I103: =H103*7 -> 124906.6 | J103: 2011-03-20 | K103: 2012-03-27 | L103: 2012-03-27 | M103: 1 | N103: 85800 | O103: 31847 | R103: 1924-05-06 | S103: Existing only due to PI Issue | U103: 15 | V103: 16021.2 | W103: 16731 | X103: 17843.8 | Y103: 16751.8 | Z103: 10350.6 | AA103: 2818.4 | AB103: 1081.6 | AT103: =25000*8 -> 200000 | AU103: 5.09 | AV103: 1062792 | AW103: 992550 | AX103: 70242
A104: GSK | B104: =IF(A104="","",VLOOKUP(A104,'Pharma Names'!$A$2:$B$124,2,FALSE)) -> CathyP | C104: Biotene MPU | D104: Education | E104: MPU | F104: Completed - 1T | U104: 227 | AS104: 25000
A105: IMS (was SDI) | B105: GregL | C105: Hypertension | D105: Clinical Trials | E105: DM | F105: Completed - 1T | G105: =28495*1.25 -> 35618.75 | H105: 35618.75 | I105: 35618.75 | J105: 2012-05-16 | K105: 2012-05-16 | L105: =K105 -> 2012-05-16 | M105: NA | U105: 71 | AD105: 35618.75 | AV105: 0 | AW105: 0 | AX105: 0
A106: J&J (Janssen) | B106: =IF(A106="","",VLOOKUP(A106,'Pharma Names'!$A$2:$B$124,2,FALSE)) -> BrianS | C106: Nucynta - RPH EDU (MPU) | D106: Education | E106: MPU | F106: Completed - 1T | G106: 25000 | H106: 25000 | I106: =H106 -> 25000 | J106: 2011-11-11 | K106: 2011-11-17 | L106: =K106 -> 2011-11-17 | M106: NA | R106: N/A | U106: 36 | V106: 0 | W106: 0 | X106: 25000 | Y106: 0 | Z106: 0 | AV106: 0 | AW106: 0 | AX106: 0
A107: J&J (Janssen) | B107: =IF(A107="","",VLOOKUP(A107,'Pharma Names'!$A$2:$B$124,2,FALSE)) -> BrianS | C107: 90-Day - Aciphex (also Eisai) | D107: 90-Day | E107: REB | F107: Active | G107: 167000 | H107: =G107/12 -> 13916.66667 | I107: =H107*2 -> 27833.33333 | J107: 2012-11-01 | K107: 2013-12-31 | L107: =K107 -> 2013-12-31 | U107: 117 | AL107: 64422.48 | AM107: 20000 | AN107: 20000 | AO107: 20000 | AP107: 13000 | AQ107: 13000 | AR107: 13000 | AS107: 13000 | AV107: 0 | AW107: 0 | AX107: 0
A108: J&J (Janssen) | B108: =IF(A108="","",VLOOKUP(A108,'Pharma Names'!$A$2:$B$124,2,FALSE)) -> BrianS | C108: Prezista RPh Alert | D108: Education | E108: MPU | F108: Completed - 1T | G108: 25000 | H108: 25000 | I108: 25000 | J108: 2012-11-26 | K108: 2012-11-26 | L108: 2012-11-26 | U108: 159 | AK108: 25000 | AV108: 0 | AW108: 0 | AX108: 0
A109: LEO Pharma | B109: =IF(A109="","",VLOOKUP(A109,'Pharma Names'!$A$2:$B$124,2,FALSE)) -> ???? | C109: Taclonex RPh Alert | D109: Education | E109: MPU | F109: Completed - 1T | G109: 25000 | H109: 25000 | I109: 25000 | U109: 161 | AK109: 25000 | AV109: 0 | AW109: 0 | AX109: 0
A110: Lilly | B110: =IF(A110="","",VLOOKUP(A110,'Pharma Names'!$A$2:$B$124,2,FALSE)) -> BrianS | C110: Cymbalta | D110: Adherence | E110: DM | F110: Completed | G110: 600000 | H110: 32060.6 | I110: =IF(J110=K110,H110,(IF(DATE(2012,8,31)<K110,DATE(2012,8,31),K110)-IF(DATE(2011,9,1)>J110,DATE(2011,9,1),J110))/30*H110) -> 96181.8 | J110: 2011-02-04 | K110: 2011-11-30 | L110: 2011-11-30 | M110: NA | O110: 44708 | Q110: 6.4 : 1 (12Mo) | R110: 1920-07-06 | S110: Will not be renewed | U110: 16 | V110: 45726.2 | W110: 48352.2 | X110: 32060.6 | Y110: 0 | Z110: 0 | AT110: =7*1.3*25000 -> 227500 | AU110: 4.97 | AV110: 1180424.7 | AW110: 1102408.125 | AX110: 78016.575
A111: Lilly | B111: =IF(A111="","",VLOOKUP(A111,'Pharma Names'!$A$2:$B$124,2,FALSE)) -> BrianS | C111: Humalog | D111: Adherence | E111: DM | F111: Completed | G111: 380000 | H111: 6546.8 | I111: =H111*11 -> 72014.8 | J111: 2010-06-17 | K111: 2011-12-31 | L111: 2012-12-31 | M111: 0.5 | Q111: 6.3 : 1 (P12MoF6) | R111: 1923-02-01 | S111: Is this being renewed | U111: 17 | V111: 0 | W111: 2854.8 | X111: 6546.8 | Y111: 7547.8 | Z111: 8015.8 | AA111: 6671.6 | AB111: 5860.4 | AC111: 6354.4 | AI111: 22168.4 | AJ111: 5077.8 | AK111: 7092.8 | AL111: 179.4 | AV111: 0 | AW111: 0 | AX111: 0
A112: Lilly | B112: =IF(A112="","",VLOOKUP(A112,'Pharma Names'!$A$2:$B$124,2,FALSE)) -> BrianS | C112: Strattera | D112: Adherence | E112: DM | F112: Completed | G112: 250000 | H112: 8338.186659 | I112: =IF(J112=K112,H112,(IF(DATE(2012,8,31)<K112,DATE(2012,8,31),K112)-IF(DATE(2011,9,1)>J112,DATE(2011,9,1),J112))/30*H112) -> 33630.68619 | J112: 2011-02-20 | K112: 2011-12-31 | L112: =K112 -> 2011-12-31 | M112: NA | O112: 8217 | Q112: 5 : 1 (p12MoF6) | R112: 1924-04-16 | S112: Current Program suspended due to lack of PI's Need Estimated Cost | U112: 18 | V112: 8093.79 | W112: 8387.58658 | X112: 8338.186659 | Y112: 3510 | Z112: 0 | AA112: 0 | AB112: 3286.4 | AV112: 0 | AW112: 0 | AX112: 0
A113: Lilly | B113: =IF(A113="","",VLOOKUP(A113,'Pharma Names'!$A$2:$B$124,2,FALSE)) -> BrianS | C113: Effient (program never started) | D113: Adherence | E113: DM | F113: Completed | U113: 168 | AL113: 20000 | AV113: =AT113*AU113*1.2*0.87 -> 0 | AW113: =AU113*0.975*AT113 -> 0 | AX113: =AV113-AW113 -> 0
A114: Lilly | B114: =IF(A114="","",VLOOKUP(A114,'Pharma Names'!$A$2:$B$124,2,FALSE)) -> BrianS | C114: Adheris - Effient | D114: Adherence | E114: DM | F114: Active | U114: 183 | AN114: 4419.75 | AO114: 31818.62 | AP114: 26868.04 | AQ114: 29566 | AR114: 17844.05 | AS114: 16216.41 | AV114: =AT114*AU114*1.2*0.87 -> 0 | AW114: =AU114*0.975*AT114 -> 0 | AX114: =AV114-AW114 -> 0
A115: Lilly | B115: =IF(A115="","",VLOOKUP(A115,'Pharma Names'!$A$2:$B$124,2,FALSE)) -> BrianS | C115: Adheris - Glucagon DN | D115: Other | E115: DM | F115: Completed - 1T | U115: 215 | AQ115: 30934.08
A116: Lilly | B116: =IF(A116="","",VLOOKUP(A116,'Pharma Names'!$A$2:$B$124,2,FALSE)) -> BrianS | C116: Adheris - Effient CAP/NoCAP mailing | D116: Other | E116: DM | F116: Completed - 1T | U116: 224 | AS116: 12867.75
A117: Meda | B117: =IF(A117="","",VLOOKUP(A117,'Pharma Names'!$A$2:$B$124,2,FALSE)) -> CathyP | C117: Dymista MPU | D117: Education | E117: MPU | F117: Completed - 1T | G117: 25000 | H117: 25000 | I117: 25000 | J117: 2012-09-24 | K117: 2012-10-08 | L117: =K117 -> 2012-10-08 | U117: 110 | AI117: 25000 | AV117: 0 | AW117: 0 | AX117: 0
A118: Medicis | B118: =IF(A118="","",VLOOKUP(A118,'Pharma Names'!$A$2:$B$124,2,FALSE)) -> MaryT | C118: Solodyn/Ziana Cash Pilot | D118: Other | E118: Other | F118: Active | G118: =150000+5000*9 -> 195000 | J118: 2012-10-23 | K118: 2013-09-30 | U118: 107 | AI118: 145000 | AM118: 0 | AN118: 1666 | AO118: 1666 | AP118: 1666 | AQ118: 1666 | AR118: 1666 | AS118: 1666 | AV118: =AT118*AU118*1.2*0.87 -> 0 | AW118: =AU118*0.975*AT118 -> 0 | AX118: =AV118-AW118 -> 0
A119: Medicis | B119: =IF(A119="","",VLOOKUP(A119,'Pharma Names'!$A$2:$B$124,2,FALSE)) -> MaryT | C119: Adheris - Solodyn reminder mailing | D119: Other | E119: DM | F119: Completed - 1T | J119: 2012-12-31 | U119: 153 | AK119: 8816 | AL119: 3332 | AV119: 0 | AW119: 0 | AX119: 0
A120: Merck | B120: =IF(A120="","",VLOOKUP(A120,'Pharma Names'!$A$2:$B$124,2,FALSE)) -> VanA | C120: Pleio - Januvia Family | D120: Adherence | E120: GS | F120: Active | G120: 183750 | H120: 22968.75 | I120: 183750 | J120: 2012-03-12 | K120: 2013-02-20 | L120: =K120 -> 2013-02-20 | U120: 53 | AB120: 9750 | AC120: 14500 | AD120: 30544.5 | AE120: 30224.25 | AF120: 29373.75 | AG120: 28502.25 | AH120: 27541.5 | AI120: 26250 | AJ120: 31463.25 | AK120: 30450 | AL120: 32949 | AM120: 32277 | AN120: 32287.5 | AO120: 30471 | AP120: 24654 | AQ120: 25000 | AR120: 8211 | AS120: 13912.5 | AV120: 0 | AW120: 0 | AX120: 0
A121: Merck | B121: =IF(A121="","",VLOOKUP(A121,'Pharma Names'!$A$2:$B$124,2,FALSE)) -> VanA | C121: Zetia & Zetia ZR | D121: Adherence | E121: DM | F121: Completed | G121: 456500 | H121: 12693.3 | I121: =IF(J121=K121,H121,(IF(DATE(2012,8,31)<K121,DATE(2012,8,31),K121)-IF(DATE(2011,9,1)>J121,DATE(2011,9,1),J121))/30*H121) -> 51196.31 | J121: 2010-08-21 | K121: 2011-12-31 | L121: =K121 -> 2011-12-31 | O121: 26276 | P121: 2011-10-15 | R121: 8338 & 8339 | S121: Is this Still Active - was it renewed | U121: 19 | V121: 11982.6 | W121: 12213.6 | X121: 12693.3 | Y121: 12883.05 | Z121: 12762.6 | AA121: 12573.75 | AB121: 12812.85 | AV121: 0 | AW121: 0 | AX121: 0
A122: Merck | B122: =IF(A122="","",VLOOKUP(A122,'Pharma Names'!$A$2:$B$124,2,FALSE)) -> VanA | C122: Adheris - Asmanex | D122: Adherence | E122: DM | F122: Active | J122: 2012-11-21 | U122: 123 | AJ122: 12017.5 | AK122: 41718.49 | AL122: 27370.64 | AM122: 22223.74 | AN122: 28007.98 | AO122: 23181.62 | AP122: 20083.14 | AQ122: 23755 | AR122: 16696.68 | AS122: 15618.68 | AV122: 0 | AW122: 0 | AX122: 0
A123: Merck | B123: =IF(A123="","",VLOOKUP(A123,'Pharma Names'!$A$2:$B$124,2,FALSE)) -> VanA | C123: Adheris - Dulera | D123: Adherence | E123: DM | F123: Active | J123: 2012-12-07 | U123: 130 | AK123: 22093.4 | AL123: 29532.4 | AM123: 22256 | AN123: 28203.2 | AO123: 24947.2 | AP123: 21408 | AQ123: 27550 | AR123: 19830.4 | AS123: 19251.2 | AV123: 0 | AW123: 0 | AX123: 0
A124: Merck | B124: =IF(A124="","",VLOOKUP(A124,'Pharma Names'!$A$2:$B$124,2,FALSE)) -> VanA | C124: Adheris - Janumet | D124: Adherence | E124: DM | F124: Active | J124: 2013-11-16 | U124: 132 | AJ124: 11016 | AK124: 10463.04 | AL124: 7393.68 | AM124: 451.22 | AN124: 420.42 | AO124: 4860.59 | AP124: 3593.52 | AQ124: 5889 | AR124: 7117.81 | AS124: 7917.98 | AV124: 0 | AW124: 0 | AX124: 0
A125: Merck | B125: =IF(A125="","",VLOOKUP(A125,'Pharma Names'!$A$2:$B$124,2,FALSE)) -> VanA | C125: Adheris - Janumet XR | D125: Adherence | E125: DM | F125: Active | J125: 2012-11-16 | U125: 133 | AJ125: 3833.06 | AK125: 518.32 | AL125: 599.83 | AM125: 5325.88 | AN125: 5797.61 | AO125: 368.06 | AP125: 328.02 | AQ125: 1263 | AR125: 2063.6 | AS125: 2684.22 | AV125: 0 | AW125: 0 | AX125: 0
A126: Merck | B126: =IF(A126="","",VLOOKUP(A126,'Pharma Names'!$A$2:$B$124,2,FALSE)) -> VanA | C126: Adheris - Januvia | D126: Adherence | E126: DM | F126: Active | J126: 2012-11-20 | U126: 134 | AJ126: 77656.04 | AK126: 19990.85 | AL126: 15664.55 | AM126: 11265.1 | AN126: 13002.22 | AO126: 11477.62 | AP126: 8044.96 | AQ126: 14048 | AR126: 17924.06 | AS126: 20428.1 | AV126: 0 | AW126: 0 | AX126: 0
A127: Merck | B127: =IF(A127="","",VLOOKUP(A127,'Pharma Names'!$A$2:$B$124,2,FALSE)) -> VanA | C127: Adheris - Juvisync | D127: Adherence | E127: DM | F127: Active | J127: 2012-12-01 | U127: 135 | AK127: 48.07 | AL127: 33.44 | AM127: 16.94 | AN127: 20.02 | AO127: 15.4 | AP127: 35.42 | AQ127: 33 | AR127: 36.96 | AS127: 35.42 | AV127: 0 | AW127: 0 | AX127: 0
A128: Merck | B128: =IF(A128="","",VLOOKUP(A128,'Pharma Names'!$A$2:$B$124,2,FALSE)) -> VanA | C128: Adheris - Nasonex | D128: Adherence | E128: DM | F128: Active | J128: 2012-11-21 | U128: 139 | AJ128: 120401.61 | AK128: 197996.15 | AL128: 180321.02 | AM128: 119422.38 | AN128: 132895.84 | AO128: 115926.58 | AP128: 95832.66 | AQ128: 104456 | AR128: 76710.48 | AS128: 13260.94 | AV128: 0 | AW128: 0 | AX128: 0
A129: Merck | B129: =IF(A129="","",VLOOKUP(A129,'Pharma Names'!$A$2:$B$124,2,FALSE)) -> VanA | C129: Adheris - Saphris | D129: Adherence | E129: DM | F129: Active | J129: 2012-12-01 | U129: 141 | AK129: 15302.98 | AL129: 8504.21 | AM129: 5551.7 | AN129: 6095.32 | AO129: 5199.04 | AP129: 2500.96 | AQ129: 3776 | AR129: 3501.96 | AS129: 3361.82 | AV129: 0 | AW129: 0 | AX129: 0
A130: Merck | B130: =IF(A130="","",VLOOKUP(A130,'Pharma Names'!$A$2:$B$124,2,FALSE)) -> VanA | C130: Adheris - Vytorin | D130: Adherence | E130: DM | F130: Active | J130: 2012-11-16 | U130: 145 | AJ130: 53660.88 | AK130: 90793.44 | AL130: 39847.68 | AM130: 31478.72 | AN130: 32227.37 | AO130: 28963.9 | AP130: 19642 | AQ130: 22322 | AR130: 16660.28 | AS130: 17349.36 | AV130: 0 | AW130: 0 | AX130: 0
A131: Merck | B131: =IF(A131="","",VLOOKUP(A131,'Pharma Names'!$A$2:$B$124,2,FALSE)) -> VanA | C131: Adheris - Zetia | D131: Adherence | E131: DM | F131: Active | J131: 2012-11-10 | U131: 147 | AJ131: 72084.1 | AK131: 104840.67 | AL131: 64547.28 | AM131: 48900.53 | AN131: 53622.66 | AO131: 48089.09 | AP131: 34553.82 | AQ131: 39283 | AR131: 30144.03 | AS131: 34091.75 | AV131: 0 | AW131: 0 | AX131: 0
A132: Merck | B132: VanA | C132: Pleio - Liptruzet | D132: Adherence | E132: GS | F132: Active | U132: 218 | AR132: 866.25 | AS132: 420
A133: Merck | B133: VanA | C133: Pleio - Vytorin | D133: Adherence | E133: GS | F133: Active | U133: 219 | AR133: 5066.25 | AS133: 3496.5
A134: Merck | B134: VanA | C134: Pleio - Zetia | D134: Adherence | E134: GS | F134: Active | U134: 220 | AR134: 19603.5 | AS134: 9612.75
A135: Mylan Specialty | B135: =IF(A135="","",VLOOKUP(A135,'Pharma Names'!$A$2:$B$124,2,FALSE)) -> CathyP | C135: EpiPen Well Experience Pilot Program | D135: Marketing | E135: Other | F135: Completed - 1T | U135: 190 | AN135: 15000 | AV135: =AT135*AU135*1.2*0.87 -> 0 | AW135: =AU135*0.975*AT135 -> 0 | AX135: =AV135-AW135 -> 0
A136: Mylan Specialty | B136: =IF(A136="","",VLOOKUP(A136,'Pharma Names'!$A$2:$B$124,2,FALSE)) -> CathyP | C136: Adheris - EpiPen &Jr CAP/NoCAP mailing | D136: Other | E136: DM | F136: Completed - 1T | U136: 225 | AS136: 127049.52
A137: Nipro | B137: TomR | C137: PSC Rebate Income | D137: PSC | E137: REB | F137: Active | G137: =H137*12 -> 180000 | H137: =AH137 -> 15000 | J137: 2012-03-27 | K137: 2014-03-14 | L137: =K137 -> 2014-03-14 | U137: 83 | AF137: 46482.83 | AG137: 15000 | AH137: 15000 | AI137: 20000 | AJ137: 15000 | AK137: 15000 | AL137: 15000 | AM137: 20000 | AN137: 20000 | AO137: 20000 | AP137: 20000 | AQ137: 20000 | AR137: 20000 | AS137: 20000 | AV137: 0 | AW137: 0 | AX137: 0
A138: Novartis | B138: Jen L | C138: Arcapta RPh Alert | D138: Education | E138: MPU | F138: Completed - 1T | G138: 25000 | H138: 25000 | I138: 25000 | J138: 2012-03-26 | K138: 2012-03-26 | L138: =K138 -> 2012-03-26 | M138: N/A | S138: Published on 3/26/12 | U138: 66 | AC138: 25000 | AV138: 0 | AW138: 0 | AX138: 0
A139: Novartis | B139: =IF(A139="","",VLOOKUP(A139,'Pharma Names'!$A$2:$B$124,2,FALSE)) -> JenL | C139: CV products 30 to 90 day | D139: 90-Day | E139: PCC | F139: Completed | G139: 451000 | H139: 6000 | I139: 120000 | J139: 2011-06-15 | K139: 2012-01-15 | L139: =K139 -> 2012-01-15 | N139: 75300 | O139: 8349 | R139: 1924-12-12 | S139: Non Diovan only after 11/30/11 | U139: 20 | V139: 26400 | W139: 41448 | X139: 30384 | Y139: 5400 | Z139: 7080 | AV139: 0 | AW139: 0 | AX139: 0
A140: Novartis | B140: =IF(A140="","",VLOOKUP(A140,'Pharma Names'!$A$2:$B$124,2,FALSE)) -> JenL | C140: Diovan & HCT 90D Rebate Program | D140: 90-Day | E140: REB | F140: Completed | G140: =130000*10 -> 1300000 | H140: =G140/10 -> 130000 | I140: =IF(J140=K140,H140,(IF(DATE(2012,8,31)<K140,DATE(2012,8,31),K140)-IF(DATE(2011,9,1)>J140,DATE(2011,9,1),J140))/30*H140) -> 1157000 | J140: 2011-12-08 | K140: 2012-09-30 | L140: 2012-09-30 | M140: NA | R140: N/A | U140: 39 | V140: 0 | W140: 0 | X140: 0 | Y140: 130000 | Z140: 130000 | AA140: 130000 | AB140: 130000 | AC140: 113000 | AD140: 100000 | AE140: 100000 | AF140: 100000 | AG140: 100000 | AH140: 100000 | AV140: 0 | AW140: 0 | AX140: 0
A141: Novartis | B141: =IF(A141="","",VLOOKUP(A141,'Pharma Names'!$A$2:$B$124,2,FALSE)) -> JenL | C141: Diovan HCT | D141: Adherence | E141: DM | F141: Completed | G141: 324137 | H141: 27039.1 | I141: =IF(J141=K141,H141,(IF(DATE(2012,8,31)<K141,DATE(2012,8,31),K141)-IF(DATE(2011,9,1)>J141,DATE(2011,9,1),J141))/30*H141) -> 81117.3 | J141: 2011-04-06 | K141: 2011-11-30 | M141: 1 | N141: 44100 | O141: 25383 | R141: 1924-07-25 | U141: 21 | V141: 32352.45 | W141: 35579 | X141: 27039.1 | Y141: 0 | Z141: 0 | AA141: 0 | AV141: 0 | AW141: 0 | AX141: 0
A142: Novartis | B142: JenL | C142: Diovan/Diovan HTC LOE | D142: Other | E142: Other | F142: Completed - 1T | G142: 348000 | H142: 348000 | I142: 348000 | J142: 2012-06-15 | K142: 2012-06-15 | L142: 2012-06-15 | M142: N/A | S142: waiting on internal communiciation | U142: 75 | AE142: 311280.2 | AV142: 0 | AW142: 0 | AX142: 0
A143: Novartis | B143: =IF(A143="","",VLOOKUP(A143,'Pharma Names'!$A$2:$B$124,2,FALSE)) -> JenL | C143: Exelon - RPh EDU | D143: Education | E143: MPU | F143: Completed - 1T | G143: 25000 | H143: 25000 | I143: 25000 | J143: 2012-10-29 | K143: 2012-10-29 | L143: 2012-10-29 | M143: NA | U143: 179 | AM143: 25000 | AV143: =AT143*AU143*1.2*0.87 -> 0 | AW143: =AU143*0.975*AT143 -> 0 | AX143: =AV143-AW143 -> 0
A144: Novartis | B144: =IF(A144="","",VLOOKUP(A144,'Pharma Names'!$A$2:$B$124,2,FALSE)) -> JenL | C144: 90-Day - Exforge Family | D144: 90-Day | E144: REB | F144: Active | G144: 300000 | H144: =G144/12 -> 25000 | I144: =H144*4 -> 100000 | J144: 2012-04-25 | K144: 2013-12-31 | L144: =K144 -> 2013-12-31 | U144: 69 | AD144: 20000 | AE144: 20000 | AF144: 20000 | AG144: 20000 | AH144: 20000 | AI144: 16000 | AJ144: 20000 | AK144: 20000 | AL144: 16000 | AM144: 16000 | AN144: 16000 | AO144: 16000 | AP144: 16000 | AQ144: 16000 | AR144: 16000 | AS144: 16000 | AV144: 0 | AW144: 0 | AX144: 0
A145: Novartis | B145: =IF(A145="","",VLOOKUP(A145,'Pharma Names'!$A$2:$B$124,2,FALSE)) -> JenL | C145: Exforge/Exforge HCT | D145: Adherence | E145: DM | F145: Completed | G145: 277000 | H145: =G145/12 -> 23083.33333 | I145: =H145*9 -> 207750 | J145: 2012-03-12 | K145: 2012-09-30 | L145: 2012-09-30 | R145: 9353,9354,9394,9395 | U145: 41 | V145: 0 | W145: 0 | X145: 0 | Y145: 0 | Z145: 0 | AA145: 0 | AB145: 11833 | AC145: 6749.2 | AD145: 9237.85 | AE145: 9623.25 | AF145: 10243.65 | AG145: 10095.6 | AH145: 10253.05 | AI145: 6786.8 | AV145: 0 | AW145: 0 | AX145: 0
A146: Novartis | B146: =IF(A146="","",VLOOKUP(A146,'Pharma Names'!$A$2:$B$124,2,FALSE)) -> JenL | C146: LCQ908 CV Risk CTR pilot mail/Catalina | D146: Clinical Trials | E146: DM | F146: Completed - 1T | G146: 6000 | H146: 6000 | I146: 6000 | J146: 2012-07-29 | K146: 2012-07-29 | L146: 2012-07-29 | M146: N/A | U146: 76 | AF146: 1750 | AG146: 1750 | AV146: 0 | AW146: 0 | AX146: 0
A147: Novartis | B147: TomR | C147: COPD Registry Data | D147: Clinical Trials | E147: Data | F147: Completed - 1T | G147: 4000 | H147: 4000 | I147: 4000 | J147: 2012-10-15 | K147: =J147 -> 2012-10-15 | L147: 2012-10-15 | U147: 99 | AV147: 0 | AW147: 0 | AX147: 0
A148: Novartis | B148: TomR | C148: RA AIN Data | D148: Clinical Trials | E148: Data | F148: Completed - 1T | G148: 20000 | H148: 4000 | I148: 4000 | J148: 2012-10-15 | K148: 2012-10-15 | L148: 2012-10-15 | U148: 100 | AV148: 0 | AW148: 0 | AX148: 0
A149: Novartis | B149: TomR | C149: COPD Low Dose Data | D149: Clinical Trials | E149: Data | F149: Completed - 1T | G149: 20000 | H149: 4000 | I149: 4000 | J149: 2012-10-15 | K149: 2012-10-15 | L149: 2012-10-15 | U149: 101 | AV149: 0 | AW149: 0 | AX149: 0
A150: Novartis | B150: =IF(A150="","",VLOOKUP(A150,'Pharma Names'!$A$2:$B$124,2,FALSE)) -> JenL | C150: COPD NVA-QVA Low Dose | D150: Clinical Trials | E150: Data | F150: Completed - 1T | G150: 20000 | H150: =G150 -> 20000 | I150: 20000 | J150: 2012-11-15 | K150: 2012-11-15 | L150: 2012-11-15 | U150: 114 | AI150: 20000 | AV150: 0 | AW150: 0 | AX150: 0
A151: Novartis | B151: =IF(A151="","",VLOOKUP(A151,'Pharma Names'!$A$2:$B$124,2,FALSE)) -> JenL | C151: RA AIN-F Study Data | D151: Clinical Trials | E151: Data | F151: Completed - 1T | G151: 20000 | H151: 20000 | I151: 20000 | J151: 2012-11-15 | K151: 2012-11-15 | L151: 2012-11-15 | U151: 115 | AI151: 20000 | AV151: 0 | AW151: 0 | AX151: 0
A152: Novartis | B152: =IF(A152="","",VLOOKUP(A152,'Pharma Names'!$A$2:$B$124,2,FALSE)) -> JenL | C152: COPD Registry Data | D152: Clinical Trials | E152: Data | F152: Completed - 1T | G152: 4000 | H152: 4000 | I152: 4000 | J152: 2012-11-15 | K152: 2012-11-15 | L152: 2012-11-15 | U152: 116 | AI152: 4000 | AV152: 0 | AW152: 0 | AX152: 0
A153: Novartis | B153: =IF(A153="","",VLOOKUP(A153,'Pharma Names'!$A$2:$B$124,2,FALSE)) -> JenL | C153: Adheris - Exforge &HCT Cap/nonCAP mailing | D153: Other | E153: DM | F153: Completed - 1T | J153: 2012-12-21 | U153: 151 | AK153: 40102.11 | AV153: 0 | AW153: 0 | AX153: 0
A154: Novartis | B154: JenL | C154: Exforge & HCT CAP/nonCAP mailing | D154: Other | E154: DM | F154: Completed - 1T | U154: 216 | AQ154: 40102.11
A155: Novo Nordisk | B155: =IF(A155="","",VLOOKUP(A155,'Pharma Names'!$A$2:$B$124,2,FALSE)) -> MaryT | C155: Levemir Flexpen GoodStart | D155: Adherence | E155: GS | F155: Completed | G155: 337315 | H155: 23244 | I155: =IF(J155=K155,H155,(IF(DATE(2012,8,31)<K155,DATE(2012,8,31),K155)-IF(DATE(2011,9,1)>J155,DATE(2011,9,1),J155))/30*H155) -> 282802 | J155: 2011-07-26 | K155: 2012-12-31 | L155: 2013-12-31 | N155: 8085 | O155: 1434 | P155: 2012-02-28 | R155: 1924-05-27 | S155: In renewal | U155: 22 | V155: 32283 | W155: 28704 | X155: 23244 | Y155: 30966 | Z155: 29952 | AA155: 27924 | AB155: 39975 | AC155: 25311 | AD155: 27339 | AE155: 23127 | AF155: 24882 | AG155: 21216 | AH155: 19890 | AI155: 19500 | AJ155: 21255 | AK155: 11193 | AL155: 0 | AV155: 0 | AW155: 0 | AX155: 0
A156: Novo Nordisk | B156: =IF(A156="","",VLOOKUP(A156,'Pharma Names'!$A$2:$B$124,2,FALSE)) -> MaryT | C156: Levemir Vial (all) & Flexpen NNTT (Vial only after 11/2011) | D156: Adherence | E156: DM | F156: Completed | G156: 204500 | H156: 17810 | I156: =9685+7050 -> 16735 | J156: 2009-11-24 | K156: 2011-12-31 | L156: 2012-01-05 | M156: 0 | N156: 19320 | O156: 63127 | R156: 9193 & 9194 | U156: 23 | V156: =9685+7050 -> 16735 | W156: 0 | X156: =17810+13440 -> 31250 | Y156: =6632.5+9100 -> 15732.5 | Z156: 12682.5 | AA156: 7710 | AB156: 4607.5 | AC156: 1347.5 | AD156: 2225 | AE156: 1732.5 | AF156: 1600 | AV156: 0 | AW156: 0 | AX156: 0
A157: Novo Nordisk | B157: =IF(A157="","",VLOOKUP(A157,'Pharma Names'!$A$2:$B$124,2,FALSE)) -> MaryT | C157: Novolog Flexpen GoodStart (NTT) | D157: Adherence | E157: GS | F157: Completed | G157: 327760 | H157: 33540 | I157: =IF(J157=K157,H157,(IF(DATE(2012,8,31)<K157,DATE(2012,8,31),K157)-IF(DATE(2011,9,1)>J157,DATE(2011,9,1),J157))/30*H157) -> 408070 | J157: 2011-06-17 | K157: 2012-12-31 | L157: 2013-12-31 | N157: 7840 | O157: =1362+1095+1074 -> 3531 | P157: 2012-01-31 | R157: 1924-10-13 | S157: In renewal | U157: 24 | V157: 29796 | W157: 32799 | X157: 33540 | Y157: 37908 | Z157: 39663 | AA157: 42393 | AB157: 28275 | AC157: 38766 | AD157: 37869 | AE157: 31629 | AF157: 31902 | AG157: 25272 | AH157: 22737 | AI157: 21450 | AJ157: 34710 | AK157: 19227 | AL157: 0 | AV157: =AT157*AU157*1.2*0.87 -> 0 | AW157: =AU157*0.975*AT157 -> 0 | AX157: =AV157-AW157 -> 0
A158: Novo Nordisk | B158: =IF(A158="","",VLOOKUP(A158,'Pharma Names'!$A$2:$B$124,2,FALSE)) -> MaryT | C158: Novolog Flexpen NNTT | D158: Adherence | E158: DM | F158: Completed | G158: 357500 | H158: 6507.5 | I158: 6005 | J158: 2010-08-06 | K158: 2011-09-30 | L158: =K158 -> 2011-09-30 | M158: 0 | N158: 50000 | O158: 40323 | R158: 1923-03-13 | U158: 25 | V158: 6005 | W158: 0 | X158: 6507.5 | Y158: 0 | AV158: 0 | AW158: 0 | AX158: 0
A159: Novo Nordisk | B159: =IF(A159="","",VLOOKUP(A159,'Pharma Names'!$A$2:$B$124,2,FALSE)) -> MaryT | C159: PSC Rebate - Preferred Insulin | D159: PSC | E159: REB | F159: Active | G159: =H159*12 -> 1002892.485 | H159: 83574.37375 | I159: =G159*10/12 -> 835743.7375 | J159: 2011-10-01 | K159: 2012-12-31 | L159: 2013-12-31 | R159: N/A | U159: 26 | V159: 0 | W159: 72960 | X159: 83574.37375 | Y159: 83500 | Z159: 83500 | AA159: 83500 | AB159: 83500 | AC159: 83500 | AD159: 120000 | AE159: 120000 | AF159: 120000 | AG159: 120000 | AH159: 120000 | AI159: 130000 | AJ159: 120000 | AK159: 120000 | AL159: 140000 | AM159: 140000 | AN159: 140000 | AO159: 140000 | AP159: 150000 | AQ159: 150000 | AR159: 150000 | AS159: 150000 | AV159: 0 | AW159: 0 | AX159: 0
A160: Novo Nordisk | B160: =IF(A160="","",VLOOKUP(A160,'Pharma Names'!$A$2:$B$124,2,FALSE)) -> MaryT | C160: Victoza injection training | D160: RPh Service | E160: INJ TR | F160: Active | G160: 876600 | H160: 32700 | I160: =IF(J160=K160,H160,(IF(DATE(2012,8,31)<K160,DATE(2012,8,31),K160)-IF(DATE(2011,9,1)>J160,DATE(2011,9,1),J160))/30*H160) -> 397850 | J160: 2011-05-02 | K160: 2012-12-31 | L160: 2013-12-31 | N160: 27000 | O160: 5203 | P160: 2012-02-15 | R160: N/A | U160: 27 | V160: 49200 | W160: 33504 | X160: 32700 | Y160: 32700 | Z160: 40524 | AA160: 41892 | AB160: 46800 | AC160: 41604 | AD160: 48024 | AE160: 46152 | AF160: 48708 | AG160: 49908 | AH160: 48000 | AI160: 44868 | AJ160: 55668 | AK160: 23892 | AL160: 50400 | AM160: 47844 | AN160: 53376 | AO160: 48240 | AP160: 67963.5 | AQ160: 58818.6 | AR160: 40584 | AS160: 55589 | AV160: 0 | AW160: 0 | AX160: 0
A161: Novo Nordisk | B161: MaryT | C161: Victoza Enhancements | D161: Adherence | E161: DM | F161: Completed - 1T | G161: 0 | H161: 0 | I161: 0 | J161: 2012-11-01 | K161: 2012-12-31 | L161: 2013-12-31 | U161: 112 | AV161: 0 | AW161: 0 | AX161: 0
A162: Novo Nordisk | B162: =IF(A162="","",VLOOKUP(A162,'Pharma Names'!$A$2:$B$124,2,FALSE)) -> MaryT | C162: Pleio - Levemir | D162: Adherence | E162: GS | F162: Active | U162: 194 | AO162: 44109 | AP162: 18356 | AQ162: 20000 | AS162: 5500 | AV162: =AT162*AU162*1.2*0.87 -> 0 | AW162: =AU162*0.975*AT162 -> 0 | AX162: =AV162-AW162 -> 0
A163: Pfizer | B163: =IF(A163="","",VLOOKUP(A163,'Pharma Names'!$A$2:$B$124,2,FALSE)) -> JenL | C163: Chantix | D163: Adherence | E163: DM | F163: Completed | G163: 300000 | H163: 12228.05 | I163: =IF(J163=K163,H163,(IF(DATE(2012,8,31)<K163,DATE(2012,8,31),K163)-IF(DATE(2011,9,1)>J163,DATE(2011,9,1),J163))/30*H163) -> 39537.36167 | J163: 2011-05-22 | K163: 2011-12-07 | L163: =K163 -> 2011-12-07 | M163: NA | N163: 55000 | O163: 56840 | R163: 1924-07-05 | U163: 28 | V163: 59742.6 | W163: 57882.85 | X163: 12228.05 | Y163: 0 | Z163: 0 | AA163: 0 | AV163: 0 | AW163: 0 | AX163: 0
A164: Pfizer | B164: =IF(A164="","",VLOOKUP(A164,'Pharma Names'!$A$2:$B$124,2,FALSE)) -> JenL | C164: Geodon LOE mailing | D164: Other | E164: Other | F164: Completed - 1T | G164: 49000 | H164: 49000 | I164: 49000 | J164: =K164 -> 2012-03-02 | K164: 2012-03-02 | L164: =K164 -> 2012-03-02 | M164: NA | U164: 63 | AV164: 0 | AW164: 0 | AX164: 0
A165: Pfizer | B165: =IF(A165="","",VLOOKUP(A165,'Pharma Names'!$A$2:$B$124,2,FALSE)) -> JenL | C165: Lipitor 30 to 90 day | D165: 90-Day | E165: REB | F165: Completed | G165: 18000 | H165: 13884 | I165: 18000 | J165: 2011-09-07 | K165: 2011-11-30 | L165: 2011-11-22 | M165: NA | O165: 611 | R165: 1925-04-11 | S165: Enrollment ended 11/5/11;calls ended 11/22/11 | U165: 29 | V165: 0 | W165: 18816 | X165: 13884 | Y165: 0 | Z165: 0 | AA165: 0 | AV165: 0 | AW165: 0 | AX165: 0
A166: Pfizer | B166: JenL | C166: Lipitor LOE - Pt Edu | D166: Other | E166: Other | F166: Completed - 1T | G166: 1000000 | H166: 887516 | I166: 887516 | J166: 2011-11-01 | K166: 2011-11-30 | L166: 2011-11-30 | M166: NA | N166: 2813-07-11 | O166: 2813-07-11 | P166: NA | Q166: NA | R166: N/A | S166: Mailing completed 11/29 & 11/30 | U166: 38 | V166: 0 | W166: 0 | X166: 887516 | Y166: 0 | Z166: 0 | AA166: 0 | AV166: 0 | AW166: 0 | AX166: 0
A167: Pfizer | B167: =IF(A167="","",VLOOKUP(A167,'Pharma Names'!$A$2:$B$124,2,FALSE)) -> JenL | C167: Lipitor/Detrol LA/Lyrica - NJ, OK-C | D167: RPh Service | E167: ADH | F167: Completed | G167: 0 | H167: 0 | I167: =IF(J167=K167,H167,(IF(DATE(2012,8,31)<K167,DATE(2012,8,31),K167)-IF(DATE(2011,9,1)>J167,DATE(2011,9,1),J167))/30*H167) -> 0 | J167: 2010-08-10 | K167: 2011-12-31 | L167: 2011-12-31 | M167: 0 | R167: N/A | S167: Is this termed? | U167: 30 | V167: 0 | W167: 0 | X167: 0 | Y167: 0 | Z167: 0 | AA167: 0 | AV167: 0 | AW167: 0 | AX167: 0
A168: Pfizer | B168: =IF(A168="","",VLOOKUP(A168,'Pharma Names'!$A$2:$B$124,2,FALSE)) -> JenL | C168: Pleio - Lipitor | D168: Adherence | E168: GS | F168: Active | U168: 120 | AJ168: 23097.5 | AK168: 19315 | AL168: 25487.5 | AM168: 8102.5 | AN168: 4150 | AO168: 2477.5 | AP168: 4030 | AQ168: 3652.5 | AR168: 400 | AS168: 0 | AV168: 0 | AW168: 0 | AX168: 0
A169: Pfizer | B169: =IF(A169="","",VLOOKUP(A169,'Pharma Names'!$A$2:$B$124,2,FALSE)) -> JenL | C169: Adheris - Celebrex | D169: Adherence | E169: DM | F169: Active | J169: 2012-11-20 | U169: 127 | AJ169: 10870.6 | AK169: 43690.51 | AL169: 53063.72 | AM169: 41127.6 | AN169: 50246.64 | AO169: 45168.69 | AP169: 30744.09 | AQ169: 41942 | AR169: 33605.4 | AS169: 31716.75 | AV169: 0 | AW169: 0 | AX169: 0
A170: Pfizer | B170: =IF(A170="","",VLOOKUP(A170,'Pharma Names'!$A$2:$B$124,2,FALSE)) -> JenL | C170: Adheris - Detrol LA | D170: Adherence | E170: DM | F170: Active | J170: 2012-11-22 | U170: 129 | AJ170: 1304.02 | AK170: 6517.84 | AL170: 9846.82 | AM170: 7946.37 | AN170: 10810.62 | AO170: 9030.51 | AP170: 7823.25 | AQ170: 10931 | AR170: 8538.03 | AS170: 8659.44 | AV170: 0 | AW170: 0 | AX170: 0
A171: Pfizer | B171: =IF(A171="","",VLOOKUP(A171,'Pharma Names'!$A$2:$B$124,2,FALSE)) -> JenL | C171: Adheris - Lyrica | D171: Adherence | E171: DM | F171: Active | J171: 2012-12-29 | U171: 137 | AK171: 2316.02 | AL171: 57313.34 | AM171: 73316.42 | AN171: 99259.92 | AO171: 91951.24 | AP171: 58768.48 | AQ171: 76480 | AR171: 74108.52 | AS171: 77743.28 | AV171: 0 | AW171: 0 | AX171: 0
A172: Pfizer | B172: =IF(A172="","",VLOOKUP(A172,'Pharma Names'!$A$2:$B$124,2,FALSE)) -> JenL | C172: Adheris - Toviaz | D172: Adherence | E172: DM | F172: Active | J172: 2012-12-01 | U172: 143 | AK172: 22362.7 | AL172: 20062.02 | AM172: 12424.86 | AN172: 11787.03 | AO172: 9769.23 | AP172: 7789.05 | AQ172: 10243 | AR172: 8158.41 | AS172: 8467.92 | AV172: 0 | AW172: 0 | AX172: 0
A173: Pfizer | B173: =IF(A173="","",VLOOKUP(A173,'Pharma Names'!$A$2:$B$124,2,FALSE)) -> JenL | C173: Chantix Surround Sound | D173: Marketing | E173: Other | F173: Active | U173: 181 | AN173: 1132852.5 | AO173: 614631 | AP173: 0 | AQ173: 973813.5 | AV173: =AT173*AU173*1.2*0.87 -> 0 | AW173: =AU173*0.975*AT173 -> 0 | AX173: =AV173-AW173 -> 0
A174: Salix | B174: =IF(A174="","",VLOOKUP(A174,'Pharma Names'!$A$2:$B$124,2,FALSE)) -> CathyP | C174: Pleio - Apriso | D174: Adherence | E174: GS | F174: Active | U174: 202 | AP174: 3198 | AQ174: 3500 | AR174: 3120 | AS174: 2288
A175: Salix | B175: =IF(A175="","",VLOOKUP(A175,'Pharma Names'!$A$2:$B$124,2,FALSE)) -> CathyP | C175: Pleio - Xifaxan | D175: Adherence | E175: GS | F175: Active | U175: 204 | AP175: 1950 | AQ175: 2000 | AR175: 1872 | AS175: 1157
A176: Sanofi Aventis | B176: =IF(A176="","",VLOOKUP(A176,'Pharma Names'!$A$2:$B$124,2,FALSE)) -> MaryT | C176: Apidra Shortage - Pt Edu | D176: Education | E176: Other | F176: Completed - 1T | G176: 25000 | H176: 25000 | I176: =IF(J176=K176,H176,(IF(DATE(2012,8,31)<K176,DATE(2012,8,31),K176)-IF(DATE(2011,9,1)>J176,DATE(2011,9,1),J176))/30*H176) -> 25000 | J176: 2011-10-20 | K176: 2011-10-20 | L176: =K176 -> 2011-10-20 | M176: NA | R176: N/A | U176: 31 | V176: 0 | W176: 24272.5 | X176: 0 | Y176: 0 | Z176: 0 | AA176: 0 | AN176: 20877.5 | AV176: 0 | AW176: 0 | AX176: 0
A177: Sanofi Aventis | B177: =IF(A177="","",VLOOKUP(A177,'Pharma Names'!$A$2:$B$124,2,FALSE)) -> MaryT | C177: Apidra Vial NTT RPH EDUC - FREE | D177: Education | E177: Other | F177: Completed - 1T | G177: 0 | H177: 0 | I177: 0 | J177: 2011-12-13 | K177: 2011-12-13 | L177: =K177 -> 2011-12-13 | M177: NA | R177: N/A | U177: 40 | V177: 0 | W177: 0 | X177: 0 | Y177: 0 | Z177: 0 | AA177: 0 | AV177: 0 | AW177: 0 | AX177: 0
A178: Sanofi Aventis | B178: =IF(A178="","",VLOOKUP(A178,'Pharma Names'!$A$2:$B$124,2,FALSE)) -> MaryT | C178: Lantus Inj Training | D178: RPh Service | E178: INJ TR | F178: Active | G178: 1200000 | H178: 100000 | I178: =H178*9 -> 900000 | J178: 2011-11-23 | K178: 2012-11-13 | L178: 2013-11-13 | P178: 2012-02-15 | R178: N/A | U178: 37 | V178: 0 | W178: 0 | X178: 0 | Y178: =94236+30000 -> 124236 | Z178: 94200 | AA178: 284268 | AB178: 189600 | AC178: 152388 | AD178: 199824 | AE178: 195672 | AF178: 199032 | AG178: 202968 | AH178: 190000 | AI178: 190440 | AJ178: 213636 | AK178: 182916 | AL178: 184800 | AM178: 234252 | AN178: 224364 | AO178: 201048 | AP178: 221160 | AQ178: 139728 | AR178: 99068 | AV178: 0 | AW178: 0 | AX178: 0
A179: Sanofi Aventis | B179: =IF(A179="","",VLOOKUP(A179,'Pharma Names'!$A$2:$B$124,2,FALSE)) -> MaryT | C179: Lantus IVR | D179: Adherence | E179: IVR | F179: Active | U179: 196 | AO179: 37183.71 | AP179: 4109.56 | AQ179: 3899.72 | AV179: =AT179*AU179*1.2*0.87 -> 0 | AW179: =AU179*0.975*AT179 -> 0 | AX179: =AV179-AW179 -> 0
A180: Sanofi Aventis | B180: =IF(A180="","",VLOOKUP(A180,'Pharma Names'!$A$2:$B$124,2,FALSE)) -> MaryT | C180: Renvela/Renagel | D180: Adherence | E180: DM | F180: Active | J180: 2013-01-03 | U180: 169 | AL180: 850.2 | AM180: 886.6 | AN180: 1060.8 | AO180: 954.2 | AP180: 7011.4 | AQ180: 46340.6 | AR180: 8473.8 | AS180: 7350.4 | AV180: =AT180*AU180*1.2*0.87 -> 0 | AW180: =AU180*0.975*AT180 -> 0 | AX180: =AV180-AW180 -> 0
A181: Sanofi Aventis | B181: =IF(A181="","",VLOOKUP(A181,'Pharma Names'!$A$2:$B$124,2,FALSE)) -> MaryT | C181: Sklice - RPh EDU | D181: Education | E181: MPU | F181: Completed - 1T | U181: 175 | AL181: 25000 | AV181: =AT181*AU181*1.2*0.87 -> 0 | AW181: =AU181*0.975*AT181 -> 0 | AX181: =AV181-AW181 -> 0
A182: Santarus | B182: =IF(A182="","",VLOOKUP(A182,'Pharma Names'!$A$2:$B$124,2,FALSE)) -> ???? | C182: Uceris MPU | D182: Education | E182: MPU | F182: Completed - 1T | U182: 192 | AN182: 25000 | AV182: =AT182*AU182*1.2*0.87 -> 0 | AW182: =AU182*0.975*AT182 -> 0 | AX182: =AV182-AW182 -> 0
A183: SDI | B183: GregL | C183: Actos (REMS) #1, #2 | D183: Education | E183: REMS | F183: Completed - 1T | G183: 19000 | H183: 9500 | J183: 2011-11-14 | K183: 2011-11-14 | L183: 2011-11-14 | M183: NA | R183: N/A | S183: Mailing #1 - 11/14, Mailing #2 - 11/29 | U183: 198 | V183: 0 | W183: 0 | X183: 9500 | Y183: 0 | Z183: 0 | AA183: 0 | AV183: 0 | AW183: 0 | AX183: 0
A184: SDI | B184: GregL | C184: Axiron (REMS) | D184: Education | E184: REMS | F184: Completed - 1T | G184: 10000 | H184: 10000 | I184: 10000 | J184: 2012-02-10 | K184: 2012-02-10 | L184: 2012-02-10 | M184: NA | P184: N/A | R184: N/A | U184: 44 | V184: 0 | W184: 0 | X184: 0 | Y184: 0 | Z184: 0 | AA184: 10000 | AV184: 0 | AW184: 0 | AX184: 0
A185: SDI | B185: GregL | C185: Forteo REMS | D185: Education | E185: REMS | F185: Completed - 1T | G185: 11000 | H185: 11000 | I185: 11000 | J185: 2012-04-06 | K185: =J185 -> 2012-04-06 | L185: 2013-01-01 | M185: NA | U185: 56 | AC185: 11000 | AV185: 0 | AW185: 0 | AX185: 0
A186: SDI | B186: GregL | C186: Opioid Induced Constipation CTR wave 1 | D186: Clinical Trials | E186: DM | F186: Completed - 1T | G186: 30625 | H186: 30625 | I186: 30625 | J186: 2012-02-14 | K186: 2012-04-30 | L186: 2012-02-14 | M186: NA | U186: 49 | AA186: 30625 | AV186: 0 | AW186: 0 | AX186: 0
A187: SDI | B187: GregL | C187: Opioid Induced Constipation CTR wave 2 | D187: Clinical Trials | E187: DM | F187: Completed - 1T | G187: 59074.75 | H187: 59074.75 | I187: 59074.75 | J187: 2012-03-09 | K187: 2012-04-30 | L187: 2012-03-09 | M187: NA | U187: 54 | AB187: 59074.75 | AV187: 0 | AW187: 0 | AX187: 0
A188: Shire | B188: =IF(A188="","",VLOOKUP(A188,'Pharma Names'!$A$2:$B$124,2,FALSE)) -> VanA | C188: Lialda Adherence | D188: Adherence | E188: DM | F188: Active | G188: =6000*12 -> 72000 | H188: =6000 -> 6000 | I188: =H188*7 -> 42000 | J188: 2012-10-26 | K188: 2013-07-31 | U188: 113 | AI188: 10142.5 | AJ188: 2022.5 | AK188: 3305 | AL188: 1347.5 | AM188: 632.5 | AN188: 2125 | AO188: 5805 | AP188: 4805 | AQ188: 6587.5 | AR188: 6775 | AS188: 6227.5 | AV188: 0 | AW188: 0 | AX188: 0
A189: Shire | B189: =IF(A189="","",VLOOKUP(A189,'Pharma Names'!$A$2:$B$124,2,FALSE)) -> VanA | C189: Adheris - Lialda CAP mailing | D189: Other | E189: DM | F189: Completed - 1T | J189: 2012-11-12 | U189: 148 | AJ189: 11666 | AV189: 0 | AW189: 0 | AX189: 0
A190: Strativa | B190: =IF(A190="","",VLOOKUP(A190,'Pharma Names'!$A$2:$B$124,2,FALSE)) -> VanA | C190: Adheris - Nascobal | D190: Adherence | E190: DM | F190: Active | J190: 2012-12-12 | U190: 138 | AK190: 5359.2 | AL190: 5175.92 | AM190: 2623.14 | AN190: 4134.72 | AO190: 3244.41 | AP190: 2449.68 | AQ190: 141 | AR190: 0 | AV190: 0 | AW190: 0 | AX190: 0
A191: Sunovion | B191: =IF(A191="","",VLOOKUP(A191,'Pharma Names'!$A$2:$B$124,2,FALSE)) -> VanA | C191: Xopenex Back to School PT Letter | D191: Education | E191: DM | F191: Completed - 1T | G191: 70302.5 | H191: 70302.5 | I191: =IF(J191=K191,H191,(IF(DATE(2012,8,31)<K191,DATE(2012,8,31),K191)-IF(DATE(2011,9,1)>J191,DATE(2011,9,1),J191))/30*H191) -> 70302.5 | J191: 2011-10-04 | K191: 2011-10-04 | L191: =K191 -> 2011-10-04 | M191: NA | R191: N/A | S191: (back to school reminder letter) | U191: 32 | V191: 0 | W191: 70302.5 | X191: 0 | Y191: 0 | Z191: 0 | AA191: 0 | AV191: 0 | AW191: 0 | AX191: 0
A192: Sunovion | B192: =IF(A192="","",VLOOKUP(A192,'Pharma Names'!$A$2:$B$124,2,FALSE)) -> VanA | C192: Zetonna MPU | D192: Education | E192: MPU | F192: Completed - 1T | G192: 25000 | H192: 25000 | I192: 25000 | J192: 2012-08-05 | K192: 2012-08-05 | L192: =K192 -> 2012-08-05 | M192: NA | U192: 91 | AG192: 25000 | AV192: 0 | AW192: 0 | AX192: 0
A193: Sunovion | B193: =IF(A193="","",VLOOKUP(A193,'Pharma Names'!$A$2:$B$124,2,FALSE)) -> VanA | C193: Adheris - Lunesta | D193: Adherence | E193: DM | F193: Active | J193: 2012-12-18 | U193: 136 | AK193: 28962.88 | AL193: 73657.68 | AM193: 32038.77 | AN193: 32371.53 | AO193: 24112.71 | AP193: 21130.26 | AQ193: 27508 | AR193: 20523.15 | AS193: 19565.58 | AV193: 0 | AW193: 0 | AX193: 0
A194: Takeda | B194: =IF(A194="","",VLOOKUP(A194,'Pharma Names'!$A$2:$B$124,2,FALSE)) -> BrianS | C194: Edarbyclor RPh Alert | D194: Education | E194: Other | F194: Completed - 1T | G194: 25000 | H194: 25000 | I194: 25000 | J194: 2012-03-19 | K194: 2012-04-11 | L194: 2012-04-11 | M194: NA | U194: 60 | AB194: 25000 | AV194: 0 | AW194: 0 | AX194: 0
A195: Takeda | B195: =IF(A195="","",VLOOKUP(A195,'Pharma Names'!$A$2:$B$124,2,FALSE)) -> BrianS | C195: Uloric, Uloric ZR | D195: Adherence | E195: DM | F195: Completed | G195: 79000 | H195: 6315 | I195: =IF(J195=K195,H195,(IF(DATE(2012,8,31)<K195,DATE(2012,8,31),K195)-IF(DATE(2011,9,1)>J195,DATE(2011,9,1),J195))/30*H195) -> 76832.5 | J195: 2010-06-17 | K195: 2013-04-30 | N195: 8400 | O195: 10139 | P195: 2012-02-15 | R195: 8334 & 8335 | S195: In renewal | U195: 33 | V195: 6447.5 | W195: 6437.5 | X195: 6315 | Y195: 6247.5 | Z195: 5852.5 | AA195: 5812.5 | AB195: 6205 | AC195: 6012.5 | AD195: 5677.5 | AE195: 5410 | AF195: 5542.5 | AG195: 5520 | AH195: 5237.5 | AI195: 5857.5 | AJ195: 5245 | AK195: 5635 | AL195: 4227.5 | AM195: 3887.5 | AN195: 5007.5 | AO195: 1830 | AV195: 0 | AW195: 0 | AX195: 0
A196: Takeda | B196: BrianS | C196: Colcrys MPU | D196: Education | E196: MPU | F196: Completed - 1T | G196: 25000 | H196: 25000 | I196: 25000 | J196: 2012-10-15 | K196: 2012-10-15 | L196: 2012-10-15 | U196: 119 | AI196: 25000 | AV196: 0 | AW196: 0 | AX196: 0
A197: Takeda | B197: =IF(A197="","",VLOOKUP(A197,'Pharma Names'!$A$2:$B$124,2,FALSE)) -> BrianS | C197: Adheris - Amitiza | D197: Adherence | E197: DM | F197: Active | J197: 2012-12-01 | U197: 122 | AK197: 28445.59 | AL197: 23231.27 | AM197: 16519.37 | AN197: 16421.43 | AO197: 12658.96 | AP197: 9710.68 | AQ197: 12130 | AR197: 9462.62 | AS197: 9374.14 | AV197: =AT197*AU197*1.2*0.87 -> 0 | AW197: =AU197*0.975*AT197 -> 0 | AX197: =AV197-AW197 -> 0
A198: Takeda | B198: =IF(A198="","",VLOOKUP(A198,'Pharma Names'!$A$2:$B$124,2,FALSE)) -> BrianS | C198: Adheris - Dexilant | D198: Adherence | E198: DM | F198: Active | J198: 2013-01-31 | U198: 167 | AL198: 2533.44 | AM198: 48276.9 | AN198: 83131.7 | AO198: 57379.28 | AP198: 30241.2 | AQ198: 33303 | AS198: 24785.46 | AV198: =AT198*AU198*1.2*0.87 -> 0 | AW198: =AU198*0.975*AT198 -> 0 | AX198: =AV198-AW198 -> 0
A199: Takeda | B199: =IF(A199="","",VLOOKUP(A199,'Pharma Names'!$A$2:$B$124,2,FALSE)) -> BrianS | C199: Adheris - Edarbi/Edarbyclor | D199: Adherence | E199: DM | F199: Active | J199: 2013-02-22 | U199: 178 | AM199: 434.5 | AN199: 8122.78 | AO199: 8272.88 | AP199: 6094.06 | AQ199: 6327 | AR199: 4807.94 | AS199: 4472.98 | AV199: =AT199*AU199*1.2*0.87 -> 0 | AW199: =AU199*0.975*AT199 -> 0 | AX199: =AV199-AW199 -> 0
A200: Takeda | B200: =IF(A200="","",VLOOKUP(A200,'Pharma Names'!$A$2:$B$124,2,FALSE)) -> BrianS | C200: Adheris - Dexilant CAP/nonCAP mailing | D200: Other | E200: DM | F200: Completed - 1T | U200: 188 | AN200: 45857.28 | AR200: 25722.4 | AV200: =AT200*AU200*1.2*0.87 -> 0 | AW200: =AU200*0.975*AT200 -> 0 | AX200: =AV200-AW200 -> 0
... 34 more rows

Sheet Development
A1: DEVELOPMENT
A3: Client | B3: NPAD | C3: Program Desc | D3: Product Line | E3: Type | F3: Status | G3: Estimated Contract Value | H3: Estimated Monthly Value | I3: Estimated FY Contract | J3: Target Start Date | K3: Expected Start Date | L3: Expected Term Date | M3: Contract Status | N3: Development Status | O3: Materials Status | P3: Implement Status | Q3: RPH Training | R3: Front Door | S3: Outsourced Vendor Contract Status | T3: PCC ID | U3: Weekly Action Item | V3: Blank | W3: 2011-09 | X3: 2011-10 | Y3: 2011-11 | Z3: Comments
A4: Amylin | B4: MaryT | C4: Bydureon Goodstart | D4: Adherence | E4: GS | F4: Develop | G4: 293000 | H4: =IF(L4=K4,G4,G4/((L4-K4)/30)) -> 24082.19178 | I4: =IF(L4=K4,G4,(IF(41517<L4,41517,L4)-K4)/30*H4) -> 243230.137 | J4: 2012-06-01 | K4: 2012-11-01 | L4: 2013-11-01 | M4: Executed | N4: O - Approval | O4: Ordered | P4: Not Started | Q4: NA | R4: NA | U4: 10/30 Script in Amylin review to become unbranded : Letters approved
A5: Boehringer | B5: =IF(A5="","",VLOOKUP(A5,'Pharma Names'!$A$2:$B$124,2,FALSE)) -> VanA | C5: Tradjenta/Jentadueto (Patient and MD Mailing) | D5: Education | E5: Other | F5: Develop | G5: 5167 | H5: =IF(L5=K5,G5,G5/((L5-K5)/30)) -> 2627.288136 | I5: =IF(L5=K5,G5,(IF(41517<L5,41517,L5)-K5)/30*H5) -> 5167 | J5: 2012-12-31 | K5: 2013-02-01 | L5: 2013-04-01 | M5: Executed | N5: Complete | P5: Not Started
A6: Daiichi Sankyo | B6: VanA | C6: Welchol | D6: Adherence | E6: GS | F6: Develop | G6: 245700 | H6: =G6/12 -> 20475 | I6: =H6*7 -> 143325 | J6: 2012-10-31 | K6: 2013-02-01 | L6: 2014-01-31 | M6: Review | N6: O - Approval | O6: Partial | U6: 10/2 Letters returned to Daiichi for review, MSA w/mfg SOW w/Wag
A7: Daiichi Sankyo | B7: VanA | C7: Benicar | D7: Adherence | E7: GS | F7: Develop | G7: 2210600 | H7: =G7/12 -> 184216.6667 | I7: =H7*7 -> 1289516.667 | J7: 2013-01-01 | K7: 2013-02-01 | L7: 2014-01-31 | M7: Review | N7: O - Approval
A8: DEY | B8: =IF(A8="","",VLOOKUP(A8,'Pharma Names'!$A$2:$B$124,2,FALSE)) -> CathyP | C8: EpiPen & JR | D8: Adherence | E8: IVR | F8: Develop | G8: 347000 | H8: =G8/4 -> 86750 | I8: =H8*5 -> 433750 | J8: 2012-07-01 | K8: 2013-02-01 | M8: Review | N8: Partial | U8: 10/16 Porgram will start with Adheris in 2012 Contract in Wag legal - Launch delayed to 2013
A9: J&J (Janssen) | B9: =IF(A9="","",VLOOKUP(A9,'Pharma Names'!$A$2:$B$124,2,FALSE)) -> BrianS | C9: Prezista - HIV COE | D9: RPH Service | E9: ADH | F9: Develop | G9: 250000 | H9: =G9/12 -> 20833.33333 | I9: =H9*3 -> 62500 | J9: 2013-03-02 | K9: 2013-02-01 | L9: 2014-12-01 | M9: Review | N9: Partial | P9: Not Started | U9: 10/2 Contract with Janssen AE reporting issue | Z9: : F2F NTT IC+ cap, follow up NTT call w/in 7 days, late refill call on all 3 days late,
A10: Sanofi Aventis | B10: =IF(A10="","",VLOOKUP(A10,'Pharma Names'!$A$2:$B$124,2,FALSE)) -> MaryT | C10: Apidra - Restock letter | D10: Education | F10: Develop | G10: 25000 | H10: 25000 | I10: 25000 | J10: 2012-07-23 | K10: 2012-12-01 | L10: =K10 -> 2012-12-01 | M10: O - Review | N10: Complete | P10: Not Started | U10: 10/30 Sanofi has not finalized MSA. All projects still on hold. Review for effectiveness of this letter as it's now stale. 6/26 No change in SOW review.
A11: Sanofi Aventis | B11: =IF(A11="","",VLOOKUP(A11,'Pharma Names'!$A$2:$B$124,2,FALSE)) -> MaryT | C11: Lantus Vial IVR | D11: Adherence | E11: IVR | F11: Develop | G11: 235850 | H11: =G11/12 -> 19654.16667 | I11: =H11*8 -> 157233.3333 | J11: 2012-01-01 | K11: 2013-12-01 | M11: Executed | N11: Complete | O11: NA | P11: Not Started | Q11: NA | R11: NA | S11: Eliza contract executed | U11: 10/30 Script final.The amended and restated Lantus IVR SOW is under Sanofi's review
A12: Eisai | B12: VanA | C12: Belviq | D12: Education | E12: MPU | F12: Active | G12: 25000 | H12: 25000 | I12: 25000 | J12: 2013-02-25 | L12: 2013-08-25 | M12: Draft | N12: Not Started | O12: Not Started | P12: Not Started | Q12: NA | R12: NA | U12: New drug launch MPU
A13: Acurian | B13: =IF(A13="","",VLOOKUP(A13,'Pharma Names'!$A$2:$B$124,2,FALSE)) -> GregL | C13: RA (2012) recount request | D13: Clinical Trials | E13: Other | F13: Completed
A14: Acurian | B14: =IF(A14="","",VLOOKUP(A14,'Pharma Names'!$A$2:$B$124,2,FALSE)) -> GregL | C14: Gout 2029 recount request | D14: Clinical Trials | E14: Other | F14: Completed
A15: Acurian | B15: =IF(A15="","",VLOOKUP(A15,'Pharma Names'!$A$2:$B$124,2,FALSE)) -> GregL | C15: COPD (2013) | D15: Clinical Trials | E15: Other | F15: Develop
A16: Acurian | B16: =IF(A16="","",VLOOKUP(A16,'Pharma Names'!$A$2:$B$124,2,FALSE)) -> GregL | C16: High Triglycerides (2038) | D16: Clinical Trials | E16: Other | F16: Develop
A17: Boehringer | B17: VanA | C17: Pradaxa Physician Mailing | D17: Education | E17: DM | F17: Develop | G17: 75000 | H17: =IF(L17=K17,G17,G17/((L17-K17)/30)) -> 75000 | I17: =IF(L17=K17,G17,(IF(41517<L17,41517,L17)-K17)/30*H17) -> 75000 | J17: 2012-09-30 | K17: 2012-12-01 | L17: 2012-12-01 | M17: Review | N17: Draft | P17: canceled | U17: 10/02 Letters completed in review at BI, contract in Wag legal
A18: Medicis | B18: MaryT | C18: Solodyn/Ziana Cash Expansion | D18: Other | E18: Other | F18: Develop | U18: 10/2 SOW w/Wag legal
A19: Novo Nordisk | B19: MaryT | C19: Victoza Enhancements (????)
A20: Takeda | B20: BrianS | C20: Dexilant ADHERIS | D20: Adherence | E20: DM | F20: Completed | L20: 2013-12-31 | M20: Not Started | N20: Partial
A21: Boehringer | B21: VanA | C21: Spiriva ADHERIS | D21: Adherence | E21: DM | L21: 2013-12-31 | M21: Not Started | N21: Not Started
A22: Boehringer | B22: VanA | C22: Pradaxa ADHERIS | D22: Adherence | E22: DM | L22: 2013-12-31 | M22: Not Started | N22: Not Started
A23: Takeda | B23: BrianS | C23: Edarbiclor ADHERIS | D23: Adherence | E23: DM | L23: 2013-12-31 | M23: Not Started | N23: Not Started
A24: Novartis | B24: JenL | C24: Exforge ADHERIS | D24: Adherence | E24: DM | L24: 2013-12-31 | M24: Draft | N24: Not Started
A25: Novartis | B25: JenL | C25: Exforge HCT ADHERIS | D25: Adherence | E25: DM | L25: 2013-12-31 | M25: Draft | N25: Not Started
A26: AstraZeneca | B26: VanA | C26: Nexium DN ADHERIS | D26: Adherence | E26: DM | L26: 2013-12-31 | M26: Draft | N26: Not Started
A27: Boehringer | B27: VanA | C27: Combivent Res ADHERIS | D27: Adherence | E27: DM | M27: Executed | N27: Complete
A28: Boehringer | B28: VanA | C28: Combivent ADHERIS | D28: Adherence | E28: DM | M28: Not Started | N28: Not Started
A29: Daiichi Sankyo | B29: =IF(A29="","",VLOOKUP(A29,'Pharma Names'!$A$2:$B$124,2,FALSE)) -> VanA | C29: Benicar ADHERIS | D29: Adherence | E29: DM | F29: Completed | L29: 2013-12-31 | M29: Executed | N29: Partial
A30: Alcon | B30: =IF(A30="","",VLOOKUP(A30,'Pharma Names'!$A$2:$B$124,2,FALSE)) -> JenL | C30: Azopt, Travatan Z 90-Day Program | D30: 90-Day | E30: REB | F30: Develop | K30: 2013-02-01 | L30: 2014-01-31 | M30: O - Sign | N30: Not Started | O30: NA | P30: Not Started | Q30: NA | R30: NA | S30: NA | T30: NA | U30: at Alcon - they are sigining
B31: =IF(A31="","",VLOOKUP(A31,'Pharma Names'!$A$2:$B$124,2,FALSE)) -> 
B32: =IF(A32="","",VLOOKUP(A32,'Pharma Names'!$A$2:$B$124,2,FALSE)) -> 
A34: Total for Filtered Programs: | G34: =SUBTOTAL(9,G4:G32) -> 25000 | H34: =SUBTOTAL(9,H4:H32) -> 25000 | I34: =SUBTOTAL(9,I4:I32) -> 25000
A35: Total for All Programs: | G35: =SUM(G4:G33) -> 3712317 | H35: =SUM(H4:H33) -> 483638.6466 | I35: =SUM(I4:I33) -> 2459722.137

Sheet Proposals
A1: Proposed Programs
P2: Program with Monthly Variability
A3: Client | B3: NPAD | C3: Program Desc | D3: Solution | E3: Product | F3: Status | G3: Estimated Contract Value | H3: Estimated Monthly Value | I3: Estimated FY Value | J3: Target Start Date | K3: Target Term Date | L3: Proba- bility | M3: Pt Counts | N3: Comments | O3: Blank | P3: ID | Q3: 2011-09 | R3: 2011-10 | S3: 2011-11 | T3: 2011-12
A4: Daiichi Sankyo | B4: VanA | C4: Benicar MPU | D4: Education | E4: MPU | F4: Proposed | G4: 25000 | J4: 2012-09-01
A5: Novartis | B5: =IF(A5="","",VLOOKUP(A5,'Pharma Names'!$A$2:$B$124,2,FALSE)) -> JenL | C5: COPD registry mailing | D5: Clinical Trials | E5: DM | F5: Proposed | G5: 4000 | H5: 0 | I5: 4000 | L5: Medium | P5: P79
A6: Teva | B6: MaryT | C6: Copaxone SAR | D6: RPh Service | E6: SAR | F6: Proposed | G6: 222380 | H6: 18532 | I6: 55596 | J6: 2012-09-01 | K6: 2013-08-31 | L6: Low | P6: P57
A7: Trial Accel./Ballenger | B7: =IF(A7="","",VLOOKUP(A7,'Pharma Names'!$A$2:$B$124,2,FALSE)) -> GregL | C7: Diabetic Peripheral Neuropathy | D7: Clinical Trials | E7: DM | F7: Proposed | J7: 2012-04-01 | K7: 2012-04-01 | L7: NA | N7: Requested Rx counts only | P7: P28
A8: Trial Accel./Ballenger | B8: =IF(A8="","",VLOOKUP(A8,'Pharma Names'!$A$2:$B$124,2,FALSE)) -> GregL | C8: Hypertriglyceridemia CTR | D8: Clinical Trials | E8: DM | F8: Proposed | G8: 2000000 | H8: 2000000 | I8: 2000000 | J8: 2012-07-23 | K8: 2012-07-24 | L8: NA | M8: 1055567
A9: Trial Accel./Ballenger | B9: GregL | C9: Merck RA CTR | D9: Clinical Trials | E9: DM | F9: Proposed | G9: TBD | J9: 2012-07-30 | K9: 2012-07-30 | L9: NA
A10: Trial Accel./Ballenger | B10: =IF(A10="","",VLOOKUP(A10,'Pharma Names'!$A$2:$B$124,2,FALSE)) -> GregL | C10: Midodrine | D10: Clinical Trials | E10: DM | F10: Proposed | G10: small | L10: NA | P10: P84
A11: Trial Accel./Ballenger | B11: =IF(A11="","",VLOOKUP(A11,'Pharma Names'!$A$2:$B$124,2,FALSE)) -> GregL | C11: OAB | D11: Clinical Trials | E11: DM | F11: Proposed | J11: 2012-04-01 | K11: 2012-04-01 | L11: NA | P11: P7
A12: Trial Accel./Ballenger | B12: =IF(A12="","",VLOOKUP(A12,'Pharma Names'!$A$2:$B$124,2,FALSE)) -> GregL | C12: Psoriasis/failed on Humira CTR | D12: Clinical Trials | E12: DM | F12: Proposed | J12: 2012-09-01 | K12: 2013-08-31 | L12: NA | P12: P48
A13: Trial Accel./Ballenger | B13: =IF(A13="","",VLOOKUP(A13,'Pharma Names'!$A$2:$B$124,2,FALSE)) -> GregL | C13: Restless Leg Syndrome | D13: Clinical Trials | E13: DM | F13: Proposed | J13: 2012-04-01 | K13: 2012-04-01 | L13: NA | N13: Requested Rx counts only | P13: P27
A14: Trial Accel./Ballenger | B14: =IF(A14="","",VLOOKUP(A14,'Pharma Names'!$A$2:$B$124,2,FALSE)) -> GregL | C14: Type I Diabetes - Metformin | D14: Clinical Trials | E14: DM | F14: Proposed | J14: 2012-04-01 | K14: 2012-04-01 | L14: NA | P14: P8
B19: =IF(A19="","",VLOOKUP(A19,'Pharma Names'!$A$2:$B$124,2,FALSE)) ->  | P19: P89
B20: =IF(A20="","",VLOOKUP(A20,'Pharma Names'!$A$2:$B$124,2,FALSE)) ->  | P20: P89
A22: Total for Filtered Programs: | G22: =SUBTOTAL(9,G4:G9) -> 2251380 | H22: =SUBTOTAL(9,H4:H9) -> 2018532 | I22: =SUBTOTAL(9,I4:I9) -> 2059596
A23: Total for All Programs: | G23: =SUM(G4:G9) -> 2251380 | H23: =SUM(H4:H9) -> 2018532 | I23: =SUM(I4:I9) -> 2059596

Sheet Definitions (hidden)
B1: call in number for anyone off-site from 1411 Lake Cook is 866-309-0558 meeting number *8473748326*
B2: Moderator * 2192*
A4: Active Programs drop-down boxes
B6: Status header:
C7: Running | D7: Program is running normally
C8: Enrollment stopped | D8: The enrollment limit has been reached; contacts are continuing for those already enrolled
C9: Suspended | D9: Contacts have been halted but are expected to resume in the near future
C10: Stopped | D10: The program has been stopped recently and is not expected to resume in the near future
A12: Programs in Development drop-down boxes
B14: Contract status header:
B15: LPCS,OTCS,FFCS,IPCS,PCCS | C15: Not Started | D15: Work has not commenced on a written agreement or SOW yet
C16: In development | D16: The legal document is in the process of being developed but has not been reviewed yet
C17: In review at Walgreens | D17: The legal document is being reviewed by Walgreens - add comments if necessary (in legal, etc.)
C18: In review at Sponsor | D18: The legal document is being reviewed by the program sponsor
C19: Finalized | D19: All terms have been negotiated and the document is ready to be finalized for signoff & signatures
C20: Signing - at Sponsor | D20: The document is at the program sponsor to be signed
C21: Routed - at Walgreens | D21: The document has been routed for sign-off and signatures by Walgreens
C22: Executed | D22: The agreement or SOW has been signed by all parties
B24: Development status header - Letter Programs:
B25: LPDS | C25: Not Started | D25: Work has not commenced on the program design or mailing materials
C26: Program design in process | D26: A program design is in the process of being developed but has not been reviewed yet
C27: Letters in development | D27: Letters and ancillary printed material are in the process of being developed but have not been reviewed yet
C28: Letters in review at Sponsor | D28: Materials are being reviewed by the program sponsor
C29: Letters in review at Walgreens | D29: Materials are being reviewed by Walgreens
C30: Letters in Approval at Sponsor | D30: Materials are in Med-Reg or other approval process at the program sponsor
C31: Letters in Approval at Walgreens | D31: Materials are in approval process at Walgreens
C32: Templates loaded at printer | D32: Templates have been developed and provided to the printing/mailing firm
C33: Test samples awaiting approval | D33: Test mailing samples have been produced and are awaiting approval from the sponsor
C34: Completed | D34: All steps for printing materials are completed
B35: Development status header - One-time Mailings
B36: OTDS | C36: Not Started | D36: Work has not commenced on the program design or mailing materials
C37: Program design in process | D37: A program design is in the process of being developed but has not been reviewed yet
C38: Letters in development | D38: Letters and ancillary printed material are in the process of being developed but have not been reviewed yet
C39: Letters in review - Sponsor | D39: Materials are being reviewed by the program sponsor
C40: Letters in review - Walgreens | D40: Materials are being reviewed by Walgreens
C41: Letters in Approval - Sponsor | D41: Materials are in Med-Reg or other approval process at the program sponsor
C42: Letters in Approval - Walgreens | D42: Materials are in approval process at Walgreens
C43: Templates loaded at printer | D43: Templates have been developed and provided to the printing/mailing firm
C44: Test samples awaiting approval | D44: Test mailing samples have been produced and are awaiting approval from the sponsor
C45: Completed | D45: All steps for printing materials are completed
B46: Development status header - Acurian Mailings
B47: AMDS | C47: Not Started | D47: Work has not commenced on the program design or mailing materials
C48: Letters in development | D48: Letters and ancillary printed material are in the process of being developed but have not been reviewed yet
C49: Letters in review - Sponsor | D49: Materials are being reviewed by the program sponsor
C50: Letters in review - Walgreens | D50: Materials are being reviewed by Walgreens
C51: Letters in Approval - Sponsor | D51: Materials are in Med-Reg or other approval process at the program sponsor
C52: Letters in Approval - Walgreens | D52: Materials are in approval process at Walgreens
C53: Templates loaded at printer | D53: Templates have been developed and provided to the printing/mailing firm
C54: Test samples pending | D54: Test mailing samples have been produced and are awaiting approval from the sponsor
C55: Completed | D55: All steps for printing materials are completed
B56: Development status header - Face-to-Face Programs:
B57: FFDS | C57: Not Started | D57: Work has not commenced on the program design or call script
C58: Manufacturer Kick Off Mtg
C59: Program Design in Progress | D59: A program design is in the process of being developed but has not been reviewed yet
C60: Program design final
C61: FDRx Request Submitted
C62: FDRx Approved
C63: Materials in development
C64: Manufacturer review
C65: Materials final
C66: RCA kick off meeting
C67: RCA campaign logic in development
C68: RCA campaign testing in progress
C69: RCA quality test complete
C70: Completed | D70: All steps are completed and Rx Advisor program is ready to turn on
B71: Development status header - IVR/Phone-based Programs:
B72: IPDS | C72: Not Started | D72: Work has not commenced on the program design or call script
C73: Program design in process | D73: A program design is in the process of being developed but has not been reviewed yet
C74: Script in development | D74: Call script is in the process of being developed but has not been reviewed yet
C75: Script in review - Sponsor | D75: Call script is being reviewed by the program sponsor
C76: Script in review - Walgreens | D76: Call script is being reviewed by Walgreens
C77: Script in Approval - Sponsor | D77: Call script is in Med-Reg or other approval process at the program sponsor
C78: Script in Approval - Walgreens | D78: Call script is in approval process at Walgreens
C79: Script loaded at program partner | D79: Call script has been loaded in the IVR or call management system at Eliza, Pleio or other partner
C80: Test/Training phase | D80: Call flow is being tested and/or agents are being trained
C81: Completed | D81: All steps are completed and IVR/cal program ready to turn on
B82: Development status header - Pharmacist Communications Programs:
B83: PCDS | C83: Not Started | D83: Work has not commenced on the document
C84: Update document in process | D84: A communication document is in the process of being developed but has not been reviewed yet
C85: Update document in development | D85: Information has been received and a document is being prepared
C86: Document in review - Sponsor | D86: Update document is being reviewed by the program sponsor
C87: Completed | D87: All steps are completed and documen t is ready to be disseminated
B88: Ancillary materials status header - Letter Programs:
B89: LPAM | C89: Not Started | D89: No decisions have been made about ancillary materials to be included
C90: Samples under review | D90: Samples have been provided by the sponsor and are under review by Walgreens
C91: Materials on order | D91: Sponsor is in the process of shipping start-up supply to our printing/mailing firm
C92: Materials on hand | D92: The supply of ancillary materials need for start-up have been delivered
C93: PI only will be used | D93: The only inserts will be the product's FDA-approved Professional Package Insert or Patient Information Insert
C94: Not Applicable | D94: This program will not have any ancillary materials to be included in the mailing
B95: Pharmacist Training status header - Face to Face Programs:
B96: FFPT | C96: Not Required | D96: Pharmacist training will not be required
C97: Not Started | D97: Training will be required but has not been started
C98: Pharm Ops kick off meeting
C99: Launch strategy in development
C100: Launch strategy final
C101: Materials in development | D101: Materials to be used are in the process of being developed
C102: Materials final | D102: Sessions have been planned and scheduled
C103: Training Development Complete | D103: Training has been completed for this program
B104: Data Feed status header - IVR/Phone Programs:
B105: IPDF | C105: Not Required | D105: Data feed does not need to be established or is already in place
C106: Not Started | D106: Data Feed will be required but has not been started
C107: Data Feed in development | D107: The appropriate internal and external resources are engaged to establish a secure link
C108: Testing | D108: Data feed has been established and is being tested
C109: Completed | D109: Data feed for this program is ready to go live
B110: Implementation status header - Letter Programs:
B111: LPIS | C111: Not Started | D111: Program has not been loaded in PCC system
C112: Exclusion group running; no supplemental load needed
C113: Exclusion group running; supplemental load needed
C114: No exclusion group needed
B115: Implementation status header - One-time Mailings:
B116: OMIS | C116: Not Started | D116: Program has not been loaded in PCC system, nor data extract ordered
C117: Data Extract Ordered | D117: Data Extract has been ordered fron DSS Support
C118: Data Extract Ready | D118: Data Extract ready for processing against address validation & DNC listing
C119: Data Extract scrubbed | D119: Data Extract has been scrubbed and is ready for final steps to create mailing list(s)
C120: Mailng list(s) ready | D120: Mailing list(s) for this program have been finalized
C121: Mailing completed | D121: Mailing has been completed by printing/mailing firm
B122: Implementation status header - Acurian Mailings:
B123: AMIS | C123: Not Started | D123: Data generation for this program has not started
C124: Data Extract for mailing counts ordered | D124: Data Extract has been ordered fron DSS Support
C125: Mailing counts completed | D125: Counts of potential mailing candidates by zip code completed
C126: Waves by zip code groupings pending | D126: Mailing list "Waves" of Zip Code groupings have been requested by Acurian
C127: Mailng list(s) for waves ready | D127: Requested mailing list(s) "Waves" are ready
C128: Mailng list(s) transmitted to printer | D128: Mailing list(s) for this program have been sent to printer
C129: Mailing completed | D129: Mailing has been completed by printing/mailing firm
B130: Implementation status header - Face to Face Programs:
B131: FFIS | C131: Not Started | D131: Process has not started to load program in Rx Advisor
C132: Market communication plan in progress
C133: Market communication plan final
C134: Market meetings in progress
C135: Final materials placed on storenet
C136: Program launch communicated to market
C137: Program active
C138: Follow-up market survey/feedback
B139: Implementation status header - IVR/Phone Programs:
B140: IPIS | C140: Not Started | D140: Program Implementation has not been started
C141: Exclusion group running; no supplemental load needed | D141: (For PCC-driven programs)
C142: Exclusion group running; supplemental load needed | D142: (For PCC-driven programs)
C143: DSS programming in process | D143: (For DSS extract-driven programs)
C144: DSS programming ready | D144: (For DSS extract-driven programs)
C145: Completed | D145: Program ready to go operational
B146: Implementation status header - Pharmacist Communication Programs:
B147: PCIS | C147: Not Started | D147: Document has not been submitted to be published
C148: Submitted to Pharmacy Services | D148: Document is finalized and has been submitted for inclusion in next weekly bulletin
C149: Published | D149: Update document has been published in a weekly bulletin
A152: Recently Completed Programs drop-down boxes
B154: Program status header:
B155: RCPS | C155: Add'l mailing pending | D155: Work has not commenced on a written agreement or SOW yet
C156: Gift Card mailing pending | D156: The legal document is in the process of being developed but has not been reviewed yet
C157: Mailing completed | D157: Mailing has been completed by printing/mailing firm

Sheet Forecast to Budget (hidden)
A1: BUDGET ANALYSIS
A4: BUDGET VARIANCE
A5: 2012 FY | B5: 2011-09-01 | C5: 2011-10-01 | D5: 2011-11-01 | E5: YTD | F5: 2011-12-01 | G5: 2012-01-01 | H5: 2012-02-01 | I5: 2012-03-01 | J5: 2012-04-01 | K5: 2012-05-01 | L5: 2012-06-01 | M5: 2012-07-01 | N5: 2012-08-01 | O5: Total
A6: Budget | B6: 1062473.58 | C6: 1062473.58 | D6: 1062473.58 | E6: =SUM(B6:D6) -> 3187420.74 | F6: 1062473.58 | G6: 885411.79 | H6: 885411.79 | I6: 885411.79 | J6: 1721823.58 | K6: 1721823.58 | L6: 1721823.58 | M6: 1721823.58 | N6: 1721823.58 | O6: =SUM(B6:N6)-E6 -> 15515247.59
A7: Estimated | B7: =B8 -> 535110.687 | C7: 871010.521 | D7: =C7+D24+D37 -> 1705708.021 | E7: =SUM(B7:D7) -> 3111829.229 | O7: =SUM(B7:N7) -> 6223658.458
A8: Actual | B8: 535110.687 | O8: =SUM(B8:N8) -> 535110.687
A10: VAR (Act) | B10: =IF(B8="",B7,B8)-B6 -> -527362.893 | C10: =IF(C8="",C7,C8)-C6 -> -191463.059 | D10: 643234.441 | E10: -75591.51098 | F10: -1062473.58 | G10: -885411.79 | H10: -885411.79 | I10: -885411.79 | J10: -1721823.58 | K10: -1721823.58 | L10: -1721823.58 | M10: -1721823.58 | N10: -1721823.58 | O10: -14980136.9
A13: GAINED REVENUE
A14: 1T Mailings | C14: 165302.5 | D14: 1000000
A16: New Recurring Programs
A17: PSC Rebates | C17: 80000
A18: Trilipix/Tricor IVR | C18: ='Active-Completed'!H9 -> 44182
A19: Pradaxa full Month | C19: 10000
A24: Total New | C24: =SUM(C14:C23) -> 299484.5 | D24: =SUM(D14:D23) -> 1000000
A27: LOST REVENUE
A28: 1T Mailings | D28: =-C14 -> -165302.5
A30: Lost Recurring Programs
D37: =SUM(D28:D36) -> -165302.5

Sheet In Discussion
A1: IN DISCUSSION
A3: Client | B3: NPAD | C3: Program Desc | D3: Solution | E3: Product | F3: Status | G3: Estimated Contract Value | H3: Estimated Monthly Value | I3: Comments
A4: Abbott | B4: =IF(A4="","",VLOOKUP(A4,'Pharma Names'!$A$2:$B$124,2,FALSE)) -> MaryT | C4: Tarka - generic gone - Patient | D4: Education | E4: DM | I4: with copay card
A5: Acurian | B5: =IF(A5="","",VLOOKUP(A5,'Pharma Names'!$A$2:$B$124,2,FALSE)) -> GregL | C5: Rosacea | D5: Clinical Trials | E5: DM
A6: Acurian | B6: =IF(A6="","",VLOOKUP(A6,'Pharma Names'!$A$2:$B$124,2,FALSE)) -> GregL | C6: Parkinson's | D6: Clinical Trials | E6: DM
A7: B&L | B7: =IF(A7="","",VLOOKUP(A7,'Pharma Names'!$A$2:$B$124,2,FALSE)) -> BrianS | C7: Portfolio - Store Media | D7: Education | E7: Other | G7: 100000 | H7: =G7 -> 100000 | I7: =H7 -> 100000
A8: Galderma | B8: =IF(A8="","",VLOOKUP(A8,'Pharma Names'!$A$2:$B$124,2,FALSE)) -> VanA | C8: Epi DUO and Oracia | D8: Adherence | E8: Other | I8: 1st Fill issue
A9: J&J (Janssen) | B9: =IF(A9="","",VLOOKUP(A9,'Pharma Names'!$A$2:$B$124,2,FALSE)) -> BrianS | C9: Xarelto | D9: RPH Service | E9: ADH | G9: 250000 | H9: =G9/12 -> 20833.33333 | I9: =H9*3 -> 62500
A10: Novartis | B10: =IF(A10="","",VLOOKUP(A10,'Pharma Names'!$A$2:$B$124,2,FALSE)) -> JenL | C10: LCQQ908 CV Risk (Hyperlipidemia) study | D10: Clinical Trials | E10: DM | I10: may include Catalina
A11: Novartis | B11: =IF(A11="","",VLOOKUP(A11,'Pharma Names'!$A$2:$B$124,2,FALSE)) -> JenL | C11: KRP203 SCLE (Lupus) study | D11: Clinical Trials | E11: DM | I11: may include Catalina
A12: Novo Nordisk | B12: =IF(A12="","",VLOOKUP(A12,'Pharma Names'!$A$2:$B$124,2,FALSE)) -> MaryT | C12: Deguldec PSC | D12: PSC | E12: Rebate
A13: Novo Nordisk | B13: =IF(A13="","",VLOOKUP(A13,'Pharma Names'!$A$2:$B$124,2,FALSE)) -> MaryT | C13: F2F Deglidec | D13: RPH Service | E13: INJ TR
A14: Novo Nordisk | B14: =IF(A14="","",VLOOKUP(A14,'Pharma Names'!$A$2:$B$124,2,FALSE)) -> MaryT | C14: Launch Playbook Deguldec | D14: Other | E14: Other
A15: Pfizer | B15: =IF(A15="","",VLOOKUP(A15,'Pharma Names'!$A$2:$B$124,2,FALSE)) -> JenL | C15: Pfizer OAB and diabetes trial recruitmant | D15: Clinical Trials | E15: DM
A16: SDI | B16: =IF(A16="","",VLOOKUP(A16,'Pharma Names'!$A$2:$B$124,2,FALSE)) -> GregL | C16: Diabetes w anti-coagulent/anti-platelet | D16: Clinical Trials | E16: DM | G16: =75000*0.5+(75000*0.005*105) -> 76875 | I16: SDI to pull mail list ID's
A17: Teva | B17: =IF(A17="","",VLOOKUP(A17,'Pharma Names'!$A$2:$B$124,2,FALSE)) -> MaryT | C17: ProAir Back to School / Summer | D17: Education | E17: DM | G17: 25000 | I17: MPU
A18: UCB | B18: =IF(A18="","",VLOOKUP(A18,'Pharma Names'!$A$2:$B$124,2,FALSE)) -> BrianS | C18: Cimzia | D18: RPH Service | E18: SAR | G18: 150000 | H18: =G18/12 -> 12500 | I18: =H18*3 -> 37500
A19: Novartis | B19: JenL | C19: Foradil Asthma Study - Data | D19: Clinical Trials | E19: Data
A20: Medicis | B20: MaryT | C20: Solodyn Letter Campaign | D20: Adherence | E20: DM
A25: Total for Filtered Programs: | G25: =SUBTOTAL(9,G4:G23) -> 601875 | H25: =SUBTOTAL(9,H4:H23) -> 133333.3333
A26: Total for All Programs: | G26: =SUM(G4:G23) -> 601875 | H26: =SUM(H4:H23) -> 133333.3333

Sheet Lists (hidden)
A1: Product Line | B1: Type | C1: NPAD | D1: Status - A/C | E1: Status - Proposed | F1: Contract | G1: Develop | H1: Materials | I1: Implementation | J1: Probability
A2: 90-Day | B2: DM | C2: Brian S. | D2: Active | E2: Develop | F2: Draft | G2: Draft | H2: Complete | I2: Not Started | J2: Low | K2: =D2 -> Active
A3: Adherence | B3: E-COM | C3: Cathy P. | D3: Develop | E3: Proposed | F3: Business | G3: Approval | H3: Develop | I3: In Progress | J3: Medium | K3: =K2&","&D3 -> Active,Develop
A4: Clinical Trials | B4: SAR | C4: Jen L. | D4: Existing Only | E4: Open - Ct | F4: Review | G4: Complete | H4: Ordered | I4: Complete | J4: High | K4: =K3&","&D4 -> Active,Develop,Existing Only
A5: RPh Service | B5: INJ TR | C5: Mary T. | D5: Completed | E5: Complete - Ct | F5: Sign | G5: O - Draft | H5: Partial | J5: NA | K5: Active,Develop,Existing Only,Completed
A6: Data | B6: Data | C6: Van A. | D6: Completed - 1T | F6: Ctr-Sig | G6: O - Approval | H6: Not Started | K6: =K5&","&D7 -> Active,Develop,Existing Only,Completed,Hold
A7: Education | B7: MPU | C7: NA | D7: Hold | F7: Executed | G7: Partial | H7: NA | K7: Active,Develop,Existing Only,Completed,Hold,Canceled - E
A8: Marketing | B8: REB | D8: Canceled - E | F8: Hold | G8: Not Started | K8: Active,Develop,Existing Only,Completed,Hold,Canceled - E,Canceled - I
A9: Outcomes | B9: ADH | D9: Canceled - I | F9: O - Draft | G9: NA | K9: Active,Develop,Existing Only,Completed,Hold,Canceled - E,Canceled - I,Off - Budget
A10: PSC | B10: Adheris | D10: Off - Budget | F10: O - Review | K10: Active,Develop,Existing Only,Completed,Hold,Canceled - E,Canceled - I,Off - Budget,Off - Revise
A11: Other | B11: REMS | D11: Off - Revise | F11: O - Sign | K11: Active,Develop,Existing Only,Completed,Hold,Canceled - E,Canceled - I,Off - Budget,Off - Revise,Proposed
B12: Fax | D12: Proposed | F12: O - CtrSig
B13: GS | F13: O - Hold
B14: IVR | F14: Not Started
B15: PCC
B16: Retail
B17: Other

Sheet DC'D In D-P
A1: Client | B1: NPAD | C1: Program Desc | D1: Solution | E1: Product | F1: Status | G1: Estimated Contract Value | H1: Estimated Monthly Value | I1: Estimated FY Contract | J1: Target Start Date | K1: Expected Start Date | L1: Expected Term Date | M1: Contract Status | N1: Development Status | O1: Materials Status | P1: Implement Status | Q1: RPH Training | R1: Front Door | S1: Outsourced Vendor Contract Status | T1: PCC ID | U1: Comments | V1: ID | W1: 2011-09 | X1: 2011-10 | Y1: 2011-11 | Z1: 2011-12 | AA1: 2012-01 | AB1: 2012-02 | AC1: 2012-03 | AD1: 2012-04 | AE1: 2012-05 | AF1: 2012-06 | AG1: 2012-07 | AH1: 2012-08 | AI1: 2012-09 | AJ1: 2012-10 | AK1: 2012-11 | AL1: 2012-12 | AM1: 2013-01 | AN1: 2013-02 | AO1: 2013-03 | AP1: 2013-04 | AQ1: 2013-05 | AR1: 2013-06 | AS1: 2013-07 | AT1: 2013-08
A2: Sanofi Aventis | B2: =IF(A2="","",VLOOKUP(A2,'Pharma Names'!$A$2:$B$124,2,FALSE)) -> MaryT | C2: Multaq | D2: ADH | E2: Direct Mail | F2: Canceled - E | G2: 40822 | H2: =G2/12 -> 3401.833333 | I2: =H2*9 -> 30616.5 | J2: 2011-12-01 | K2: =J2 -> 2011-12-01 | L2: 2012-11-30 | M2: O - Hold | N2: Complete | O2: Complete | P2: Not Started | Q2: NA | R2: NA | S2: NA | U2: The program is discontinued, eff. 11/7/11 per Sanofi. Drug Saftey Issue | V2: D14
A3: Acurian | B3: =IF(A3="","",VLOOKUP(A3,'Pharma Names'!$A$2:$B$124,2,FALSE)) -> GregL | C3: Depression | D3: CTR | E3: Direct Mail | F3: Proposed | G3: 30000 | H3: 30000 | I3: 30000 | J3: 2011-12-30 | K3: 2011-12-30 | L3: Low | P3: P2 | U3: Decided on by PDMA RSG
A4: Acurian | B4: =IF(A4="","",VLOOKUP(A4,'Pharma Names'!$A$2:$B$124,2,FALSE)) -> GregL | C4: Major Depressive Disorder | D4: CTR | E4: Direct Mail | F4: Proposed | G4: TBD | H4: TBD | I4: TBD | L4: Low | N4: Requested national counts by Zip | P4: P31 | U4: Decided on by PDMA RSG
A5: Ballenger | B5: =IF(A5="","",VLOOKUP(A5,'Pharma Names'!$A$2:$B$124,2,FALSE)) ->  | C5: Depression (SSRI's & SNRI's) | D5: CTR | E5: Direct Mail | F5: Proposed | G5: TBD | H5: TBD | I5: TBD | L5: Low | N5: Requested Rx counts only | P5: P29 | U5: Decided on by PDMA RSG
A6: Ballenger | B6: =IF(A6="","",VLOOKUP(A6,'Pharma Names'!$A$2:$B$124,2,FALSE)) ->  | C6: Depression | D6: CTR | E6: Direct Mail | F6: Proposed | G6: 50000 | H6: =G6/((K6-J6)/30+1) -> 50000 | I6: =G6 -> 50000 | J6: 2012-01-15 | K6: 2012-01-15 | L6: Low | P6: P6 | U6: Decided on by PDMA RSG
A7: Novartis | B7: =IF(A7="","",VLOOKUP(A7,'Pharma Names'!$A$2:$B$124,2,FALSE)) -> JenL | C7: Tekturna products | D7: ADH | E7: Direct Mail | F7: Develop | G7: 320000 | H7: =G7/12 -> 26666.66667 | I7: =H7*9 -> 240000 | J7: 2011-11-01 | K7: 2011-12-01 | L7: 2012-11-30 | M7: Executed | N7: Complete | O7: Ordered | P7: Started | Q7: NA | R7: NA | S7: NA | U7: Programs DC'ed until further notice due to negative study
A8: Actavis | B8: =IF(A8="","",VLOOKUP(A8,'Pharma Names'!$A$2:$B$124,2,FALSE)) -> VanA | C8: Opana ER Generic 7.5mg & 15mg - Pt Letter | D8: EDU | E8: Direct Mail | F8: Develop | G8: =1000*2.5 -> 2500 | H8: =G8 -> 2500 | I8: =H8 -> 2500 | J8: 2011-12-10 | K8: 2012-01-23 | L8: =K8 -> 2012-01-23 | M8: Review | N8: Approval | O8: Not Started | P8: Not Started | Q8: NA | R8: NA | S8: NA | U8: 1/24/2012 Cancelled Program
A9: Boehringer | B9: =IF(A9="","",VLOOKUP(A9,'Pharma Names'!$A$2:$B$124,2,FALSE)) -> VanA | C9: Tradjenta Met - Fixed Dose MD Mailing | D9: EDU | E9: Direct Mail | F9: Proposed | G9: 20000 | H9: 20000 | I9: 20000 | J9: 2012-02-15 | K9: 2012-04-01 | L9: 2012-02-25 | M9: O - Review | N9: Draft | O9: Ordered | P9: Not Started | Q9: NA | R9: NA | S9: NA | U9: 3/27/2012 - Contract in review | W9: D27
A10: Sunovion | B10: VanA | C10: Brovana Rph Alert | D10: EDU | E10: Other | F10: Canceled - E | G10: 25000 | H10: 25000 | I10: 25000 | J10: 2012-03-19 | K10: 2012-03-26 | L10: 2012-03-26 | M10: Review | N10: Complete | O10: NA | P10: Not Started | Q10: NA | R10: NA | S10: NA | U10: Dead Deal
A11: Sunovion | B11: VanA | C11: Zetonna RPh Alert | D11: EDU | E11: Other | F11: Canceled - E | G11: 25000 | H11: 25000 | I11: 25000 | J11: 2012-04-16 | K11: 2012-04-16 | L11: 2012-04-16 | M11: O - Review | N11: Draft | O11: NA | P11: Not Started | Q11: NA | R11: NA | S11: NA | U11: Dead Deal
A12: Sunovion | B12: VanA | C12: Latuda RPh Alert | D12: EDU | E12: Other | F12: Canceled - E | G12: 25000 | H12: 25000 | I12: 25000 | J12: 2012-04-26 | K12: 2012-04-26 | L12: 2012-04-26 | M12: O - Review | N12: Complete | O12: NA | P12: Not Started | Q12: NA | R12: NA | S12: NA | U12: Dead Deal
A13: SDI | B13: =IF(A13="","",VLOOKUP(A13,'Pharma Names'!$A$2:$B$124,2,FALSE)) -> GregL | C13: Effient REMS (REMOVE FROM ACCRUAL) | D13: REMS | E13: Direct Mail | F13: Canceled - E | G13: 8750 | H13: 8750 | I13: 8750 | J13: 2012-03-28 | K13: 2013-01-01 | L13: 2012-03-28 | M13: N/A | U13: 55 | AB13: 8750
A14: Teva | B14: MaryT | C14: QVAR | D14: ADH | E14: PCC | I14: Live Outreach
A15: Teva | B15: =IF(A15="","",VLOOKUP(A15,'Pharma Names'!$A$2:$B$124,2,FALSE)) -> MaryT | C15: Respiratory PSC | D15: PSC | E15: Other | J15: 2012-03-01 | K15: 2013-02-28 | L15: NA | P15: P19
A16: Abbott | B16: =IF(A16="","",VLOOKUP(A16,'Pharma Names'!$A$2:$B$124,2,FALSE)) -> MaryT | C16: Synthroid | D16: PSC | E16: Other | F16: Canceled - I | G16: 0 | H16: 0 | I16: No opportunity
A17: Pfizer | B17: =IF(A17="","",VLOOKUP(A17,'Pharma Names'!$A$2:$B$124,2,FALSE)) -> JenL | C17: Lipitor | D17: EDU | E17: Direct Mail | F17: Canceled - I | G17: 218000 | H17: 218000 | I17: 218000 | J17: 2012-03-01 | K17: 2012-03-15 | L17: 2012-03-15 | M17: Executed | N17: Complete | O17: Ordered | P17: Not Started | Q17: NA | R17: NA | S17: NA | U17: 4/24 - Business decision | W17: D31
A18: Pfizer | B18: =IF(A18="","",VLOOKUP(A18,'Pharma Names'!$A$2:$B$124,2,FALSE)) -> JenL | C18: Lipitor | D18: ADH | E18: GoodStart | F18: Canceled - E | G18: 1650000 | H18: 137500 | I18: 550000 | J18: 2012-04-30 | K18: 2012-05-10 | L18: 2013-04-30 | M18: O - Review | N18: Partial | P18: Not Started | Q18: NA | R18: NA | U18: 4/23 Pending legal rsp then next step: send to Pfizer 4/17 Script with Pfizer | W18: D32
A19: Takeda | B19: =IF(A19="","",VLOOKUP(A19,'Pharma Names'!$A$2:$B$124,2,FALSE)) -> BrianS | C19: Nesina/Oseni RPh Alert | D19: EDU | J19: 2012-05-21 | U19: ON HOLD | W19: D49
A20: Joe Rector | B20: =IF(A20="","",VLOOKUP(A20,'Pharma Names'!$A$2:$B$124,2,FALSE)) ->  | C20: Hep C | D20: CTR | U20: ON HOLD | W20: D44
A21: Pfizer | B21: =IF(A21="","",VLOOKUP(A21,'Pharma Names'!$A$2:$B$124,2,FALSE)) -> JenL | C21: Detrol LA 90D | D21: 90D | E21: 90D | F21: Canceled - E | G21: 1000000 | H21: =G21/12 -> 83333.33333 | I21: =G21/6 -> 166666.6667 | J21: 2012-03-01 | K21: 2012-02-28 | L21: Medium | P21: P39
A22: Pfizer | B22: JenL | C22: Lyrica 90D | D22: 90D | E22: 90D | F22: Canceled - E | G22: 3000000 | H22: =G22/12 -> 250000 | I22: =G22/6 -> 500000 | J22: 2012-03-01 | K22: 2013-02-28 | L22: High | P22: P41
A23: Pfizer | B23: =IF(A23="","",VLOOKUP(A23,'Pharma Names'!$A$2:$B$124,2,FALSE)) -> JenL | C23: Pristiq 90D | D23: 90D | E23: 90D | F23: Canceled - E | G23: 1300000 | H23: =G23/12 -> 108333.3333 | I23: =G23/6 -> 216666.6667 | J23: 2012-03-01 | K23: 2013-02-28 | L23: High | P23: P40
A24: Merck | B24: =IF(A24="","",VLOOKUP(A24,'Pharma Names'!$A$2:$B$124,2,FALSE)) -> VanA | C24: Januvia Family 90D | D24: 90D | E24: 90D | F24: Canceled - E | G24: 2000000 | H24: =G24/12 -> 166666.6667 | I24: =H24*5 -> 833333.3333 | J24: 2012-04-01 | K24: 2013-03-31 | L24: NA | N24: Most likely will not happen | P24: P42
A25: Merck | B25: =IF(A25="","",VLOOKUP(A25,'Pharma Names'!$A$2:$B$124,2,FALSE)) -> VanA | C25: Singulair 90D | D25: 90D | E25: 90D | G25: 4000000 | H25: =G25/6 -> 666666.6667 | I25: =H25*5 -> 3333333.333 | J25: 2012-04-01 | K25: 2012-07-30 | L25: NA | P25: P44
A26: Takeda | B26: =IF(A26="","",VLOOKUP(A26,'Pharma Names'!$A$2:$B$124,2,FALSE)) -> BrianS | C26: Actos 90D | D26: 90D | E26: 90D | F26: Canceled - E | G26: =3000000*5/6 -> 2500000 | H26: =G26/5 -> 500000 | I26: =G26 -> 2500000 | J26: 2012-03-01 | K26: 2013-02-28 | L26: Medium | P26: P25
A27: Daiichi Sankyo | B27: =IF(A27="","",VLOOKUP(A27,'Pharma Names'!$A$2:$B$124,2,FALSE)) -> VanA | C27: Sprix | D27: DATA | E27: Other | F27: Canceled - E | J27: 2012-04-01 | K27: 2012-12-31 | L27: NA | P27: P11
A28: AstraZeneca | B28: =IF(A28="","",VLOOKUP(A28,'Pharma Names'!$A$2:$B$124,2,FALSE)) -> VanA | C28: Crestor | D28: 90D | E28: 90D | F28: Proposed | G28: 1000000 | H28: =G28/12 -> 83333.33333 | I28: =H28 -> 83333.33333 | J28: 2012-08-01 | K28: 2013-07-30 | L28: NA | N28: AZ declined due to legal | P28: P69
A29: Abbott | B29: =IF(A29="","",VLOOKUP(A29,'Pharma Names'!$A$2:$B$124,2,FALSE)) -> MaryT | C29: Creon | D29: 90D | E29: 90D | F29: Proposed | G29: 300000 | H29: =G29/12 -> 25000 | I29: =H29 -> 25000 | J29: 2012-08-01 | K29: 2012-07-30 | L29: Low | N29: Abbott to propose counter 6/28 | P29: P71
A30: Abbott | B30: =IF(A30="","",VLOOKUP(A30,'Pharma Names'!$A$2:$B$124,2,FALSE)) -> MaryT | C30: Niaspan/Simcor | D30: 90D | E30: 90D | F30: Proposed | G30: 1000000 | H30: =G30/12 -> 83333.33333 | I30: =H30 -> 83333.33333 | J30: 2012-08-01 | K30: 2013-07-30 | L30: Medium | N30: Abbott to propose counter 6/28 | P30: P61
A31: Abbott | B31: =IF(A31="","",VLOOKUP(A31,'Pharma Names'!$A$2:$B$124,2,FALSE)) -> MaryT | C31: Norvir Caps to Tabs | D31: ADH | E31: GoodStart | F31: Proposed | J31: 3000-01-01 | K31: 3000-01-01 | L31: NA | N31: Catalina - no direct revenue | P31: P37
A32: Abbott | B32: =IF(A32="","",VLOOKUP(A32,'Pharma Names'!$A$2:$B$124,2,FALSE)) -> MaryT | C32: Synthroid | D32: 90D | E32: 90D | F32: Proposed | G32: 300000 | H32: =G32/12 -> 25000 | I32: =H32 -> 25000 | J32: 2012-08-01 | K32: 2013-07-30 | L32: Low | N32: Abbott to propose counter 6/28 | P32: P62
A33: Abbott | B33: =IF(A33="","",VLOOKUP(A33,'Pharma Names'!$A$2:$B$124,2,FALSE)) -> MaryT | C33: Tricor/Trilipix | D33: 90D | E33: 90D | F33: Proposed | G33: 1000000 | H33: =G33/12 -> 83333.33333 | I33: =H33 -> 83333.33333 | J33: 2012-08-01 | K33: 2013-07-30 | L33: Low | N33: Abbott to propose counter 6/28 | P33: P60
A34: Acurian | B34: =IF(A34="","",VLOOKUP(A34,'Pharma Names'!$A$2:$B$124,2,FALSE)) -> GregL | C34: COPD (1823) | D34: CTR | E34: Direct Mail | F34: Complete - Ct | J34: 2012-04-01 | K34: 2012-04-01 | L34: NA | M34: 237368 | P34: P1
A35: Acurian | B35: =IF(A35="","",VLOOKUP(A35,'Pharma Names'!$A$2:$B$124,2,FALSE)) -> GregL | C35: Gout CTR mailing (2029) | D35: CTR | E35: Direct Mail | F35: Complete - Ct | J35: 2012-05-22 | K35: 2012-05-22 | L35: NA | M35: 156115 | P35: P74
A36: Acurian | B36: =IF(A36="","",VLOOKUP(A36,'Pharma Names'!$A$2:$B$124,2,FALSE)) -> GregL | C36: IBS (1964) | D36: CTR | E36: Direct Mail | F36: Complete - Ct | J36: 2012-06-15 | K36: 2012-06-15 | L36: NA | M36: 61261 | P36: P83
A37: Acurian | B37: =IF(A37="","",VLOOKUP(A37,'Pharma Names'!$A$2:$B$124,2,FALSE)) -> GregL | C37: MDD (1914) | D37: CTR | E37: Direct Mail | F37: Complete - Ct | J37: 2011-12-13 | K37: 2011-12-13 | L37: NA | M37: 2741291 | P37: P80
A38: Acurian | B38: =IF(A38="","",VLOOKUP(A38,'Pharma Names'!$A$2:$B$124,2,FALSE)) -> GregL | C38: Painful Diabetic Peripheral Neuropathy (1870) | D38: CTR | E38: Direct Mail | F38: Complete - Ct | J38: 2011-12-13 | K38: 2011-12-13 | L38: NA | M38: 173028 | N38: Counts only. | P38: P30
A39: Acurian | B39: =IF(A39="","",VLOOKUP(A39,'Pharma Names'!$A$2:$B$124,2,FALSE)) -> GregL | C39: Parkinson's CTR (1929) | D39: CTR | E39: Direct Mail | F39: Complete - Ct | J39: 2012-04-01 | K39: 2012-04-01 | L39: NA | M39: 10845 | N39: Counts only. | P39: P47
A40: Acurian | B40: =IF(A40="","",VLOOKUP(A40,'Pharma Names'!$A$2:$B$124,2,FALSE)) -> GregL | C40: Rheumatoid Arthritis (2012) | D40: CTR | E40: Direct Mail | F40: Complete - Ct | J40: 2012-06-20 | K40: 2012-06-20 | L40: NA | M40: 87913 | N40: Counts only. | P40: P82
A41: Acurian | B41: =IF(A41="","",VLOOKUP(A41,'Pharma Names'!$A$2:$B$124,2,FALSE)) -> GregL | C41: Rosacea (1942) | D41: CTR | E41: Direct Mail | F41: Complete - Ct | J41: 2012-01-25 | K41: 2012-01-25 | L41: NA | M41: 627029 | N41: Counts only. | P41: P81
A42: Acurian | B42: =IF(A42="","",VLOOKUP(A42,'Pharma Names'!$A$2:$B$124,2,FALSE)) -> GregL | C42: MDD (1939) | D42: CTR | E42: Direct Mail | F42: Complete - Ct | J42: 2012-08-02 | K42: 2012-08-02 | L42: NA | M42: 16426 | N42: Counts only. | P42: P86
A43: Acurian | B43: =IF(A43="","",VLOOKUP(A43,'Pharma Names'!$A$2:$B$124,2,FALSE)) -> GregL | C43: Post-MI (2043) | D43: CTR | E43: Direct Mail | F43: Complete - Ct | J43: 2012-07-06 | K43: 2012-07-06 | L43: NA | M43: 662192 | N43: Counts only. | P43: P87
A44: Acurian | B44: =IF(A44="","",VLOOKUP(A44,'Pharma Names'!$A$2:$B$124,2,FALSE)) -> GregL | C44: High Triglycerides (2038) | D44: CTR | E44: Direct Mail | F44: Complete - Ct | J44: 2012-08-08 | K44: 2012-08-10 | L44: NA | M44: 68673 | N44: Counts only. | P44: P89
A45: Acurian | B45: =IF(A45="","",VLOOKUP(A45,'Pharma Names'!$A$2:$B$124,2,FALSE)) -> GregL | C45: Diabetic Neuropathy (2069) | D45: CTR | E45: Direct Mail | F45: Complete - Ct | J45: 2012-08-10 | K45: 2012-08-13 | L45: NA | M45: 389152 | N45: Counts only. | P45: P89
A46: BMS | B46: =IF(A46="","",VLOOKUP(A46,'Pharma Names'!$A$2:$B$124,2,FALSE)) -> CathyP | C46: Atripla Face to face | D46: ADH | E46: F2F | F46: Proposed | G46: 300000 | H46: =G46/12 -> 25000 | I46: =H46*2 -> 50000 | J46: 2012-07-01 | K46: 2013-07-01 | L46: Medium | P46: P56
A47: BMS | B47: =IF(A47="","",VLOOKUP(A47,'Pharma Names'!$A$2:$B$124,2,FALSE)) -> CathyP | C47: Onglyza Family | D47: 90D | E47: 90D | F47: Proposed | G47: 170000 | H47: 14166.66667 | I47: =H47*2 -> 28333.33333 | J47: 2013-01-01 | K47: 2014-06-30 | L47: NA | P47: P70
A48: Boehringer | B48: =IF(A48="","",VLOOKUP(A48,'Pharma Names'!$A$2:$B$124,2,FALSE)) -> VanA | C48: Combivent | D48: 90D | E48: 90D | F48: Proposed | G48: 0 | H48: 0 | I48: =H48 -> 0 | J48: 2013-01-01 | K48: 2013-07-30 | L48: NA | P48: P66
A49: Boehringer | B49: =IF(A49="","",VLOOKUP(A49,'Pharma Names'!$A$2:$B$124,2,FALSE)) -> VanA | C49: Micardis | D49: 90D | E49: 90D | F49: Proposed | G49: 0 | H49: 0 | I49: =H49 -> 0 | J49: 2013-01-01 | K49: 2013-07-30 | L49: NA | P49: P67
A50: Boehringer | B50: =IF(A50="","",VLOOKUP(A50,'Pharma Names'!$A$2:$B$124,2,FALSE)) -> VanA | C50: Spiriva | D50: 90D | E50: 90D | F50: Proposed | G50: 1400000 | H50: 116666.6667 | I50: =H50 -> 116666.6667 | J50: 2013-01-01 | K50: 2013-07-30 | L50: NA | P50: P65
A51: Boehringer | B51: =IF(A51="","",VLOOKUP(A51,'Pharma Names'!$A$2:$B$124,2,FALSE)) -> VanA | C51: Tradjenta Family | D51: 90D | E51: 90D | F51: Proposed | G51: 0 | H51: 0 | I51: =H51 -> 0 | J51: 2013-01-01 | K51: 2013-07-30 | L51: NA | P51: P68
A52: Lilly | B52: =IF(A52="","",VLOOKUP(A52,'Pharma Names'!$A$2:$B$124,2,FALSE)) -> BrianS | C52: Cymbalta | D52: 90D | E52: 90D | F52: Proposed | G52: 1500000 | H52: 125000 | I52: 0 | J52: 2013-01-01 | K52: 2014-12-31 | L52: Low | P52: P72
A53: Abbott | B53: MaryT | C53: Synthroid | D53: 90D | E53: 90D
A54: AstraZeneca | B54: =IF(A54="","",VLOOKUP(A54,'Pharma Names'!$A$2:$B$124,2,FALSE)) -> VanA | C54: Nexium | D54: 90D | E54: 90D
A55: AstraZeneca | B55: =IF(A55="","",VLOOKUP(A55,'Pharma Names'!$A$2:$B$124,2,FALSE)) -> VanA | C55: Crestor | D55: 90D | E55: 90D
A56: Chelsea Therapeutics | B56: =IF(A56="","",VLOOKUP(A56,'Pharma Names'!$A$2:$B$124,2,FALSE)) -> TomR | D56: CTR | E56: Direct Mail | F56: Develop | L56: NA | P56: P85
A57: Galderma | B57: =IF(A57="","",VLOOKUP(A57,'Pharma Names'!$A$2:$B$124,2,FALSE)) -> VanA | C57: Oracea | D57: Education | E57: MPU | F57: Develop | G57: 25000 | H57: 25000 | I57: 25000 | J57: 2012-07-15 | K57: 2012-08-06 | M57: Not Started | N57: Complete | U57: 8/30 On hold. 7/31Follow up with Van on contract | W57: D57
A58: Novo Nordisk | B58: MaryT | C58: Victoza Enhancements (add Catalina) [this program is directily between Novo and Catalina] | D58: Adherence | E58: Other | F58: Develop | G58: 254845 | H58: 21237 | I58: 127422 | J58: 2012-04-01 | L58: 2012-12-31 | M58: Draft | N58: O - Approval | W58: D50
A59: Sunovion | B59: =IF(A59="","",VLOOKUP(A59,'Pharma Names'!$A$2:$B$124,2,FALSE)) -> VanA | C59: Latuda | D59: Education | E59: MPU | F59: Develop | G59: 25000 | H59: 25000 | I59: 25000 | J59: 2012-08-01 | K59: 2012-08-19 | N59: Draft | U59: 7/31 On hold. Send first draft this week to Sunovion
A60: Takeda | B60: =IF(A60="","",VLOOKUP(A60,'Pharma Names'!$A$2:$B$124,2,FALSE)) -> BrianS | C60: Prevacid Solutab MPU | D60: Education | E60: MPU | F60: Develop | G60: 25000 | H60: 25000 | I60: 25000 | J60: 2012-09-01 | K60: 2012-09-01 | M60: Not Started | U60: on hold | W60: D65
A61: UCB | B61: =IF(A61="","",VLOOKUP(A61,'Pharma Names'!$A$2:$B$124,2,FALSE)) -> BrianS | C61: Neupro | D61: Education | E61: MPU | F61: Develop | G61: 25000 | H61: 25000 | I61: 25000 | J61: 2012-07-15 | K61: 2012-08-06 | M61: Not Started | N61: Draft | Q61: NA | R61: NA | S61: NA | W61: D58
A62: Eisai | B62: =IF(A62="","",VLOOKUP(A62,'Pharma Names'!$A$2:$B$124,2,FALSE)) -> VanA | C62: Aciphex direct mailing | D62: Adherence | E62: DM | F62: Proposed | G62: 127000 | H62: 127000 | I62: 127000 | J62: 2012-09-01 | K62: 2013-03-31 | L62: Low | N62: Make patients aware of co-pay offer | P62: P78
A63: Teva | B63: =IF(A63="","",VLOOKUP(A63,'Pharma Names'!$A$2:$B$124,2,FALSE)) -> MaryT | C63: Q-Nasal Launch Playbook | D63: Other | E63: Other | F63: Canceled - E | G63: 4904802 | H63: 700686 | I63: Catalina Campaign | J63: 3000-01-01 | K63: 3000-01-01 | P63: P34
A64: Teva | B64: =IF(A64="","",VLOOKUP(A64,'Pharma Names'!$A$2:$B$124,2,FALSE)) -> MaryT | C64: QNASL Launch Playbook | D64: Other | E64: Other | F64: Canceled - E | G64: 407640 | H64: 135880 | I64: RxEdge (pricing for 6800 stores) (3500 stores $262,500 12 wks or $87,500 per month)
A65: Teva | B65: =IF(A65="","",VLOOKUP(A65,'Pharma Names'!$A$2:$B$124,2,FALSE)) -> MaryT | C65: QNASL Launch Playbook | D65: ADH | E65: Direct Mail | F65: Canceled - E | G65: 244000 | I65: &PCC
A66: J&J (Janssen) | B66: =IF(A66="","",VLOOKUP(A66,'Pharma Names'!$A$2:$B$124,2,FALSE)) -> BrianS | C66: Simponi | D66: RPh Service | E66: SAR | F66: Proposed | G66: 126000 | H66: =G66/12 -> 10500 | I66: =H66*2 -> 21000 | J66: 2012-06-01 | K66: 2013-06-01 | L66: Low | P66: P55
A67: J&J (Janssen) | B67: =IF(A67="","",VLOOKUP(A67,'Pharma Names'!$A$2:$B$124,2,FALSE)) -> BrianS | C67: Xarelto | D67: Adherence | E67: IVR | F67: Proposed | G67: 145000 | H67: =G67/12 -> 12083.33333 | I67: =H67*2 -> 24166.66667 | J67: 2012-06-01 | K67: 2013-06-01 | L67: Low | P67: P54
A68: Lilly | B68: =IF(A68="","",VLOOKUP(A68,'Pharma Names'!$A$2:$B$124,2,FALSE)) -> BrianS | C68: Glucagon hyperglycemia | D68: Adherence | E68: DM | F68: Proposed | G68: 38000 | H68: 38000 | I68: 38000 | J68: 2012-09-01 | K68: 2013-03-31 | L68: Low | P68: P51
A70: Amgen | B70: =IF(A70="","",VLOOKUP(A70,'Pharma Names'!$A$2:$B$124,2,FALSE)) -> MaryT | C70: Enbrel SAR | D70: RPH Service | E70: SAR
A71: Gilead | B71: =IF(A71="","",VLOOKUP(A71,'Pharma Names'!$A$2:$B$124,2,FALSE)) -> MaryT | C71: HIV Quad Pill Launch | D71: Other | E71: Other
A72: J&J (Janssen) | B72: =IF(A72="","",VLOOKUP(A72,'Pharma Names'!$A$2:$B$124,2,FALSE)) -> BrianS | C72: Invega/Risperdol | D72: RPH Service | E72: SAR | G72: 200000 | H72: =G72/12 -> 16666.66667 | I72: =H72*3 -> 50000
A73: Lilly | B73: =IF(A73="","",VLOOKUP(A73,'Pharma Names'!$A$2:$B$124,2,FALSE)) -> BrianS | C73: Livalo | D73: Adherence | E73: DM
A74: Merck | B74: =IF(A74="","",VLOOKUP(A74,'Pharma Names'!$A$2:$B$124,2,FALSE)) -> VanA | C74: Respiratory PSC | D74: PSC | E74: Rebate
A75: Merck | B75: =IF(A75="","",VLOOKUP(A75,'Pharma Names'!$A$2:$B$124,2,FALSE)) -> VanA | C75: Singulair LOE | D75: Other
A76: Merck | B76: =IF(A76="","",VLOOKUP(A76,'Pharma Names'!$A$2:$B$124,2,FALSE)) -> VanA | C76: Vytorin | D76: Adherence | E76: DM | F76: Proposed
A77: Novo Nordisk | B77: MaryT | C77: FlexPen (Novolog, Levamir) | D77: Education | E77: DM | I77: Vial to Pen
A78: Takeda | B78: =IF(A78="","",VLOOKUP(A78,'Pharma Names'!$A$2:$B$124,2,FALSE)) -> BrianS | C78: Actos LOE | D78: Other | E78: Other
A79: Takeda | B79: =IF(A79="","",VLOOKUP(A79,'Pharma Names'!$A$2:$B$124,2,FALSE)) -> BrianS | C79: Actos LOE - Patient Soft Lauch | D79: Education | E79: DM | G79: 250000 | H79: =G79 -> 250000 | I79: =H79 -> 250000
A80: UCB | B80: =IF(A80="","",VLOOKUP(A80,'Pharma Names'!$A$2:$B$124,2,FALSE)) -> BrianS | C80: Nuepro | D80: Adherence | E80: DM | G80: 150000 | H80: =G80/12 -> 12500 | I80: Maybe Pleio. Q2'12 Launch
A81: Lilly | B81: =IF(A81="","",VLOOKUP(A81,'Pharma Names'!$A$2:$B$124,2,FALSE)) -> BrianS | C81: Axiron Face to Face | D81: RPh Service | E81: ADH | F81: Proposed | G81: 1259280 | H81: =G81/12 -> 104940 | I81: =H81*5 -> 524700 | J81: 2012-07-01 | K81: 2013-07-31 | L81: Low | P81: P53
A82: Boehringer | B82: =IF(A82="","",VLOOKUP(A82,'Pharma Names'!$A$2:$B$124,2,FALSE)) -> VanA | C82: Pradaxa Physician Mailing | D82: Education | E82: DM | F82: Develop | G82: 75000 | H82: =IF(L82=K82,G82,G82/((L82-K82)/30)) -> 75000 | I82: =IF(L82=K82,G82,(IF(41517<L82,41517,L82)-K82)/30*H82) -> 75000 | J82: 2012-09-30 | K82: 2012-12-01 | L82: 2012-12-01 | M82: Review | N82: Draft | U82: 10/02 Letters completed in review at BI, contract in Wag legal
A83: Daiichi Sankyo | B83: =IF(A83="","",VLOOKUP(A83,'Pharma Names'!$A$2:$B$124,2,FALSE)) -> VanA | C83: Welchol | D83: Adherence | E83: DM | F83: Develop | G83: 359100 | H83: =G83/12 -> 29925 | I83: =H83*5 -> 149625 | J83: 2012-10-31 | K83: 2012-12-11 | M83: Review | N83: O - Approval | U83: 10/16 Letters will be with Adheris, MSA w/mfg SOW w/Wag
A84: Salix | B84: CathyP | C84: Relistor | D84: Education | E84: MPU | F84: Develop | G84: 25000 | H84: 25000 | I84: 25000 | J84: 2012-10-02 | K84: 2012-10-02 | L84: =K84 -> 2012-10-02 | M84: O - Review | N84: Complete | U84: 6/12 Waiting as of 5/22 for Salix's response to the agreement ON HOLD

Sheet Archieved (hidden)
A1: Archived Programs (Completed prior to FY'12)
A3: Client | B3: Program Name | C3: Solution | D3: Product | E3: Status | F3: NPAD | G3: Estimated Contract Value | H3: Estimated Monthly Value | I3: Estimated FY Contract | J3: Target Start Date | K3: Expiration Date | L3: Renewal Process | M3: Target Enrollment | N3: Enrollment to Date | O3: Contract to Date Activity | P3: Next Report Due Date | Q3: Latest Report Results | R3: PCC # | S3: Comments
A4: GSK | B4: Vesicare | C4: ADH | D4: Direct Mail | E4: Completed | F4: NA | G4: 106139.8 | J4: 2010-02-09 | K4: 2010-08-12 | M4: (80,190 ltrs) | Q4: 8333
A5: Novartis | B5: Diovan, Diovan HCT | C5: ADH | D5: Direct Mail | E5: Completed | F5: NA | G5: 1487307.95 | J5: 2009-07-06 | K5: 2010-10-13 | Q5: 8233 & 8234
A6: GSK | B6: Lovaza | C6: ADH | D6: Direct Mail | E6: Completed | F6: NA | G6: 771004.84 | J6: 2009-04-23 | K6: 2010-12-15 | M6: 52200 | Q6: 8193
A7: Lilly | B7: Strattera | C7: ADH | D7: Direct Mail | E7: Completed | F7: NA | G7: 70697.45 | J7: 2010-04-09 | K7: 2010-12-16 | M7: (96,154 ltrs) | Q7: 8096
A8: Amylin | B8: Byetta | C8: ADH | D8: Direct Mail | E8: Completed | F8: NA | G8: 97474 | J8: 2010-02-19 | K8: 2010-12-31 | M8: 22500 | Q8: 8275
A9: Lilly | B9: Cymbalta | C9: ADH | D9: Direct Mail | E9: Completed | F9: NA | G9: 645041.8 | J9: 2009-02-01 | K9: 2011-01-11 | M9: 104500 | Q9: 7493 | R9: (324,368 ltrs)
A10: Sanofi-BMS | B10: Plavix Zero Refill | C10: ADH | D10: Direct Mail | E10: Completed | F10: NA | G10: 48942.4 | J10: 2010-08-02 | K10: 2010-12-31 | M10: 75000 | Q10: 8285
A11: Takeda | B11: Actos, ActosPLUS met | C11: ADH | D11: Direct Mail | E11: Completed | F11: NA | G11: 394194 | J11: 2009-03-16 | K11: 2011-03-31 | M11: 100400 | Q11: 8173 & 8174
A12: Abbott | B12: Niaspan/Simcor IVR | C12: ADH | D12: Direct Mail | E12: Completed | F12: NA | G12: 200000 | J12: 2010-08-05 | K12: 2011-05-30 | M12: 48000 | Q12: N/A
A13: Abbott | B13: Tricor/Trilipix | C13: ADH | D13: Direct Mail | E13: Completed | F13: NA | G13: 660000 | J13: 2010-05-01 | K13: 2011-07-31 | M13: 110180 | Q13: 8393 & 8394
A14: Sanofi | B14: Multaq | C14: ADH | D14: Direct Mail | E14: Completed | F14: NA | G14: 81250 | J14: 2010-03-15 | K14: 2011-07-31 | M14: 20000 | Q14: 8295
A15: SDI | B15: Suboxone REMS | C15: REMS | D15: Direct Mail | E15: Completed | F15: NA | G15: 10625 | J15: 2010-11-12 | K15: 2010-11-29
A16: SDI | B16: Forteo REMS | C16: REMS | D16: Direct Mail | E16: Completed | F16: NA | G16: 11507.5 | J16: 2010-11-16 | K16: 2010-11-19
A17: SDI | B17: Androgel REMS | C17: REMS | D17: Direct Mail | E17: Completed | F17: NA | G17: 9375 | J17: 2010-11-29 | K17: 2010-12-13
A18: SDI | B18: Colcrys REMS | C18: REMS | D18: Direct Mail | E18: Completed | F18: NA | G18: 9375 | J18: 2010-12-06 | K18: 2011-01-10
A19: SDI | B19: Zonegran REMS | C19: REMS | D19: Direct Mail | E19: Completed | F19: NA | G19: 9375 | J19: 2010-12-10 | K19: 2011-01-14
A20: Pinney | B20: Edluar | E20: Completed | F20: NA | G20: 4710 | J20: 2011-02-18 | K20: 2011-03-09 | Q20: 8813 | R20: (+884 repeat)
A21: Acurian | B21: Depression Clinical Trial notice - 1st batch | C21: CTR | D21: Direct Mail | E21: Completed | F21: NA | G21: 92733 | J21: 2011-02-18 | K21: 2011-02-28 | Q21: 8853 | R21: 2 mailings
A22: Acurian | B22: Depression Clinical Trial notice - 2nd batch, w76-w77 | C22: CTR | D22: Direct Mail | E22: Completed | F22: NA | G22: 93455 | J22: 2011-04-28 | K22: 2011-04-28 | Q22: 8853
A23: Acurian | B23: Bipolar Disorder Clinical Trial notice | C23: CTR | D23: Direct Mail | E23: Completed | F23: NA | G23: 29866 | J23: 2011-05-05 | K23: 2011-05-05
A24: Acurian | B24: Depression Clinical Trial notice - 3rd batch, w 78 , w79 | C24: CTR | D24: Direct Mail | E24: Completed | F24: NA | G24: 222818 | J24: 2011-05-18 | K24: 2011-05-27 | Q24: 8853
A25: Acurian | B25: Depression Clinical Trial notice - 4th batch, w113, w121 | C25: CTR | D25: Direct Mail | E25: Completed | F25: NA | G25: 109052 | J25: 2011-06-21 | K25: 2011-06-21 | Q25: 8853
A26: Acurian | B26: Opioid Induced Constipation, w12, w22 | C26: CTR | D26: Direct Mail | E26: Completed | F26: NA | G26: 29192 | J26: 2011-06-03 | K26: 2011-06-03
A27: SDI | B27: Zortress REMS survey | C27: REMS | D27: Direct Mail | E27: Completed | F27: NA | G27: 7563 | J27: 2011-06-09 | K27: 2011-06-16
A28: Novartis | B28: Diovan F2F | C28: ADH | D28: F2F | E28: Completed | F28: NA | G28: 344107.8 | J28: OKC -8/4/2009 | K28: 2010-10-19 | R28: 8278 & 8279
A29: Novarrtis | B29: Diovan HCT F2F | C29: ADH | D29: F2F | E29: Completed | F29: NA | J29: NJ - 8/6/2009 | K29: 2010-10-19 | R29: 8281 & 8282
A30: Sunovion | B30: Latuda | C30: EDU | D30: Fax | E30: Completed | F30: NA | G30: 20000 | J30: 2011-02-18 | S30: Bulletin
A31: Allergan | B31: Zymar D/C notice | C31: EDU | D31: Fax | E31: Completed | F31: NA | G31: 20000 | J31: 2011-04-08 | S31: Store Bulletin
A32: Ferring | B32: Lysteda | C32: EDU | D32: RxNews | E32: Completed | F32: NA | G32: 25000 | J32: 2011-04-08 | S32: RxNews
A33: Silenor | B33: Somaxon | C33: EDU | D33: RxNews | E33: Completed | F33: NA | G33: 25000 | J33: 2011-04-14 | S33: RxNews
A34: Abbott | B34: Androgel 1.62% | C34: EDU | D34: Fax | E34: Completed | F34: NA | G34: 15000 | J34: 2011-06-10 | S34: NPI
A35: B&L | B35: Zirgan | C35: EDU | D35: Fax | E35: Completed | F35: NA | J35: 2011-07-07 | S35: MPU
A36: SDI | B36: Factive REMS | C36: REMS | D36: Direct Mail | E36: Completed | F36: NA | G36: 17500 | J36: 2011-03-03 | K36: 2011-03-21 | N36: 4000 | R36: 8834
A37: SDI | B37: Seroquel REMS | C37: REMS | D37: Direct Mail | E37: Completed | F37: NA | G37: =7500+2000*2.5 -> 12500 | J37: 2011-02-21 | K37: 2011-03-28 | N37: 2000 | R37: 8833
A38: Sanofi | B38: Lantus Opticlik D/C | C38: EDU | D38: Direct Mail | E38: Completed | F38: NA | G38: 18962.2 | J38: 2011-01-18 | K38: -- | N38: 3447 | R38: 8758
A39: SDI | B39: Byetta REMS | C39: REMS | D39: Direct Mail | E39: Completed | F39: NA | G39: 10000 | J39: 2011-01-26 | K39: -- | N39: 1000 | R39: 8793
A40: SDI | B40: Qualaquin REMS survey | C40: REMS | D40: Direct Mail | E40: Completed | F40: NA | G40: =7500+750 -> 8250 | J40: 2011-08-17 | N40: 300
A41: NovoNordisk | B41: Pleio GoodStart Pgm | C41: ADH | D41: GoodStart | E41: Completed | F41: NA | J41: 2011-06-16 | R41: Pleio
A42: SDI | B42: Suboxone REMS survey | C42: REMS | D42: Direct Mail | E42: Completed | F42: NA | G42: =7500+63 -> 7563 | J42: 2011-06-24 | N42: 1500
A43: Perrigo | B43: Wal-Fex Allergy OTC notice | C43: OTHER | D43: Direct Mail | E43: Completed | F43: NA | G43: 150000 | J43: 2011-04-15 | N43: est 150,000 | R43: N/A
A44: Acurian | B44: Opioid Induced Constipation, w40 | C44: CTR | D44: Direct Mail | E44: Completed | F44: NA | G44: 119489 | J44: 2011-06-24 | N44: 119485
A45: Acurian | B45: Opioid Induced Constipation, wave 126 | C45: CTR | D45: Direct Mail | E45: Completed | F45: NA | G45: 21504 | J45: 2011-08-25 | N45: 21504
A46: Acurian | B46: Opioid Induced Constipation, wave w113 | C46: CTR | D46: Direct Mail | E46: Completed | F46: NA | G46: 36894 | J46: 2011-08-16 | N46: 36894
A47: Acurian | B47: Opioid Induced Constipation, wave w83 | C47: CTR | D47: Direct Mail | E47: Completed | F47: NA | G47: 11007 | J47: 2011-07-20 | N47: 11007
A48: Acurian | B48: Opioid Induced Constipation, wavie w72 | C48: CTR | D48: Direct Mail | E48: Completed | F48: NA | G48: 13929 | J48: 2011-07-08 | N48: 13929
A49: Acurian | B49: PAH, wave w1 | C49: CTR | D49: Direct Mail | E49: Completed | F49: NA | G49: 8461 | J49: 2011-07-29 | N49: 961 | R49: 1643
A50: Amylin | B50: Byetta | C50: ADH | D50: Direct Mail | E50: Active | F50: Jen L. | G50: 111000 | J50: 2011-07-09 | K50: 2012-03-30 | N50: 5043 | R50: 1925-01-01
A51: B & L | B51: Zirgan Physician Letter | C51: EDU | D51: Direct Mail | E51: Completed | F51: NA | J51: 2011-07-08 | N51: 4000
A52: Chattem | B52: Allegra/Allegra D OTC | C52: OTHER | D52: Direct Mail | E52: Completed | F52: NA | G52: 357150 | J52: 2011-02-24 | N52: 359331 | R52: N/A
A53: Daiichi-Sankyo | B53: Sprix Physician Letter | D53: Direct Mail | E53: Completed | F53: NA | G53: =10000+14741*2.5 -> 46852.5 | J53: 2011-08-11 | N53: 14741
A54: DEY | B54: EpiPen reminder | C54: ADH | D54: Direct Mail | E54: Completed | F54: NA | G54: 297000 | J54: 2011-01-06 | K54: -- | N54: 110000 | R54: 8756
A55: GSK | B55: Avodart | C55: ADH | D55: Direct Mail | E55: Completed | F55: NA | G55: 3654 | J55: 2011-05-03 | K55: 2011-07-01 | M55: 52,560 ltrs | N55: 1446 | R55: 8954
A56: PDI | B56: Dose-Alert time cap | C56: ADH | D56: OTHER | E56: Completed | F56: NA | G56: 39000 | J56: 2010-12-22 | K56: -- | N56: 13400 | R56: 8755
A57: NovoNordisk | B57: Novolog FlexPen | C57: ADH | D57: Direct Mail | E57: Completed | F57: NA | G57: 27500 | J57: 2010-10-27 | M57: 4000 | N57: 9683 | R57: 8533
A58: NovoNordisk | B58: Novolog Mix | C58: ADH | D58: Direct Mail | E58: Completed | F58: NA | J58: 2010-08-06 | R58: 8474

Sheet Budget Sheet
A1: FY'13 Accrual to Budget Report
A2: Retail Trade Strategy
A3: (accrual values on this report are not adjusted to match invoices or receivables)
A6: Revenue: YTD | F6: Gross Profit YTD | L6: Full FY Projected
A7: Service | B7: Revenue | C7: BUDGET | D7: VAR | F7: GP% | G7: Budg GP% | H7: GP $ | I7: Budg GP $ | J7: GP Var | L7: Service | M7: Revenue | N7: FY GP% | O7: GP
A8: =A27 -> Adherence | B8: =SUM(B27:M27) -> 7833898.74 | C8: =SUM(B65:M65) -> 10820000 | D8: =B8-C8 -> -2986101.26 | F8: 0.56 | G8: =F8 -> 0.56 | H8: =F8*B8 -> 4386983.294 | I8: =C8*G8 -> 6059200 | J8: =H8-I8 -> -1672216.706 | L8: +Adherence | M8: =B8+INDEX(B27:M27,MATCH(9.99999999999999E+307,B27:M27))*COUNTBLANK(B27:M27) -> 9848238.38 | N8: =O8/M8 -> 0.56 | O8: =M8*F8 -> 5515013.493
A9: RPh Service | B9: 3358691.6 | C9: 3333333.333 | D9: 25358.26667 | F9: 0.67 | G9: 0.7 | H9: 2250323.372 | I9: 2333333.333 | J9: =H9-I9 -> -83009.96133 | L9: RPh Service | M9: =B9+INDEX(B28:M28,MATCH(9.99999999999999E+307,B28:M28))*COUNTBLANK(B28:M28) -> 3907379.8 | N9: =O9/M9 -> 0.67 | O9: =M9*F9 -> 2617944.466
A10: Clinical Trials | B10: 954759 | C10: 2900000 | D10: -1945241 | F10: 0.45 | G10: 0.7 | H10: 429641.55 | I10: 2030000 | J10: -1600358.45 | L10: Clinical Research | M10: =B10+INDEX(B29:M29,MATCH(9.99999999999999E+307,B29:M29))*COUNTBLANK(B29:M29)+250000 -> 1507675 | N10: =1-0.55 -> 0.45 | O10: =N10*M10 -> 678453.75
A11: PSC | B11: 1598000 | C11: 1665000 | D11: -67000 | F11: 1 | G11: =F11 -> 1 | H11: 1598000 | I11: 1665000 | J11: -67000 | L11: PSC | M11: 1954000 | N11: =O11/M11 -> 1 | O11: =M11*F11 -> 1954000
A12: Education | B12: 432717.5 | C12: 1350000 | D12: -917282.5 | F12: 0.55 | G12: =F12 -> 0.55 | H12: 237994.625 | I12: 742500 | J12: -504505.375 | L12: Education | M12: 652717.5 | N12: =O12/M12 -> 0.55 | O12: 358994.625
A13: 90-Day | B13: 743573.65 | C13: 1066666.667 | D13: -323093.0167 | F13: 1 | G13: =F13 -> 1 | H13: 743573.65 | I13: 1066666.667 | J13: -323093.0167 | L13: 90-Day | M13: 901573.65 | N13: =O13/M13 -> 1 | O13: 901573.65
A14: Marketing | B14: 2736297 | C14: 891666.6667 | D14: 1844630.333 | F14: =900000/2900000 -> 0.3103448276 | G14: 0.8 | H14: 849195.6207 | I14: 713333.3333 | J14: 135862.2874 | L14: Marketing | M14: =B14+INDEX(B33:M33,MATCH(9.99999999999999E+307,B33:M33))*COUNTBLANK(B33:M33)-974000*2 -> 2735924 | N14: =O14/M14 -> 0.3103448276 | O14: 849079.8621
A15: Data | B15: 0 | C15: 600000 | D15: -600000 | F15: 0.9 | G15: =F15 -> 0.9 | H15: 0 | I15: 540000 | J15: -540000 | L15: Data | M15: 0 | N15: 0.9 | O15: 0
A16: Outcomes | B16: 0 | C16: 500000 | D16: -500000 | F16: 0.5 | G16: =F16 -> 0.5 | H16: 0 | I16: 250000 | J16: -250000 | L16: Insights | M16: 0 | N16: 0.5 | O16: 0
A17: Other | B17: 1296510.389 | C17: 642444.4444 | D17: 654065.9448 | F17: 0.55 | G17: 4.29 | H17: 713080.7141 | I17: 2756086.667 | J17: -2043005.953 | L17: Other | M17: 1509938.209 | N17: 0.55 | O17: 830466.0151
A19: Total | B19: =SUM(B8:B18) -> 18954447.88 | C19: =SUM(C8:C18) -> 23769111.11 | D19: =SUM(D8:D17) -> -4814663.232 | F19: =H19/B19 -> 0.5913542245 | G19: =I19/C19 -> 0.7638535541 | H19: =SUM(H8:H17) -> 11208792.83 | I19: =SUM(I8:I18) -> 18156120 | J19: =SUM(J8:J18) -> -6947327.174 | L19: Total | M19: =SUM(M8:M17) -> 23017446.54 | N19: =O19/M19 -> 0.59544076 | O19: =SUM(O8:O17) -> 13705525.86
L20: Budget | M20: =SUM(B60:M60) -> 30000000 | N20: =O20/M20 -> 0.7666666667 | O20: 23000000
L21: Variance | M21: =M19-M20 -> -6982553.461 | N21: =(N19-N20)/N19 -> -0.2875616151 | O21: =O19-O20 -> -9294474.139
L22: Variance % | M22: =M21/M20 -> -0.232751782 | O22: =O21/O20 -> -0.4041075713
A25: Monthly Values | V25: FY'13 PROJECTED (current rates)
A26: Service | B26: 2012-09-01 | C26: 2012-10-01 | D26: 2012-11-01 | E26: 2012-12-01 | F26: 2013-01-01 | G26: 2013-02-01 | H26: 2013-03-01 | I26: 2013-04-01 | J26: 2013-05-01 | K26: 2013-06-01 | L26: 2013-07-01 | M26: 2013-08-01 | N26: BUDG LM | O26: Var LM | V26: PROJECT | W26: BUDGET | X26: VAR | AJ26: Service | AK26: Revenue | AL26: GP% | AM26: GP | AN26: Growth Assumptions | AP26: Service | AQ26: Revenue | AR26: GP% | AS26: GP
A27: Adherence | B27: =SUMIFS('Active-Completed'!AH$4:AH$228,'Active-Completed'!$D$4:$D$228,$A27) -> 189092.46 | C27: =SUMIFS('Active-Completed'!AI$4:AI$228,'Active-Completed'!$D$4:$D$228,$A27) -> 245569.56 | D27: =SUMIFS('Active-Completed'!AJ$4:AJ$228,'Active-Completed'!$D$4:$D$228,$A27) -> 761987.09 | E27: =SUMIFS('Active-Completed'!AK$4:AK$228,'Active-Completed'!$D$4:$D$228,$A27) -> 1137240.39 | F27: =SUMIFS('Active-Completed'!AL$4:AL$228,'Active-Completed'!$D$4:$D$228,$A27) -> 908740.13 | G27: =SUMIFS('Active-Completed'!AM$4:AM$228,'Active-Completed'!$D$4:$D$228,$A27) -> 754487.34 | H27: =SUMIFS('Active-Completed'!AN$4:AN$228,'Active-Completed'!$D$4:$D$228,$A27) -> 984377.66 | I27: =SUMIFS('Active-Completed'!AO$4:AO$228,'Active-Completed'!$D$4:$D$228,$A27) -> 1014582.31 | J27: =SUMIFS('Active-Completed'!AP$4:AP$228,'Active-Completed'!$D$4:$D$228,$A27) -> 830651.98 | K27: =SUMIFS('Active-Completed'!AQ$4:AQ$228,'Active-Completed'!$D$4:$D$228,$A27) -> 1007169.82 | N27: =N65 -> 957000 | O27: =INDEX(B27:M27,MATCH(9.99999999999999E+307,B27:M27))-N27 -> 50169.82 | V27: =B27+C27+D27+E27+1400000*8 -> 13533889.5 | W27: =#REF! ->  | X27: =V27-W27 ->  | AJ27: +Adherence | AK27: =1300000*12 -> 15600000 | AL27: 0.56 | AM27: =AL27*AK27 -> 8736000 | AN27: $1.3 M per Month in Nov'12 | AP27: +Adherence | AQ27: 1682079 | AR27: 0.2 | AS27: =AR27*AQ27 -> 336415.8 | AT27: =AM27-AS27 -> 8399584.2 | AV27: =COUNTBLANK(B27:M27) -> 2
A28: RPh Service | B28: =SUMIFS('Active-Completed'!AH$4:AH$228,'Active-Completed'!$D$4:$D$228,$A28) -> 320715 | C28: =SUMIFS('Active-Completed'!AI$4:AI$228,'Active-Completed'!$D$4:$D$228,$A28) -> 318323 | D28: =SUMIFS('Active-Completed'!AJ$4:AJ$228,'Active-Completed'!$D$4:$D$228,$A28) -> 359696.5 | E28: =SUMIFS('Active-Completed'!AK$4:AK$228,'Active-Completed'!$D$4:$D$228,$A28) -> 293210.5 | F28: =SUMIFS('Active-Completed'!AL$4:AL$228,'Active-Completed'!$D$4:$D$228,$A28) -> 332160 | G28: =SUMIFS('Active-Completed'!AM$4:AM$228,'Active-Completed'!$D$4:$D$228,$A28) -> 371653.5 | H28: =SUMIFS('Active-Completed'!AN$4:AN$228,'Active-Completed'!$D$4:$D$228,$A28) -> 376377.5 | I28: =SUMIFS('Active-Completed'!AO$4:AO$228,'Active-Completed'!$D$4:$D$228,$A28) -> 330258 | J28: =SUMIFS('Active-Completed'!AP$4:AP$228,'Active-Completed'!$D$4:$D$228,$A28) -> 381953.5 | K28: =SUMIFS('Active-Completed'!AQ$4:AQ$228,'Active-Completed'!$D$4:$D$228,$A28) -> 274344.1 | N28: 333333.3333 | O28: -58989.23333 | V28: =B9+B9/4*8 -> 10076074.8 | W28: =#REF! ->  | X28: =V28-W28 ->  | AJ28: RPh Service | AK28: 9035460 | AL28: 0.67 | AM28: 6053758.2 | AN28: Grow volume by 2x | AP28: RPh Service | AQ28: =AK28 -> 9035460 | AR28: =N9 -> 0.67 | AS28: 6053758.2
A29: Clinical Trials | B29: =SUMIFS('Active-Completed'!AH$4:AH$228,'Active-Completed'!$D$4:$D$228,$A29) -> 12075 | C29: =SUMIFS('Active-Completed'!AI$4:AI$228,'Active-Completed'!$D$4:$D$228,$A29) -> 367067 | D29: =SUMIFS('Active-Completed'!AJ$4:AJ$228,'Active-Completed'!$D$4:$D$228,$A29) -> 94469.2 | E29: =SUMIFS('Active-Completed'!AK$4:AK$228,'Active-Completed'!$D$4:$D$228,$A29) -> 101529.8 | F29: =SUMIFS('Active-Completed'!AL$4:AL$228,'Active-Completed'!$D$4:$D$228,$A29) -> 228160 | G29: =SUMIFS('Active-Completed'!AM$4:AM$228,'Active-Completed'!$D$4:$D$228,$A29) -> 0 | H29: =SUMIFS('Active-Completed'!AN$4:AN$228,'Active-Completed'!$D$4:$D$228,$A29) -> 0 | I29: =SUMIFS('Active-Completed'!AO$4:AO$228,'Active-Completed'!$D$4:$D$228,$A29) -> 0 | J29: =SUMIFS('Active-Completed'!AP$4:AP$228,'Active-Completed'!$D$4:$D$228,$A29) -> 0 | K29: =SUMIFS('Active-Completed'!AQ$4:AQ$228,'Active-Completed'!$D$4:$D$228,$A29) -> 151458 | N29: 400000 | O29: -248542 | V29: =B10+B10/4*8 -> 2864277 | W29: =#REF! ->  | X29: =V29-W29 ->  | AJ29: Clinical Research | AK29: 5000000 | AL29: 0.5 | AM29: 2500000 | AN29: Recruitment via PFP / Observational studies x 4 | AP29: Clinical Research | AQ29: 3000000 | AR29: 0.5 | AS29: 1500000 | AT29: =AM29-AS29 -> 1000000
A30: PSC | B30: =SUMIFS('Active-Completed'!AH$4:AH$228,'Active-Completed'!$D$4:$D$228,$A30) -> 140000 | C30: =SUMIFS('Active-Completed'!AI$4:AI$228,'Active-Completed'!$D$4:$D$228,$A30) -> 158000 | D30: =SUMIFS('Active-Completed'!AJ$4:AJ$228,'Active-Completed'!$D$4:$D$228,$A30) -> 140000 | E30: =SUMIFS('Active-Completed'!AK$4:AK$228,'Active-Completed'!$D$4:$D$228,$A30) -> 140000 | F30: =SUMIFS('Active-Completed'!AL$4:AL$228,'Active-Completed'!$D$4:$D$228,$A30) -> 160000 | G30: =SUMIFS('Active-Completed'!AM$4:AM$228,'Active-Completed'!$D$4:$D$228,$A30) -> 168000 | H30: =SUMIFS('Active-Completed'!AN$4:AN$228,'Active-Completed'!$D$4:$D$228,$A30) -> 168000 | I30: =SUMIFS('Active-Completed'!AO$4:AO$228,'Active-Completed'!$D$4:$D$228,$A30) -> 168000 | J30: =SUMIFS('Active-Completed'!AP$4:AP$228,'Active-Completed'!$D$4:$D$228,$A30) -> 178000 | K30: =SUMIFS('Active-Completed'!AQ$4:AQ$228,'Active-Completed'!$D$4:$D$228,$A30) -> 178000 | N30: 175000 | O30: 3000 | V30: =B11+160000*8 -> 2878000 | W30: =#REF! ->  | AJ30: PSC | AK30: 2016000 | AL30: 1 | AM30: 2016000 | AN30: No Private Brand Insulin | AP30: PSC | AQ30: 2016000 | AR30: =N11 -> 1 | AS30: 2016000
A31: Education | B31: =SUMIFS('Active-Completed'!AH$4:AH$228,'Active-Completed'!$D$4:$D$228,$A31) -> 24730 | C31: =SUMIFS('Active-Completed'!AI$4:AI$228,'Active-Completed'!$D$4:$D$228,$A31) -> 52110 | D31: =SUMIFS('Active-Completed'!AJ$4:AJ$228,'Active-Completed'!$D$4:$D$228,$A31) -> 0 | E31: =SUMIFS('Active-Completed'!AK$4:AK$228,'Active-Completed'!$D$4:$D$228,$A31) -> 100000 | F31: =SUMIFS('Active-Completed'!AL$4:AL$228,'Active-Completed'!$D$4:$D$228,$A31) -> 50000 | G31: =SUMIFS('Active-Completed'!AM$4:AM$228,'Active-Completed'!$D$4:$D$228,$A31) -> 50000 | H31: =SUMIFS('Active-Completed'!AN$4:AN$228,'Active-Completed'!$D$4:$D$228,$A31) -> 45877.5 | I31: =SUMIFS('Active-Completed'!AO$4:AO$228,'Active-Completed'!$D$4:$D$228,$A31) -> 0 | J31: =SUMIFS('Active-Completed'!AP$4:AP$228,'Active-Completed'!$D$4:$D$228,$A31) -> 0 | K31: =SUMIFS('Active-Completed'!AQ$4:AQ$228,'Active-Completed'!$D$4:$D$228,$A31) -> 110000 | N31: 300000 | O31: -190000 | V31: =B12+B12/4*8 -> 1298152.5 | W31: =#REF! ->  | AJ31: Education | AK31: 500000 | AL31: 0.55 | AM31: 275000 | AN31: No Growth | AP31: Education | AQ31: 500000 | AR31: =N12 -> 0.55 | AS31: 275000
A32: 90-Day | B32: =SUMIFS('Active-Completed'!AH$4:AH$228,'Active-Completed'!$D$4:$D$228,$A32) -> 120000 | C32: =SUMIFS('Active-Completed'!AI$4:AI$228,'Active-Completed'!$D$4:$D$228,$A32) -> 28000 | D32: =SUMIFS('Active-Completed'!AJ$4:AJ$228,'Active-Completed'!$D$4:$D$228,$A32) -> 38000 | E32: =SUMIFS('Active-Completed'!AK$4:AK$228,'Active-Completed'!$D$4:$D$228,$A32) -> 38000 | F32: =SUMIFS('Active-Completed'!AL$4:AL$228,'Active-Completed'!$D$4:$D$228,$A32) -> 137433.65 | G32: =SUMIFS('Active-Completed'!AM$4:AM$228,'Active-Completed'!$D$4:$D$228,$A32) -> 68000 | H32: =SUMIFS('Active-Completed'!AN$4:AN$228,'Active-Completed'!$D$4:$D$228,$A32) -> 68000 | I32: =SUMIFS('Active-Completed'!AO$4:AO$228,'Active-Completed'!$D$4:$D$228,$A32) -> 68000 | J32: =SUMIFS('Active-Completed'!AP$4:AP$228,'Active-Completed'!$D$4:$D$228,$A32) -> 99140 | K32: =SUMIFS('Active-Completed'!AQ$4:AQ$228,'Active-Completed'!$D$4:$D$228,$A32) -> 79000 | N32: 216666.6667 | O32: -137666.6667 | V32: =B13+50000*8 -> 1143573.65 | W32: =#REF! ->  | AJ32: 90-Day | AK32: 2448000 | AL32: 1 | AM32: 2448000 | AN32: 3x Growth + Performance | AP32: 90-Day | AQ32: 2448000 | AR32: =N13 -> 1 | AS32: 2448000
A33: Marketing | B33: =SUMIFS('Active-Completed'!AH$4:AH$228,'Active-Completed'!$D$4:$D$228,$A33) -> 0 | C33: =SUMIFS('Active-Completed'!AI$4:AI$228,'Active-Completed'!$D$4:$D$228,$A33) -> 0 | D33: =SUMIFS('Active-Completed'!AJ$4:AJ$228,'Active-Completed'!$D$4:$D$228,$A33) -> 0 | E33: =SUMIFS('Active-Completed'!AK$4:AK$228,'Active-Completed'!$D$4:$D$228,$A33) -> 0 | F33: =SUMIFS('Active-Completed'!AL$4:AL$228,'Active-Completed'!$D$4:$D$228,$A33) -> 0 | G33: =SUMIFS('Active-Completed'!AM$4:AM$228,'Active-Completed'!$D$4:$D$228,$A33) -> 0 | H33: =SUMIFS('Active-Completed'!AN$4:AN$228,'Active-Completed'!$D$4:$D$228,$A33) -> 1147852.5 | I33: =SUMIFS('Active-Completed'!AO$4:AO$228,'Active-Completed'!$D$4:$D$228,$A33) -> 614631 | J33: =SUMIFS('Active-Completed'!AP$4:AP$228,'Active-Completed'!$D$4:$D$228,$A33) -> 0 | K33: =SUMIFS('Active-Completed'!AQ$4:AQ$228,'Active-Completed'!$D$4:$D$228,$A33) -> 973813.5 | N33: 191666.6667 | O33: 782146.8333 | V33: 2000000 | W33: =#REF! ->  | AJ33: Marketing | AK33: 10591691 | AL33: 0.31 | AM33: 3283424.21 | AN33: Chantix renews plus 2; Bus | AP33: Marketing | AQ33: 10591691 | AR33: =AL33 -> 0.31 | AS33: 3283424.21
A34: Data | B34: =SUMIFS('Active-Completed'!AH$4:AH$228,'Active-Completed'!$D$4:$D$228,$A34) -> 0 | C34: =SUMIFS('Active-Completed'!AI$4:AI$228,'Active-Completed'!$D$4:$D$228,$A34) -> 0 | D34: =SUMIFS('Active-Completed'!AJ$4:AJ$228,'Active-Completed'!$D$4:$D$228,$A34) -> 0 | E34: =SUMIFS('Active-Completed'!AK$4:AK$228,'Active-Completed'!$D$4:$D$228,$A34) -> 0 | F34: =SUMIFS('Active-Completed'!AL$4:AL$228,'Active-Completed'!$D$4:$D$228,$A34) -> 0 | G34: =SUMIFS('Active-Completed'!AM$4:AM$228,'Active-Completed'!$D$4:$D$228,$A34) -> 0 | H34: =SUMIFS('Active-Completed'!AN$4:AN$228,'Active-Completed'!$D$4:$D$228,$A34) -> 0 | I34: =SUMIFS('Active-Completed'!AO$4:AO$228,'Active-Completed'!$D$4:$D$228,$A34) -> 0 | J34: =SUMIFS('Active-Completed'!AP$4:AP$228,'Active-Completed'!$D$4:$D$228,$A34) -> 0 | K34: =SUMIFS('Active-Completed'!AQ$4:AQ$228,'Active-Completed'!$D$4:$D$228,$A34) -> 0 | N34: 200000 | O34: -200000 | V34: 0 | W34: =#REF! ->  | AJ34: Data | AK34: 0 | AL34: 0.9 | AM34: 0 | AP34: Data | AQ34: 0 | AR34: =N15 -> 0.9 | AS34: 0
A35: Outcomes | B35: =SUMIFS('Active-Completed'!AH$4:AH$228,'Active-Completed'!$D$4:$D$228,$A35) -> 0 | C35: =SUMIFS('Active-Completed'!AI$4:AI$228,'Active-Completed'!$D$4:$D$228,$A35) -> 0 | D35: =SUMIFS('Active-Completed'!AJ$4:AJ$228,'Active-Completed'!$D$4:$D$228,$A35) -> 0 | E35: =SUMIFS('Active-Completed'!AK$4:AK$228,'Active-Completed'!$D$4:$D$228,$A35) -> 0 | F35: =SUMIFS('Active-Completed'!AL$4:AL$228,'Active-Completed'!$D$4:$D$228,$A35) -> 0 | G35: =SUMIFS('Active-Completed'!AM$4:AM$228,'Active-Completed'!$D$4:$D$228,$A35) -> 0 | H35: =SUMIFS('Active-Completed'!AN$4:AN$228,'Active-Completed'!$D$4:$D$228,$A35) -> 0 | I35: =SUMIFS('Active-Completed'!AO$4:AO$228,'Active-Completed'!$D$4:$D$228,$A35) -> 0 | J35: =SUMIFS('Active-Completed'!AP$4:AP$228,'Active-Completed'!$D$4:$D$228,$A35) -> 0 | K35: =SUMIFS('Active-Completed'!AQ$4:AQ$228,'Active-Completed'!$D$4:$D$228,$A35) -> 0 | N35: 0 | O35: 0 | V35: 0 | W35: =#REF! ->  | AJ35: Insights | AK35: 2000000 | AL35: 0.5 | AM35: =AK35*AL35 -> 1000000 | AN35: Includes Loyalty and Outcomes retrospective analyses | AP35: Insights | AQ35: 2000000 | AR35: =AL35 -> 0.5 | AS35: 1000000
A36: Other | B36: =SUMIFS('Active-Completed'!AH$4:AH$228,'Active-Completed'!$D$4:$D$228,$A36) -> 0 | C36: =SUMIFS('Active-Completed'!AI$4:AI$228,'Active-Completed'!$D$4:$D$228,$A36) -> 189000 | D36: =SUMIFS('Active-Completed'!AJ$4:AJ$228,'Active-Completed'!$D$4:$D$228,$A36) -> 547123.88 | E36: =SUMIFS('Active-Completed'!AK$4:AK$228,'Active-Completed'!$D$4:$D$228,$A36) -> 283796.87 | F36: =SUMIFS('Active-Completed'!AL$4:AL$228,'Active-Completed'!$D$4:$D$228,$A36) -> 18864.56 | G36: =SUMIFS('Active-Completed'!AM$4:AM$228,'Active-Completed'!$D$4:$D$228,$A36) -> 6569.18 | H36: =SUMIFS('Active-Completed'!AN$4:AN$228,'Active-Completed'!$D$4:$D$228,$A36) -> 106297.9692 | I36: =SUMIFS('Active-Completed'!AO$4:AO$228,'Active-Completed'!$D$4:$D$228,$A36) -> 31453.6 | J36: =SUMIFS('Active-Completed'!AP$4:AP$228,'Active-Completed'!$D$4:$D$228,$A36) -> 6690.42 | K36: =SUMIFS('Active-Completed'!AQ$4:AQ$228,'Active-Completed'!$D$4:$D$228,$A36) -> 106713.91 | N36: 91777.77778 | O36: 14936.13222 | V36: =C36 -> 189000 | W36: =#REF! ->  | AJ36: Other | AK36: 3000000 | AL36: =N17 -> 0.55 | AM36: =AL36*AK36 -> 1650000 | AN36: ` | AP36: Other | AQ36: 0 | AR36: 0 | AS36: 0 | AT36: =AM36-AS36 -> 1650000
A38: Total | B38: =SUM(B27:B36) -> 806612.46 | C38: 1358069.56 | D38: 1941276.67 | E38: 2093777.56 | F38: 1835358.34 | G38: 1418710.02 | H38: 2896783.129 | I38: 2226924.91 | J38: 1496435.9 | K38: =SUM(K27:K36) -> 2880499.33 | L38: 0 | M38: 0 | N38: =SUM(N27:N37) -> 2865444.444 | O38: =SUM(O27:O37) -> 15054.88556 | V38: Chantix
A39: BUDGET | B39: =B76 -> 720333.3333 | C39: =C76 -> 920333.3333 | D39: 1920333.333 | E39: 2957111.111 | F39: 3057111.111 | G39: 3157111.111 | H39: 2557111.111 | I39: 2557111.111 | J39: 3057111.111 | K39: =K76 -> 2865444.444 | L39: 2865444.444 | M39: 3365444.444 | AJ39: Total | AK39: =SUM(AK27:AK38) -> 50191151 | AL39: =AM39/AK39 -> 0.557113791 | AM39: =SUM(AM27:AM38) -> 27962182.41 | AP39: Total | AQ39: =SUM(AQ27:AQ38) -> 31273230 | AR39: =AS39/AQ39 -> 0.5408011328 | AS39: =SUM(AS27:AS38) -> 16912598.21
A40: VAR | B40: =B38-B39 -> 86279.12667 | C40: 437736.2267 | D40: 20943.33667 | E40: -863333.5511 | F40: -1221752.771 | G40: -1738401.091 | H40: 339672.0181 | I40: -330186.2011 | J40: -1560675.211 | K40: =K38-K39 -> 15054.88556 | L40: -2865444.444 | M40: -3365444.444 | AJ40: Adjusted to Orig GP | AL40: 0.75 | AM40: =AL40*AK39 -> 37643363.25 | AP40: Revenue and GP Assumption assume full credit on all WBAD services
A41: Expected Revenue and GP reduction due to Hitech/HIPAA not reflected | AJ41: Hitech/HIPAA | AM41: =AM27+AM29+AM36 -> 12886000
AJ42: Revenue and GP Assumption assume full credit on all WBAD services
AT43: =SUM(AT26:AT42) -> 11049584.2
AK46: w/o HiTech | AL46: w/ HiTech
A47: FY'13 BUDGET | AJ47: Revenue | AK47: =AK39 -> 50191151 | AL47: =AQ39 -> 31273230 | AM47: =AK47-AL47 -> 18917921
A48: Service | B48: Sep'12 | C48: Oct'12 | D48: Nov'12 | E48: Dec'12 | F48: Jan'13 | G48: Feb'13 | H48: Mar'13 | I48: Apr'13 | J48: May'13 | K48: Jun'13 | L48: Jul'13 | M48: Aug'13 | AJ48: Pct GP | AK48: =AK49/AK47 -> 0.557113791 | AL48: =AL49/AL47 -> 0.5408011328
A49: Adherence | B49: 207000 | C49: 207000 | D49: 957000 | E49: 1873666.667 | F49: 1873666.667 | G49: 1873666.667 | H49: 957000 | I49: 957000 | J49: 957000 | K49: 957000 | L49: 957000 | M49: 957000 | AJ49: GP | AK49: =AM39 -> 27962182.41 | AL49: =AS39 -> 16912598.21 | AM49: =AK49-AL49 -> 11049584.2
A50: RPh Service | B50: 333333.3333 | C50: 333333.3333 | D50: 333333.3333 | E50: 333333.3333 | F50: 333333.3333 | G50: 333333.3333 | H50: 333333.3333 | I50: 333333.3333 | J50: 333333.3333 | K50: 333333.3333 | L50: 333333.3333 | M50: 333333.3333
A51: *Clinical Trials | B51: 0 | C51: 200000 | D51: 200000 | E51: 200000 | F51: 300000 | G51: 400000 | H51: 400000 | I51: 400000 | J51: 400000 | K51: 400000 | L51: 400000 | M51: 400000
A52: PSC | B52: 146666.6667 | C52: 146666.6667 | D52: 146666.6667 | E52: 175000 | F52: 175000 | G52: 175000 | H52: 175000 | I52: 175000 | J52: 175000 | K52: 175000 | L52: 175000 | M52: 175000
A53: Education | B53: 0 | C53: 0 | D53: 150000 | E53: 100000 | F53: 100000 | G53: 100000 | H53: 200000 | I53: 200000 | J53: 200000 | K53: 300000 | L53: 300000 | M53: 300000
A54: 90-Day | B54: 33333.33333 | C54: 33333.33333 | D54: 33333.33333 | E54: 100000 | F54: 100000 | G54: 100000 | H54: 150000 | I54: 150000 | J54: 150000 | K54: 216666.6667 | L54: 216666.6667 | M54: 216666.6667
A55: Marketing | B55: 0 | C55: 0 | D55: 100000 | E55: 83333.33333 | F55: 83333.33333 | G55: 83333.33333 | H55: 116666.6667 | I55: 116666.6667 | J55: 116666.6667 | K55: 191666.6667 | L55: 191666.6667 | M55: 191666.6667
A56: Data | B56: 0 | C56: 0 | D56: 0 | E56: 0 | F56: 0 | G56: 0 | H56: 133333.3333 | I56: 133333.3333 | J56: 133333.3333 | K56: 200000 | L56: 200000 | M56: 200000
A57: Outcomes | B57: 0 | C57: 0 | D57: 0 | E57: 0 | F57: 0 | G57: 0 | H57: 0 | I57: 0 | J57: 500000 | K57: 0 | L57: 0 | M57: 500000
A58: Other | B58: 0 | C58: 0 | D58: 0 | E58: 91777.77778 | F58: 91777.77778 | G58: 91777.77778 | H58: 91777.77778 | I58: 91777.77778 | J58: 91777.77778 | K58: 91777.77778 | L58: 91777.77778 | M58: 91777.77778
A60: Total | B60: =SUM(B49:B58) -> 720333.3333 | C60: 920333.3333 | D60: 1920333.333 | E60: 2957111.111 | F60: 3057111.111 | G60: 3157111.111 | H60: 2557111.111 | I60: 2557111.111 | J60: 3057111.111 | K60: 2865444.444 | L60: 2865444.444 | M60: 3365444.444
A61: *reduced from $400K to $0 in Feb'13 due to Hitech ($2.8 mil impact)
A64: =A48 -> Service | B64: Sep'12 | C64: Oct'12 | D64: Nov'12 | E64: Dec'12 | F64: Jan'13 | G64: Feb'13 | H64: Mar'13 | I64: Apr'13 | J64: May'13 | K64: Jun'13 | L64: Jul'13 | M64: Aug'13 | N64: Last Mo
A65: =A49 -> Adherence | B65: =IF(B27="","",B49) -> 207000 | C65: =IF(C27="","",C49) -> 207000 | D65: 957000 | E65: 1873666.667 | F65: 1873666.667 | G65: 1873666.667 | H65: 957000 | I65: 957000 | J65: 957000 | K65: 957000 | N65: =INDEX(B65:M65,MATCH(9.99999999999999E+307,B65:M65)) -> 957000
A66: RPh Service | B66: =IF(B28="","",B50) -> 333333.3333 | C66: 333333.3333 | D66: 333333.3333 | E66: 333333.3333 | F66: 333333.3333 | G66: 333333.3333 | H66: 333333.3333 | I66: 333333.3333 | J66: 333333.3333 | K66: 333333.3333 | N66: 333333.3333
A67: *Clinical Trials | B67: =IF(B29="","",B51) -> 0 | C67: 200000 | D67: 200000 | E67: 200000 | F67: 300000 | G67: 400000 | H67: 400000 | I67: 400000 | J67: 400000 | K67: 400000 | N67: 400000
A68: PSC | B68: =IF(B30="","",B52) -> 146666.6667 | C68: 146666.6667 | D68: 146666.6667 | E68: 175000 | F68: 175000 | G68: 175000 | H68: 175000 | I68: 175000 | J68: 175000 | K68: 175000 | N68: 175000
A69: Education | B69: =IF(B31="","",B53) -> 0 | C69: 0 | D69: 150000 | E69: 100000 | F69: 100000 | G69: 100000 | H69: 200000 | I69: 200000 | J69: 200000 | K69: 300000 | N69: 300000
A70: 90-Day | B70: =IF(B32="","",B54) -> 33333.33333 | C70: 33333.33333 | D70: 33333.33333 | E70: 100000 | F70: 100000 | G70: 100000 | H70: 150000 | I70: 150000 | J70: 150000 | K70: 216666.6667 | N70: 216666.6667
A71: Marketing | B71: =IF(B33="","",B55) -> 0 | C71: 0 | D71: 100000 | E71: 83333.33333 | F71: 83333.33333 | G71: 83333.33333 | H71: 116666.6667 | I71: 116666.6667 | J71: 116666.6667 | K71: 191666.6667 | N71: 191666.6667
A72: Data | B72: =IF(B34="","",B56) -> 0 | C72: 0 | D72: 0 | E72: 0 | F72: 0 | G72: 0 | H72: 133333.3333 | I72: 133333.3333 | J72: 133333.3333 | K72: 200000 | N72: 200000
A73: Outcomes | B73: =IF(B35="","",B57) -> 0 | C73: 0 | D73: 0 | E73: 0 | F73: 0 | G73: 0 | H73: 0 | I73: 0 | J73: 500000 | K73: 0 | N73: 0
A74: Other | B74: =IF(B36="","",B58) -> 0 | C74: 0 | D74: 0 | E74: 91777.77778 | F74: 91777.77778 | G74: 91777.77778 | H74: 91777.77778 | I74: 91777.77778 | J74: 91777.77778 | K74: 91777.77778 | N74: 91777.77778
B75: =IF(B37="","",B59) -> 
A76: Total | B76: =IF(B38="","",B60) -> 720333.3333 | C76: 920333.3333 | D76: 1920333.333 | E76: 2957111.111 | F76: 3057111.111 | G76: 3157111.111 | H76: 2557111.111 | I76: 2557111.111 | J76: 3057111.111 | K76: 2865444.444 | L76: 2865444.444 | M76: 3365444.444 | N76: 3365444.444

Sheet Pharma Names (hidden)
A1: Pharma | B1: NPAD
A2: Abbott | B2: MaryT
A3: Access | B3: BrianS
A4: Acorda | B4: Specialty
A5: Actavis | B5: VanA
A6: Actelion | B6: JenL
A7: Actient | B7: CathyP
A8: Acurian | B8: GregL
A9: Alexion | B9: Specialty
A10: Alkermes | B10: Specialty
A11: Allergan | B11: JenL
A12: Amgen | B12: MaryT
A13: Amneal | B13: BrianS
A14: Amylin | B14: MaryT
A15: Anchen | B15: JenL
A16: Apotex | B16: VanA
A17: Aptalis | B17: ????
A18: Astellas | B18: CathyP
A19: AstraZeneca | B19: VanA
A20: Auxilium | B20: Specialty
A21: B&L | B21: BrianS
A22: Baxter | B22: BrianS
A23: Bayer | B23: Specialty
A24: Bayer Diagnostics | B24: ????
A25: Biogen | B25: Specialty
A26: Biomarin | B26: Specialty
A27: Biosolutia | B27: Specialty
A28: BMS | B28: CathyP
A29: Boehringer | B29: VanA
A30: Cadence | B30: MaryT
A31: Celgene | B31: Specialty
A32: Chelsea Therapeutics | B32: TomR
A33: CorePharma | B33: BrianS
A34: Covidien | B34: MaryT
A35: CSL Behring | B35: BrianS
A36: Daiichi Sankyo | B36: VanA
A37: Depuy Mitek | B37: Specialty
A38: DesignRx | B38: Specialty
A39: DEY | B39: CathyP
A40: Edgemont | B40: ????
A41: Eisai | B41: VanA
A42: Elan | B42: CathyP
A43: EMD Serono | B43: Specialty
A44: Endo | B44: CathyP
A45: Enzon Biochem | B45: CathyP
A46: Eyetech | B46: Specialty
A47: Falcon | B47: VanA
A48: Ferring | B48: Specialty
A49: Forest | B49: CathyP
A50: Fougera | B50: VanA
A51: Galderma | B51: VanA
A52: Genentech | B52: JenL
A53: Genzyme | B53: MaryT
A54: Gilead | B54: MaryT
A55: Glenmark | B55: CathyP
A56: Global Health | B56: CathyP
A57: GPC Biotech/Specturm | B57: JenL
A58: GSK | B58: CathyP
A59: Hospira | B59: CathyP
A60: IMS (was SDI) | B60: GregL
A61: Intermune | B61: Specialty
A62: Ipsen/Tercica | B62: Specialty
A63: J&J | B63: BrianS
A64: J&J (Centocor) | B64: BrianS
A65: J&J (Janssen) | B65: BrianS
A66: Kremmers Urban | B66: BrianS
A67: Lannett | B67: VanA
A68: LEO Pharma | B68: ????
A69: Ligand | B69: MaryT
A70: Lilly | B70: BrianS
A71: Lundbeck | B71: VanA
A72: Lupin Pharma | B72: VanA
A73: Meda | B73: CathyP
A74: Medicis | B74: MaryT
A75: Medimmune | B75: Specialty
A76: Merck | B76: VanA
A77: Mylan Specialty | B77: CathyP
A78: Neurogesx | B78: Specialty
A79: Nipro | B79: ????
A80: Novartis | B80: JenL
A81: Novartis (Sandoz) | B81: JenL
A82: Novo Nordisk | B82: MaryT
A83: Octa | B83: BrianS
A84: Onyx | B84: MaryT
A85: OSI | B85: VanA
A86: Otsuka | B86: VanA
A87: Paddock | B87: CathyP
A88: PAR | B88: VanA
A89: Pernix | B89: BrianS
A90: Perrigo | B90: CathyP
A91: Pfizer | B91: JenL
A92: Progenics | B92: VanA
A93: Prostrakan | B93: Specialty
A94: Purdue | B94: VanA
A95: Qualitest | B95: BrianS
A96: Questcor | B96: JenL
A97: Ranbaxy | B97: VanA
A98: Reckitt Benckiser | B98: VanA
A99: Regeneron | B99: VanA
A100: Salix | B100: CathyP
A101: Sanofi Aventis | B101: MaryT
A102: Santarus | B102: ????
A103: SDI | B103: GregL
A104: Shinogi (Victory) | B104: MaryT
A105: Shire | B105: VanA
A106: Smith + Nephew | B106: Specialty
A107: Strativa | B107: VanA
A108: Sunovion | B108: VanA
A109: Takeda | B109: BrianS
A110: Talecris | B110: BrianS
A111: Taro | B111: BrianS
A112: Teva | B112: MaryT
A113: TherRx | B113: Specialty
A114: Trial Accel./Ballenger | B114: GregL
A115: UCB | B115: BrianS
A116: United Therapeutics | B116: Specialty
A117: Upsher-Smith | B117: VanA
A118: URL | B118: VanA
A119: Valeant | B119: JenL
A120: Vertex | B120: Specialty
A121: Alcon | B121: JenL
A122: VisibiltyRx/J Rector | B122: GregL
A123: Warner Chilcott | B123: BrianS
A124: Watson | B124: JenL
A125: Zydus | B125: VanA

Sheet Sheet1 (hidden)

Sheet Sheet2 (hidden)

Sheet Sheet3 (hidden)
B1: 2011-09 | C1: 2011-10 | D1: 2011-11 | E1: 2011-12 | F1: 2012-01 | G1: 2012-02 | H1: 2012-03 | I1: 2012-04 | J1: 2012-05 | K1: 2012-06 | L1: 2012-07 | M1: 2012-08 | O1: Totals
A2: Total Revenue | B2: 542160.69 | C2: 833456.7866 | D2: 1552619.53 | E2: 729506.45 | F2: 700957.64 | G2: 1102602.54 | H2: 1110045.96 | I2: 1321756.72 | J2: =J19 -> 920000 | K2: =K19 -> 1036000 | L2: =L19 -> 1246000 | M2: =M19 -> 1346000 | O2: =SUM(B2:M2) -> 12441106.32
A3: Budget | B3: 1062473.58 | C3: 1062473.58 | D3: 1062473.58 | E3: 1062473.58 | F3: 885411.79 | G3: 885411.79 | H3: 885411.79 | I3: 1721823.58 | J3: 1721823.58 | K3: 1721823.58 | L3: 1721823.58 | M3: 1721823.58 | O3: =SUM(B3:M3) -> 15515247.59
A4: Variance | B4: -520312.89 | C4: -229016.7934 | D4: 490145.9504 | E4: -332967.13 | F4: -184454.15 | G4: 217190.75 | H4: 224634.17 | I4: -400066.86 | J4: =J2-J3 -> -801823.58 | K4: =K2-K3 -> -685823.58 | L4: =L2-L3 -> -475823.58 | M4: =M2-M3 -> -375823.58 | O4: =O3-O2 -> 3074141.273
A6: Total Running Sums | B6: 542160.69 | C6: 1375617.477 | D6: 2928237.007 | E6: 3657743.457 | F6: 4358701.097 | G6: 5461303.637 | H6: 6571349.597 | I6: 7893106.317 | J6: =I6+J2 -> 8813106.317 | K6: =J6+K2 -> 9849106.317 | L6: =K6+L2 -> 11095106.32 | M6: =L6+M2 -> 12441106.32
A7: Budget Running Sums | B7: 1062473.58 | C7: 2124947.16 | D7: 3187420.74 | E7: 4249894.32 | F7: 5135306.11 | G7: 6020717.9 | H7: 6906129.69 | I7: 8627953.27 | J7: 10349776.85 | K7: 12071600.43 | L7: 13793424.01 | M7: 15515247.59
A8: Variance (running) | B8: -520312.89 | C8: -749329.6834 | D8: -259183.733 | E8: -592150.863 | F8: -776605.013 | G8: -559414.263 | H8: -334780.093 | I8: -734846.953 | J8: =I8+J4 -> -1536670.533 | K8: =J8+K4 -> -2222494.113 | L8: =K8+L4 -> -2698317.693 | M8: =L8+M4 -> -3074141.273
A10: Expected Revenue
A11: Active Programs | J11: 800000 | K11: 800000 | L11: 800000 | M11: 800000
A12: CTR | J12: 120000 | K12: 120000 | L12: 120000 | M12: 120000
A13: New-90D | L13: 260000 | M13: 360000
A14: New ADH Let | K14: 100000 | L14: 100000 | M14: 100000
A15: New SAR | K15: 24000 | L15: 24000 | M15: 24000
A16: RPH Alert | K16: 50000 | L16: 50000 | M16: 50000
A17: Goodstart (Benicar) | L17: 180000 | M17: 180000
A19: Totals | J19: 920000 | K19: 1036000 | L19: 1246000 | M19: 1346000
A23: Missing | J23: Total FY'11
A24: Diovan LOE | J24: 600000
A25: Lipitor GS/Direct Mail | J25: 400000
A28: New 90D
A29: July'12 | J29: Benicar Family, Welchol, Onglyza, Travatan Azopt
A30: Aug'12 | J30: Niaspan/Simcor, Aciphex
A32: New SAR | J32: Prolia, Prezista
A33: Ned ADH DM | J33: Epi-Pen, Lialda, Victoza Enhancements, Effient
